Workbook

Sheet CAPA

Sheet P. O. TOTAL
A1: CONTRATAÇÃO DE SERVIÇOS DE CONSTRUÇÃO DE ESPAÇOS MULTIUSO COBERTOS EM DIVERSOS MUNICÍPIOS INSERIDOS NA ÁREA DE ATUAÇÃO DA CODEVASF, NO ESTADO DO TOCANTINS.
A2: PLANILHA ORÇAMENTÁRIA TOTAL GLOBAL
A3: ITEM | B3: ORIGEM COMPOSIÇÃO | C3: CÓDIGO COMPOSIÇÃO | D3: DISCRIMINAÇÃO DOS SERVIÇOS | E3: Sinapi | F3: Dezembro/2024 - TO | G3: Qtd. de módulos | H3: =MC!K1 -> 30 | I3: R$/m² = | J3: =J137/E5 -> 0
E4: Total de m² | F4: Encargos Sociais: | G4: Horista (%) | H4: Mensalista (%) | I4: PREÇO UNITÁRIO COM BDI | J4: PREÇO TOTAL COM BDI
E5: =MC!J28 -> 24949.8 | G5: ='ENCARGOS SOCIAIS'!D41 -> 1.1111 | H5: ='ENCARGOS SOCIAIS'!E41 -> 0.6732
E6: UND | F6: QTDE. | G6: BDI | H6: PREÇO UNITÁRIO
D7: PROJETO EXECUTIVO | J7: =J8 -> 0
A8: 1 | B8: Codevasf | C8: CPU-01 | D8: PROJETO EXECUTIVO | E8: UN | F8: =MC!J6 -> 30 | H8: =CPU!H4 -> 0 | I8: =TRUNC(H8*(1+G8),2) -> 0 | J8: =TRUNC(F8*I8,2) -> 0
D9: SERVIÇOS PRELIMINARES | J9: =SUM(J10:J13) -> 0
A10: 2 | B10: Codevasf | C10: CPU-02 | D10: ADMINISTRAÇÃO LOCAL | E10: UN | F10: =MC!J11 -> 30 | H10: =CPU!H17 -> 0 | I10: =TRUNC(H10*(1+G10),2) -> 0 | J10: =TRUNC(F10*I10,2) -> 0
A11: 3 | B11: Codevasf | C11: CPU-03 | D11: MOBILIZAÇÃO E DESMOBILIZAÇÃO | E11: UN | F11: =MC!J15 -> 60 | H11: =CPU!H24 -> 0 | I11: =TRUNC(H11*(1+G11),2) -> 0 | J11: =TRUNC(F11*I11,2) -> 0
A12: 4 | B12: Codevasf | C12: CPU-04 | D12: CANTEIRO DE OBRAS E ALMOXARIFADO | E12: UN | F12: =MC!J19 -> 30 | H12: =CPU!H31 -> 0 | I12: 0 | J12: 0
A13: 5 | B13: Codevasf | C13: CPU-05 | D13: PLACA DE OBRA EM CHAPA DE AÇO GALVANIZADO | E13: M2 | F13: =MC!J23 -> 180 | H13: =CPU!H37 -> 0 | I13: 0 | J13: 0
D14: PREPARAÇÃO DO TERRENO | J14: =J15 -> 0
A15: 6 | B15: Codevasf | C15: CPU-06 | D15: RASPAGEM E LIMPEZA DO TERRENO | E15: M2 | F15: =MC!J28 -> 24949.8 | H15: =CPU!H47 -> 0 | I15: =TRUNC(H15*(1+G15),2) -> 0 | J15: =TRUNC(F15*I15,2) -> 0
D16: LOCAÇÃO DA OBRA | J16: =J17 -> 0
A17: 7 | B17: SINAPI | C17: 99059 | D17: =VLOOKUP(C17,'SINAPI -TO'!$A$3:$D$7831,2,FALSE) -> LOCAÇÃO CONVENCIONAL DE OBRA, UTILIZANDO GABARITO DE TÁBUAS CORRIDAS PONTALETADAS A CADA 2,00M - 2 UTILIZAÇÕES. AF_03/2024 | E17: =VLOOKUP(C17,'SINAPI -TO'!$A$3:$D$7831,3,FALSE) -> M | F17: =MC!J33 -> 3498 | I17: =TRUNC(H17*(1+G17),2) -> 0 | J17: =TRUNC(F17*I17,2) -> 0
D18: REGULARIZAÇÃO DO TERRENO | J18: =J19 -> 0
A19: 8 | B19: SINAPI | C19: 100576 | D19: =VLOOKUP(C19,'SINAPI -TO'!$A$3:$D$7831,2,FALSE) -> REGULARIZAÇÃO E COMPACTAÇÃO DE SUBLEITO DE SOLO PREDOMINANTEMENTE ARGILOSO, PARA OBRAS DE CONSTRUÇÃO DE PAVIMENTOS. AF_09/2024 | E19: =VLOOKUP(C19,'SINAPI -TO'!$A$3:$D$7831,3,FALSE) -> M2 | F19: =MC!J38 -> 24949.8 | I19: =TRUNC(H19*(1+G19),2) -> 0 | J19: =TRUNC(F19*I19,2) -> 0
D20: MURETA E ALAMBRADO | J20: =J21+J29+J35+J41 -> 0
D21: FUNDAÇÃO DA MURETA | J21: =SUM(J22:J28) -> 0
A22: 9 | B22: SINAPI | C22: 93358 | D22: =VLOOKUP(C22,'SINAPI -TO'!$A$3:$D$7831,2,FALSE) -> ESCAVAÇÃO MANUAL DE VALA. AF_09/2024 | E22: =VLOOKUP(C22,'SINAPI -TO'!$A$3:$D$7831,3,FALSE) -> M3 | F22: =MC!J44 -> 696.9 | I22: =TRUNC(H22*(1+G22),2) -> 0 | J22: =TRUNC(F22*I22,2) -> 0
A23: 10 | B23: SINAPI | C23: 100977 | D23: =VLOOKUP(C23,'SINAPI -TO'!$A$3:$D$7831,2,FALSE) -> CARGA, MANOBRA E DESCARGA DE SOLOS E MATERIAIS GRANULARES EM CAMINHÃO BASCULANTE 6 M³ - CARGA COM ESCAVADEIRA HIDRÁULICA (CAÇAMBA DE 1,20 M³ / 155 HP) E DESCARGA LIVRE (UNIDADE: M3). AF_07/2020 | E23: =VLOOKUP(C23,'SINAPI -TO'!$A$3:$D$7831,3,FALSE) -> M3 | F23: =MC!J49 -> 696.9 | I23: 0 | J23: 0
A24: 11 | B24: SINAPI | C24: 97914 | D24: =VLOOKUP(C24,'SINAPI -TO'!$A$3:$D$7831,2,FALSE) -> TRANSPORTE COM CAMINHÃO BASCULANTE DE 6 M³, EM VIA URBANA PAVIMENTADA, DMT ATÉ 30 KM (UNIDADE: M3XKM). AF_07/2020 | E24: =VLOOKUP(C24,'SINAPI -TO'!$A$3:$D$7831,3,FALSE) -> M3XKM | F24: =MC!J53 -> 3484.5 | I24: 0 | J24: 0
A25: 12 | B25: SINAPI | C25: 101616 | D25: =VLOOKUP(C25,'SINAPI -TO'!$A$3:$D$7831,2,FALSE) -> PREPARO DE FUNDO DE VALA COM LARGURA MENOR QUE 1,5 M (ACERTO DO SOLO NATURAL). AF_08/2020 | E25: =VLOOKUP(C25,'SINAPI -TO'!$A$3:$D$7831,3,FALSE) -> M2 | F25: =MC!J57 -> 1161.6 | I25: 0 | J25: 0
A26: 13 | B26: SINAPI | C26: 103800 | D26: =VLOOKUP(C26,'SINAPI -TO'!$A$3:$D$7831,2,FALSE) -> PEDRA ARGAMASSADA COM CIMENTO E AREIA 1:3, 40% DE ARGAMASSA EM VOLUME - AREIA E PEDRA DE MÃO COMERCIAIS - FORNECIMENTO E ASSENTAMENTO. AF_08/2022 | E26: =VLOOKUP(C26,'SINAPI -TO'!$A$3:$D$7831,3,FALSE) -> M3 | F26: =MC!J62 -> 464.4 | I26: 0 | J26: 0
A27: 14 | B27: SINAPI | C27: 93205 | D27: =VLOOKUP(C27,'SINAPI -TO'!$A$3:$D$7831,2,FALSE) -> CINTA DE AMARRAÇÃO DE ALVENARIA MOLDADA IN LOCO COM UTILIZAÇÃO DE BLOCOS CANALETA, ESPESSURA DE *20* CM. AF_03/2024 | E27: =VLOOKUP(C27,'SINAPI -TO'!$A$3:$D$7831,3,FALSE) -> M | F27: =MC!J67 -> 2904 | I27: 0 | J27: 0
A28: 15 | B28: SINAPI | C28: 98555 | D28: =VLOOKUP(C28,'SINAPI -TO'!$A$3:$D$7831,2,FALSE) -> IMPERMEABILIZAÇÃO DE SUPERFÍCIE COM ARGAMASSA POLIMÉRICA / MEMBRANA ACRÍLICA, 3 DEMÃOS. AF_09/2023 | E28: =VLOOKUP(C28,'SINAPI -TO'!$A$3:$D$7831,3,FALSE) -> M2 | F28: =MC!J72 -> 2323.2 | I28: 0 | J28: 0
D29: PILARETES DE SUSTENTAÇÃO | J29: =SUM(J30:J34) -> 0
A30: 16 | B30: SINAPI | C30: 92427 | D30: =VLOOKUP(C30,'SINAPI -TO'!$A$3:$D$7831,2,FALSE) -> MONTAGEM E DESMONTAGEM DE FÔRMA DE PILARES RETANGULARES E ESTRUTURAS SIMILARES, PÉ-DIREITO SIMPLES, EM CHAPA DE MADEIRA COMPENSADA RESINADA, 8 UTILIZAÇÕES. AF_09/2020 | E30: =VLOOKUP(C30,'SINAPI -TO'!$A$3:$D$7831,3,FALSE) -> M2 | F30: =MC!J80 -> 504 | I30: =TRUNC(H30*(1+G30),2) -> 0 | J30: 0
A31: 17 | B31: SINAPI | C31: 92759 | D31: =VLOOKUP(C31,'SINAPI -TO'!$A$3:$D$7831,2,FALSE) -> ARMAÇÃO DE PILAR OU VIGA DE ESTRUTURA CONVENCIONAL DE CONCRETO ARMADO UTILIZANDO AÇO CA-60 DE 5,0 MM - MONTAGEM. AF_06/2022 | E31: =VLOOKUP(C31,'SINAPI -TO'!$A$3:$D$7831,3,FALSE) -> KG | F31: =MC!J85 -> 504 | I31: 0 | J31: 0
A32: 18 | B32: SINAPI | C32: 92762 | D32: =VLOOKUP(C32,'SINAPI -TO'!$A$3:$D$7831,2,FALSE) -> ARMAÇÃO DE PILAR OU VIGA DE ESTRUTURA CONVENCIONAL DE CONCRETO ARMADO UTILIZANDO AÇO CA-50 DE 10,0 MM - MONTAGEM. AF_06/2022 | E32: =VLOOKUP(C32,'SINAPI -TO'!$A$3:$D$7831,3,FALSE) -> KG | F32: =MC!J89 -> 2520 | I32: 0 | J32: 0
A33: 19 | B33: SINAPI | C33: 92763 | D33: =VLOOKUP(C33,'SINAPI -TO'!$A$3:$D$7831,2,FALSE) -> ARMAÇÃO DE PILAR OU VIGA DE ESTRUTURA CONVENCIONAL DE CONCRETO ARMADO UTILIZANDO AÇO CA-50 DE 12,5 MM - MONTAGEM. AF_06/2022 | E33: =VLOOKUP(C33,'SINAPI -TO'!$A$3:$D$7831,3,FALSE) -> KG | F33: =MC!J93 -> 2520 | I33: 0 | J33: 0
A34: 20 | B34: SINAPI | C34: 94971 | D34: =VLOOKUP(C34,'SINAPI -TO'!$A$3:$D$7831,2,FALSE) -> CONCRETO FCK = 25MPA, TRAÇO 1:2,3:2,7 (EM MASSA SECA DE CIMENTO/ AREIA MÉDIA/ BRITA 1) - PREPARO MECÂNICO COM BETONEIRA 600 L. AF_05/2021 | E34: =VLOOKUP(C34,'SINAPI -TO'!$A$3:$D$7831,3,FALSE) -> M3 | F34: =MC!J97 -> 25.2 | I34: 0 | J34: 0
D35: ALVENARIA | J35: =SUM(J36:J40) -> 0
A36: 21 | B36: SINAPI | C36: 103334 | D36: =VLOOKUP(C36,'SINAPI -TO'!$A$3:$D$7831,2,FALSE) -> ALVENARIA DE VEDAÇÃO DE BLOCOS CERÂMICOS FURADOS NA HORIZONTAL DE 14X9X19 CM (ESPESSURA 14 CM, BLOCO DEITADO) E ARGAMASSA DE ASSENTAMENTO COM PREPARO EM BETONEIRA. AF_12/2021 | E36: =VLOOKUP(C36,'SINAPI -TO'!$A$3:$D$7831,3,FALSE) -> M2 | F36: =MC!J102 -> 1370.4 | I36: =TRUNC(H36*(1+G36),2) -> 0 | J36: 0
A37: 22 | B37: SINAPI | C37: 87893 | D37: =VLOOKUP(C37,'SINAPI -TO'!$A$3:$D$7831,2,FALSE) -> CHAPISCO APLICADO EM ALVENARIA (SEM PRESENÇA DE VÃOS) E ESTRUTURAS DE CONCRETO DE FACHADA, COM COLHER DE PEDREIRO. ARGAMASSA TRAÇO 1:3 COM PREPARO MANUAL. AF_10/2022 | E37: =VLOOKUP(C37,'SINAPI -TO'!$A$3:$D$7831,3,FALSE) -> M2 | F37: =MC!J111 -> 2640 | I37: 0 | J37: 0
A38: 23 | B38: SINAPI | C38: 87529 | D38: =VLOOKUP(C38,'SINAPI -TO'!$A$3:$D$7831,2,FALSE) -> MASSA ÚNICA, EM ARGAMASSA TRAÇO 1:2:8, PREPARO MECÂNICO, APLICADA MANUALMENTE EM PAREDES INTERNAS DE AMBIENTES COM ÁREA ENTRE 5M² E 10M², E = 17,5MM, COM TALISCAS. AF_03/2024 | E38: =VLOOKUP(C38,'SINAPI -TO'!$A$3:$D$7831,3,FALSE) -> M2 | F38: =MC!J119 -> 2640 | I38: 0 | J38: 0
A39: 24 | B39: Codevasf | C39: CPU-07 | D39: CHAPIM DE CONCRETO | E39: M2 | F39: =MC!J123 -> 580.8 | I39: 0 | J39: 0
A40: 25 | B40: SINAPI | C40: 95305 | D40: =VLOOKUP(C40,'SINAPI -TO'!$A$3:$D$7831,2,FALSE) -> TEXTURA ACRÍLICA, APLICAÇÃO MANUAL EM PAREDE, UMA DEMÃO. AF_04/2023 | E40: =VLOOKUP(C40,'SINAPI -TO'!$A$3:$D$7831,3,FALSE) -> M2 | F40: =MC!J128 -> 2640 | I40: 0 | J40: 0
D41: ALAMBRADO | J41: =SUM(J42:J43) -> 0
A42: 26 | B42: SINAPI | C42: 102364 | D42: =VLOOKUP(C42,'SINAPI -TO'!$A$3:$D$7831,2,FALSE) -> ALAMBRADO PARA QUADRA POLIESPORTIVA, ESTRUTURADO POR TUBOS DE ACO GALVANIZADO, (MONTANTES COM DIAMETRO 2", TRAVESSAS E ESCORAS COM DIÂMETRO 1 ¼"), COM TELA DE ARAME GALVANIZADO, FIO 10 BWG E MALHA QUADRADA 5X5CM (EXCETO MURETA). AF_03/2021 | E42: =VLOOKUP(C42,'SINAPI -TO'!$A$3:$D$7831,3,FALSE) -> M2 | F42: =MC!J133 -> 11352 | I42: =TRUNC(H42*(1+G42),2) -> 0 | J42: 0
A43: 27 | B43: Codevasf | C43: CPU-08 | D43: PORTÃO DA QUADRA | E43: M2 | F43: =MC!J139 -> 264 | I43: 0 | J43: 0
D44: PISO | J44: =J45+J51+J53 -> 0
D45: PISO DA QUADRA | J45: =SUM(J46:J50) -> 0
A46: 28 | B46: SINAPI | C46: 96622 | D46: =VLOOKUP(C46,'SINAPI -TO'!$A$3:$D$7831,2,FALSE) -> LASTRO COM MATERIAL GRANULAR, APLICADO EM PISOS OU LAJES SOBRE SOLO, ESPESSURA DE *5 CM*. AF_01/2024 | E46: =VLOOKUP(C46,'SINAPI -TO'!$A$3:$D$7831,3,FALSE) -> M3 | F46: =MC!J144 -> 345.6 | I46: =TRUNC(H46*(1+G46),2) -> 0 | J46: =TRUNC(F46*I46,2) -> 0
A47: 29 | B47: SINAPI | C47: 97087 | D47: =VLOOKUP(C47,'SINAPI -TO'!$A$3:$D$7831,2,FALSE) -> CAMADA SEPARADORA PARA EXECUÇÃO DE RADIER, PISO DE CONCRETO OU LAJE SOBRE SOLO, EM LONA PLÁSTICA. AF_09/2021 | E47: =VLOOKUP(C47,'SINAPI -TO'!$A$3:$D$7831,3,FALSE) -> M2 | F47: =MC!J148 -> 16200 | I47: 0 | J47: 0
A48: 30 | B48: SINAPI | C48: 97088 | D48: =VLOOKUP(C48,'SINAPI -TO'!$A$3:$D$7831,2,FALSE) -> ARMAÇÃO PARA EXECUÇÃO DE RADIER, PISO DE CONCRETO OU LAJE SOBRE SOLO, COM USO DE TELA Q-92. AF_09/2021 | E48: =VLOOKUP(C48,'SINAPI -TO'!$A$3:$D$7831,3,FALSE) -> KG | F48: =MC!J152 -> 23976 | I48: 0 | J48: 0
A49: 31 | B49: SINAPI | C49: 101747 | D49: =VLOOKUP(C49,'SINAPI -TO'!$A$3:$D$7831,2,FALSE) -> PISO EM CONCRETO 20 MPA PREPARO MECÂNICO, ESPESSURA 7CM. AF_09/2020 | E49: =VLOOKUP(C49,'SINAPI -TO'!$A$3:$D$7831,3,FALSE) -> M2 | F49: =MC!J156 -> 16200 | I49: 0 | J49: 0
A50: 32 | B50: Codevasf | C50: CPU-09 | D50: JUNTA DE DILATAÇÃO DO PISO | E50: M | F50: =MC!J160 -> 2160 | I50: 0 | J50: 0
D51: PINTURA DO PISO | J51: =SUM(J52:J52) -> 0
A52: 33 | B52: SINAPI | C52: 102491 | D52: =VLOOKUP(C52,'SINAPI -TO'!$A$3:$D$7831,2,FALSE) -> PINTURA DE PISO COM TINTA ACRÍLICA, APLICAÇÃO MANUAL, 2 DEMÃOS, INCLUSO FUNDO PREPARADOR. AF_05/2021 | E52: =VLOOKUP(C52,'SINAPI -TO'!$A$3:$D$7831,3,FALSE) -> M2 | F52: =MC!J166 -> 16200 | I52: =TRUNC(H52*(1+G52),2) -> 0 | J52: 0
D53: PISO DA ÁREA DE CIRCULAÇÃO | J53: =SUM(J54:J55) -> 0
A54: 34 | B54: SINAPI | C54: 93679 | D54: =VLOOKUP(C54,'SINAPI -TO'!$A$3:$D$7831,2,FALSE) -> EXECUÇÃO DE PASSEIO EM PISO INTERTRAVADO, COM BLOCO RETANGULAR COLORIDO DE 20 X 10 CM, ESPESSURA 6 CM. AF_10/2022 | E54: =VLOOKUP(C54,'SINAPI -TO'!$A$3:$D$7831,3,FALSE) -> M2 | F54: =MC!J171 -> 6840.6 | I54: =TRUNC(H54*(1+G54),2) -> 0 | J54: =TRUNC(F54*I54,2) -> 0
A55: 35 | B55: SINAPI | C55: 94275 | D55: =VLOOKUP(C55,'SINAPI -TO'!$A$3:$D$7831,2,FALSE) -> ASSENTAMENTO DE GUIA (MEIO-FIO) EM TRECHO RETO, CONFECCIONADA EM CONCRETO PRÉ-FABRICADO, DIMENSÕES 100X15X13X20 CM (COMPRIMENTO X BASE INFERIOR X BASE SUPERIOR X ALTURA). AF_01/2024 | E55: =VLOOKUP(C55,'SINAPI -TO'!$A$3:$D$7831,3,FALSE) -> M | F55: =MC!J177 -> 3498 | I55: 0 | J55: 0
D56: ARQUIBANCADAS | J56: =J57+J62+J72 -> 0
D57: MOVIMENTAÇÃO DE TERRA | J57: =SUM(J58:J61) -> 0
A58: 36 | B58: SINAPI | C58: 93358 | D58: =VLOOKUP(C58,'SINAPI -TO'!$A$3:$D$7831,2,FALSE) -> ESCAVAÇÃO MANUAL DE VALA. AF_09/2024 | E58: =VLOOKUP(C58,'SINAPI -TO'!$A$3:$D$7831,3,FALSE) -> M3 | F58: =MC!J183 -> 708 | I58: =TRUNC(H58*(1+G58),2) -> 0 | J58: =TRUNC(F58*I58,2) -> 0
A59: 37 | B59: SINAPI | C59: 100975 | D59: =VLOOKUP(C59,'SINAPI -TO'!$A$3:$D$7831,2,FALSE) -> CARGA, MANOBRA E DESCARGA DE SOLOS E MATERIAIS GRANULARES EM CAMINHÃO BASCULANTE 14 M³ - CARGA COM PÁ CARREGADEIRA (CAÇAMBA DE 1,7 A 2,8 M³ / 128 HP) E DESCARGA LIVRE (UNIDADE: M3). AF_07/2020 | E59: =VLOOKUP(C59,'SINAPI -TO'!$A$3:$D$7831,3,FALSE) -> M3 | F59: =MC!J188 -> 708 | I59: 0 | J59: 0
A60: 38 | B60: SINAPI | C60: 101617 | D60: =VLOOKUP(C60,'SINAPI -TO'!$A$3:$D$7831,2,FALSE) -> PREPARO DE FUNDO DE VALA COM LARGURA MAIOR OU IGUAL A 1,5 M E MENOR QUE 2,5 M (ACERTO DO SOLO NATURAL). AF_08/2020 | E60: =VLOOKUP(C60,'SINAPI -TO'!$A$3:$D$7831,3,FALSE) -> M2 | F60: =MC!J192 -> 885.6 | I60: 0 | J60: 0
A61: 39 | B61: SINAPI | C61: 94342 | D61: =VLOOKUP(C61,'SINAPI -TO'!$A$3:$D$7831,2,FALSE) -> ATERRO MANUAL DE VALAS COM AREIA PARA ATERRO. AF_08/2023 | E61: =VLOOKUP(C61,'SINAPI -TO'!$A$3:$D$7831,3,FALSE) -> M3 | F61: =MC!J197 -> 849.6 | I61: 0 | J61: 0
D62: ESTRUTURA E ALVENARIA | J62: =SUM(J63:J71) -> 0
A63: 40 | B63: SINAPI | C63: 103800 | D63: =VLOOKUP(C63,'SINAPI -TO'!$A$3:$D$7831,2,FALSE) -> PEDRA ARGAMASSADA COM CIMENTO E AREIA 1:3, 40% DE ARGAMASSA EM VOLUME - AREIA E PEDRA DE MÃO COMERCIAIS - FORNECIMENTO E ASSENTAMENTO. AF_08/2022 | E63: =VLOOKUP(C63,'SINAPI -TO'!$A$3:$D$7831,3,FALSE) -> M3 | F63: =MC!J205 -> 354 | I63: =TRUNC(H63*(1+G63),2) -> 0 | J63: 0
A64: 41 | B64: SINAPI | C64: 92427 | D64: =VLOOKUP(C64,'SINAPI -TO'!$A$3:$D$7831,2,FALSE) -> MONTAGEM E DESMONTAGEM DE FÔRMA DE PILARES RETANGULARES E ESTRUTURAS SIMILARES, PÉ-DIREITO SIMPLES, EM CHAPA DE MADEIRA COMPENSADA RESINADA, 8 UTILIZAÇÕES. AF_09/2020 | E64: =VLOOKUP(C64,'SINAPI -TO'!$A$3:$D$7831,3,FALSE) -> M2 | F64: =MC!J210 -> 672 | I64: 0 | J64: 0
A65: 42 | B65: SINAPI | C65: 92759 | D65: =VLOOKUP(C65,'SINAPI -TO'!$A$3:$D$7831,2,FALSE) -> ARMAÇÃO DE PILAR OU VIGA DE ESTRUTURA CONVENCIONAL DE CONCRETO ARMADO UTILIZANDO AÇO CA-60 DE 5,0 MM - MONTAGEM. AF_06/2022 | E65: =VLOOKUP(C65,'SINAPI -TO'!$A$3:$D$7831,3,FALSE) -> KG | F65: =MC!J216 -> 738 | I65: 0 | J65: 0
A66: 43 | B66: SINAPI | C66: 92762 | D66: =VLOOKUP(C66,'SINAPI -TO'!$A$3:$D$7831,2,FALSE) -> ARMAÇÃO DE PILAR OU VIGA DE ESTRUTURA CONVENCIONAL DE CONCRETO ARMADO UTILIZANDO AÇO CA-50 DE 10,0 MM - MONTAGEM. AF_06/2022 | E66: =VLOOKUP(C66,'SINAPI -TO'!$A$3:$D$7831,3,FALSE) -> KG | F66: =MC!J220 -> 3690 | I66: 0 | J66: 0
A67: 44 | B67: SINAPI | C67: 92763 | D67: =VLOOKUP(C67,'SINAPI -TO'!$A$3:$D$7831,2,FALSE) -> ARMAÇÃO DE PILAR OU VIGA DE ESTRUTURA CONVENCIONAL DE CONCRETO ARMADO UTILIZANDO AÇO CA-50 DE 12,5 MM - MONTAGEM. AF_06/2022 | E67: =VLOOKUP(C67,'SINAPI -TO'!$A$3:$D$7831,3,FALSE) -> KG | F67: =MC!J224 -> 3690 | I67: 0 | J67: 0
A68: 45 | B68: SINAPI | C68: 94971 | D68: =VLOOKUP(C68,'SINAPI -TO'!$A$3:$D$7831,2,FALSE) -> CONCRETO FCK = 25MPA, TRAÇO 1:2,3:2,7 (EM MASSA SECA DE CIMENTO/ AREIA MÉDIA/ BRITA 1) - PREPARO MECÂNICO COM BETONEIRA 600 L. AF_05/2021 | E68: =VLOOKUP(C68,'SINAPI -TO'!$A$3:$D$7831,3,FALSE) -> M3 | F68: =MC!J228 -> 36.9 | I68: 0 | J68: 0
A69: 46 | B69: SINAPI | C69: 103327 | D69: =VLOOKUP(C69,'SINAPI -TO'!$A$3:$D$7831,2,FALSE) -> ALVENARIA DE VEDAÇÃO DE BLOCOS CERÂMICOS FURADOS NA VERTICAL DE 19X19X39 CM (ESPESSURA 19 CM) E ARGAMASSA DE ASSENTAMENTO COM PREPARO MANUAL. AF_12/2021 | E69: =VLOOKUP(C69,'SINAPI -TO'!$A$3:$D$7831,3,FALSE) -> M2 | F69: =MC!J234 -> 2623.8 | I69: 0 | J69: 0
A70: 47 | B70: SINAPI | C70: 96620 | D70: =VLOOKUP(C70,'SINAPI -TO'!$A$3:$D$7831,2,FALSE) -> LASTRO DE CONCRETO MAGRO, APLICADO EM PISOS, LAJES SOBRE SOLO OU RADIERS. AF_01/2024 | E70: =VLOOKUP(C70,'SINAPI -TO'!$A$3:$D$7831,3,FALSE) -> M3 | F70: =MC!J246 -> 43.8 | I70: 0 | J70: 0
A71: 48 | B71: SINAPI | C71: 97088 | D71: =VLOOKUP(C71,'SINAPI -TO'!$A$3:$D$7831,2,FALSE) -> ARMAÇÃO PARA EXECUÇÃO DE RADIER, PISO DE CONCRETO OU LAJE SOBRE SOLO, COM USO DE TELA Q-92. AF_09/2021 | E71: =VLOOKUP(C71,'SINAPI -TO'!$A$3:$D$7831,3,FALSE) -> KG | F71: =MC!J251 -> 4250.7 | I71: 0 | J71: 0
D72: REVESTIMENTO | J72: =SUM(J73:J76) -> 0
A73: 49 | B73: SINAPI | C73: 98682 | D73: =VLOOKUP(C73,'SINAPI -TO'!$A$3:$D$7831,2,FALSE) -> PISO CIMENTADO, TRAÇO 1:3 (CIMENTO E AREIA), ACABAMENTO RÚSTICO, ESPESSURA 3,0 CM, PREPARO MECÂNICO DA ARGAMASSA. AF_09/2020 | E73: =VLOOKUP(C73,'SINAPI -TO'!$A$3:$D$7831,3,FALSE) -> M2 | F73: =MC!J256 -> 1180.8 | I73: =TRUNC(H73*(1+G73),2) -> 0 | J73: 0
A74: 50 | B74: SINAPI | C74: 87878 | D74: =VLOOKUP(C74,'SINAPI -TO'!$A$3:$D$7831,2,FALSE) -> CHAPISCO APLICADO EM ALVENARIAS E ESTRUTURAS DE CONCRETO INTERNAS, COM COLHER DE PEDREIRO. ARGAMASSA TRAÇO 1:3 COM PREPARO MANUAL. AF_10/2022 | E74: =VLOOKUP(C74,'SINAPI -TO'!$A$3:$D$7831,3,FALSE) -> M2 | F74: =MC!J261 -> 3132 | I74: 0 | J74: 0
A75: 51 | B75: SINAPI | C75: 87543 | D75: =VLOOKUP(C75,'SINAPI -TO'!$A$3:$D$7831,2,FALSE) -> MASSA ÚNICA, EM ARGAMASSA INDUSTRIALIZADA, PREPARO MECÂNICO, APLICADA COM EQUIPAMENTO DE MISTURA E PROJEÇÃO DE ARGAMASSA EM PAREDES INTERNAS, E = 5MM, SEM TALISCAS. AF_03/2024 | E75: =VLOOKUP(C75,'SINAPI -TO'!$A$3:$D$7831,3,FALSE) -> M2 | F75: =MC!J269 -> 3132 | I75: 0 | J75: 0
A76: 52 | B76: SINAPI | C76: 102492 | D76: =VLOOKUP(C76,'SINAPI -TO'!$A$3:$D$7831,2,FALSE) -> PINTURA DE PISO COM TINTA ACRÍLICA, APLICAÇÃO MANUAL, 3 DEMÃOS, INCLUSO FUNDO PREPARADOR. AF_05/2021 | E76: =VLOOKUP(C76,'SINAPI -TO'!$A$3:$D$7831,3,FALSE) -> M2 | F76: =MC!J277 -> 3132 | I76: 0 | J76: 0
D77: INSTALAÇÕES ELÉTRICAS | J77: =J78+J82+J86+J90+J94+J99+J102 -> 0
D78: VALAS PARA ELETRODUTOS | J78: =SUM(J79:J81) -> 0
A79: 53 | B79: SINAPI | C79: 93358 | D79: =VLOOKUP(C79,'SINAPI -TO'!$A$3:$D$7831,2,FALSE) -> ESCAVAÇÃO MANUAL DE VALA. AF_09/2024 | E79: =VLOOKUP(C79,'SINAPI -TO'!$A$3:$D$7831,3,FALSE) -> M3 | F79: =MC!J287 -> 37.5 | I79: =TRUNC(H79*(1+G79),2) -> 0 | J79: =TRUNC(F79*I79,2) -> 0
A80: 54 | B80: SINAPI | C80: 100323 | D80: =VLOOKUP(C80,'SINAPI -TO'!$A$3:$D$7831,2,FALSE) -> LASTRO COM MATERIAL GRANULAR (AREIA MÉDIA), APLICADO EM PISOS OU LAJES SOBRE SOLO, ESPESSURA DE *10 CM*. AF_01/2024 | E80: =VLOOKUP(C80,'SINAPI -TO'!$A$3:$D$7831,3,FALSE) -> M3 | F80: =MC!J291 -> 7.5 | I80: 0 | J80: 0
A81: 55 | B81: SINAPI | C81: 93382 | D81: =VLOOKUP(C81,'SINAPI -TO'!$A$3:$D$7831,2,FALSE) -> REATERRO MANUAL DE VALAS, COM COMPACTADOR DE SOLOS DE PERCUSSÃO. AF_08/2023 | E81: =VLOOKUP(C81,'SINAPI -TO'!$A$3:$D$7831,3,FALSE) -> M3 | F81: =MC!J295 -> 30 | I81: 0 | J81: 0
D82: ELETRODUTOS E CONEXOS | J82: =SUM(J83:J85) -> 0
A83: 56 | B83: SINAPI | C83: 97667 | D83: =VLOOKUP(C83,'SINAPI -TO'!$A$3:$D$7831,2,FALSE) -> ELETRODUTO FLEXÍVEL CORRUGADO, PEAD, DN 50 (1 1/2"), PARA REDE ENTERRADA DE DISTRIBUIÇÃO DE ENERGIA ELÉTRICA - FORNECIMENTO E INSTALAÇÃO. AF_12/2021 | E83: =VLOOKUP(C83,'SINAPI -TO'!$A$3:$D$7831,3,FALSE) -> M | F83: =MC!J301 -> 251.1 | I83: =TRUNC(H83*(1+G83),2) -> 0 | J83: =TRUNC(F83*I83,2) -> 0
A84: 57 | B84: SINAPI | C84: 91864 | D84: =VLOOKUP(C84,'SINAPI -TO'!$A$3:$D$7831,2,FALSE) -> ELETRODUTO RÍGIDO ROSCÁVEL, PVC, DN 32 MM (1"), PARA CIRCUITOS TERMINAIS, INSTALADO EM FORRO - FORNECIMENTO E INSTALAÇÃO. AF_03/2023 | E84: =VLOOKUP(C84,'SINAPI -TO'!$A$3:$D$7831,3,FALSE) -> M | F84: =MC!J305 -> 276.3 | I84: 0 | J84: 0
A85: 58 | B85: SINAPI | C85: 91867 | D85: =VLOOKUP(C85,'SINAPI -TO'!$A$3:$D$7831,2,FALSE) -> ELETRODUTO RÍGIDO ROSCÁVEL, PVC, DN 25 MM (3/4"), PARA CIRCUITOS TERMINAIS, INSTALADO EM LAJE - FORNECIMENTO E INSTALAÇÃO. AF_03/2023 | E85: =VLOOKUP(C85,'SINAPI -TO'!$A$3:$D$7831,3,FALSE) -> M | F85: =MC!J309 -> 4837.5 | I85: 0 | J85: 0
D86: QUADROS/CAIXAS | J86: =SUM(J87:J89) -> 0
A87: 59 | B87: SINAPI | C87: 101946 | D87: =VLOOKUP(C87,'SINAPI -TO'!$A$3:$D$7831,2,FALSE) -> QUADRO DE MEDIÇÃO GERAL DE ENERGIA PARA 1 MEDIDOR DE SOBREPOR - FORNECIMENTO E INSTALAÇÃO. AF_10/2020 | E87: =VLOOKUP(C87,'SINAPI -TO'!$A$3:$D$7831,3,FALSE) -> UN | F87: =MC!J314 -> 30 | I87: =TRUNC(H87*(1+G87),2) -> 0 | J87: =TRUNC(F87*I87,2) -> 0
A88: 60 | B88: SINAPI | C88: 97892 | D88: =VLOOKUP(C88,'SINAPI -TO'!$A$3:$D$7831,2,FALSE) -> CAIXA ENTERRADA ELÉTRICA RETANGULAR, EM ALVENARIA COM BLOCOS DE CONCRETO, FUNDO COM BRITA, DIMENSÕES INTERNAS: 0,6X0,6X0,6 M. AF_12/2020 | E88: =VLOOKUP(C88,'SINAPI -TO'!$A$3:$D$7831,3,FALSE) -> UN | F88: =MC!J318 -> 30 | I88: 0 | J88: 0
A89: 61 | B89: SINAPI | C89: 101875 | D89: =VLOOKUP(C89,'SINAPI -TO'!$A$3:$D$7831,2,FALSE) -> QUADRO DE DISTRIBUIÇÃO DE ENERGIA EM CHAPA DE AÇO GALVANIZADO, DE EMBUTIR, COM BARRAMENTO TRIFÁSICO, PARA 12 DISJUNTORES DIN 100A - FORNECIMENTO E INSTALAÇÃO. AF_10/2020 | E89: =VLOOKUP(C89,'SINAPI -TO'!$A$3:$D$7831,3,FALSE) -> UN | F89: =MC!J322 -> 30 | I89: 0 | J89: 0
D90: FIOS/CABOS/ACESSÓRIOS | J90: =SUM(J91:J93) -> 0
A91: 62 | B91: SINAPI | C91: 91927 | D91: =VLOOKUP(C91,'SINAPI -TO'!$A$3:$D$7831,2,FALSE) -> CABO DE COBRE FLEXÍVEL ISOLADO, 2,5 MM², ANTI-CHAMA 0,6/1,0 KV, PARA CIRCUITOS TERMINAIS - FORNECIMENTO E INSTALAÇÃO. AF_03/2023 | E91: =VLOOKUP(C91,'SINAPI -TO'!$A$3:$D$7831,3,FALSE) -> M | F91: =MC!J327 -> 26922 | I91: =TRUNC(H91*(1+G91),2) -> 0 | J91: 0
A92: 63 | B92: SINAPI | C92: 91931 | D92: =VLOOKUP(C92,'SINAPI -TO'!$A$3:$D$7831,2,FALSE) -> CABO DE COBRE FLEXÍVEL ISOLADO, 6 MM², ANTI-CHAMA 0,6/1,0 KV, PARA CIRCUITOS TERMINAIS - FORNECIMENTO E INSTALAÇÃO. AF_03/2023 | E92: =VLOOKUP(C92,'SINAPI -TO'!$A$3:$D$7831,3,FALSE) -> M | F92: =MC!J331 -> 450 | I92: 0 | J92: 0
A93: 64 | B93: SINAPI | C93: 96985 | D93: =VLOOKUP(C93,'SINAPI -TO'!$A$3:$D$7831,2,FALSE) -> HASTE DE ATERRAMENTO, DIÂMETRO 5/8", COM 3 METROS - FORNECIMENTO E INSTALAÇÃO. AF_08/2023 | E93: =VLOOKUP(C93,'SINAPI -TO'!$A$3:$D$7831,3,FALSE) -> UN | F93: =MC!J335 -> 90 | I93: 0 | J93: 0
D94: BASES/ CHAVES/ DISJUNTORES | J94: =SUM(J95:J98) -> 0
A95: 65 | B95: SINAPI | C95: 93653 | D95: =VLOOKUP(C95,'SINAPI -TO'!$A$3:$D$7831,2,FALSE) -> DISJUNTOR MONOPOLAR TIPO DIN, CORRENTE NOMINAL DE 10A - FORNECIMENTO E INSTALAÇÃO. AF_10/2020 | E95: =VLOOKUP(C95,'SINAPI -TO'!$A$3:$D$7831,3,FALSE) -> UN | F95: =MC!J340 -> 240 | I95: =TRUNC(H95*(1+G95),2) -> 0 | J95: 0
A96: 66 | B96: SINAPI | C96: 93657 | D96: =VLOOKUP(C96,'SINAPI -TO'!$A$3:$D$7831,2,FALSE) -> DISJUNTOR MONOPOLAR TIPO DIN, CORRENTE NOMINAL DE 32A - FORNECIMENTO E INSTALAÇÃO. AF_10/2020 | E96: =VLOOKUP(C96,'SINAPI -TO'!$A$3:$D$7831,3,FALSE) -> UN | F96: =MC!J344 -> 30 | I96: 0 | J96: 0
A97: 67 | B97: SINAPI | C97: 93658 | D97: =VLOOKUP(C97,'SINAPI -TO'!$A$3:$D$7831,2,FALSE) -> DISJUNTOR MONOPOLAR TIPO DIN, CORRENTE NOMINAL DE 40A - FORNECIMENTO E INSTALAÇÃO. AF_10/2020 | E97: =VLOOKUP(C97,'SINAPI -TO'!$A$3:$D$7831,3,FALSE) -> UN | F97: =MC!J348 -> 60 | I97: 0 | J97: 0
A98: 68 | B98: SINAPI-I | C98: 39471 | D98: =VLOOKUP($C98,'SINAPI TO - INSUMOS'!$A$3:$D$7831,2,FALSE) -> DISPOSITIVO DPS CLASSE II, 1 POLO, TENSAO MAXIMA DE 275 V, CORRENTE MAXIMA DE *45* KA (TIPO AC) | E98: UN | F98: =MC!J352 -> 60 | I98: 0 | J98: 0
D99: POSTES | J99: =SUM(J100:J101) -> 0
A100: 69 | B100: SINAPI | C100: 100599 | D100: =VLOOKUP(C100,'SINAPI -TO'!$A$3:$D$7831,2,FALSE) -> ASSENTAMENTO DE POSTE DE CONCRETO COM COMPRIMENTO NOMINAL DE 9 M, CARGA NOMINAL DE 150 DAN, ENGASTAMENTO BASE CONCRETADA COM 1 M DE CONCRETO E 0,5 M DE SOLO (NÃO INCLUI FORNECIMENTO). AF_11/2019 | E100: =VLOOKUP(C100,'SINAPI -TO'!$A$3:$D$7831,3,FALSE) -> UN | F100: =MC!J357 -> 30 | I100: =TRUNC(H100*(1+G100),2) -> 0 | J100: 0
A101: 70 | B101: SINAPI-I | C101: 41196 | D101: =VLOOKUP($C101,'SINAPI TO - INSUMOS'!$A$3:$D$7831,2,FALSE) -> POSTE DE CONCRETO ARMADO DE SECAO DUPLO T, EXTENSAO DE 9,00 M, RESISTENCIA DE 150 DAN, TIPO D | E101: UN | F101: =MC!J361 -> 30 | I101: 0 | J101: 0
D102: LUMINÁRIAS E ACESSÓRIOS | J102: =J103 -> 0
A103: 71 | B103: Codevasf | C103: CPU-10 | D103: REFLETOR SLIM LED 200W DE POTÊNCIA, BRANCO FRIO, 6500K, AUTOVOLT, MARCA G-LIGHT OU SIMILIAR | E103: UN | F103: =MC!J366 -> 720 | I103: =TRUNC(H103*(1+G103),2) -> 0 | J103: 0
D104: COBERTURA | J104: =J105+J119+J126+J128 -> 0
D105: FUNDAÇÃO DA COBERTURA | J105: =SUM(J106:J118) -> 0
A106: 72 | B106: SINAPI | C106: 96527 | D106: =VLOOKUP(C106,'SINAPI -TO'!$A$3:$D$7831,2,FALSE) -> ESCAVAÇÃO MANUAL PARA VIGA BALDRAME OU SAPATA CORRIDA (INCLUINDO ESCAVAÇÃO PARA COLOCAÇÃO DE FÔRMAS). AF_01/2024 | E106: =VLOOKUP(C106,'SINAPI -TO'!$A$3:$D$7831,3,FALSE) -> M3 | F106: =MC!J372 -> 2665.2 | I106: =TRUNC(H106*(1+G106),2) -> 0 | J106: =TRUNC(F106*I106,2) -> 0
A107: 73 | B107: SINAPI | C107: 101616 | D107: =VLOOKUP(C107,'SINAPI -TO'!$A$3:$D$7831,2,FALSE) -> PREPARO DE FUNDO DE VALA COM LARGURA MENOR QUE 1,5 M (ACERTO DO SOLO NATURAL). AF_08/2020 | E107: =VLOOKUP(C107,'SINAPI -TO'!$A$3:$D$7831,3,FALSE) -> M2 | F107: =MC!J378 -> 1440 | I107: 0 | J107: 0
A108: 74 | B108: SINAPI | C108: 101617 | D108: =VLOOKUP(C108,'SINAPI -TO'!$A$3:$D$7831,2,FALSE) -> PREPARO DE FUNDO DE VALA COM LARGURA MAIOR OU IGUAL A 1,5 M E MENOR QUE 2,5 M (ACERTO DO SOLO NATURAL). AF_08/2020 | E108: =VLOOKUP(C108,'SINAPI -TO'!$A$3:$D$7831,3,FALSE) -> M2 | F108: =MC!J382 -> 631.8 | I108: 0 | J108: 0
A109: 75 | B109: SINAPI | C109: 93382 | D109: =VLOOKUP(C109,'SINAPI -TO'!$A$3:$D$7831,2,FALSE) -> REATERRO MANUAL DE VALAS, COM COMPACTADOR DE SOLOS DE PERCUSSÃO. AF_08/2023 | E109: =VLOOKUP(C109,'SINAPI -TO'!$A$3:$D$7831,3,FALSE) -> M3 | F109: =MC!J387 -> 1422.3 | I109: 0 | J109: 0
A110: 76 | B110: SINAPI | C110: 96536 | D110: =VLOOKUP(C110,'SINAPI -TO'!$A$3:$D$7831,2,FALSE) -> FABRICAÇÃO, MONTAGEM E DESMONTAGEM DE FÔRMA PARA VIGA BALDRAME, EM MADEIRA SERRADA, E=25 MM, 4 UTILIZAÇÕES. AF_01/2024 | E110: =VLOOKUP(C110,'SINAPI -TO'!$A$3:$D$7831,3,FALSE) -> M2 | F110: =MC!J392 -> 3754.8 | I110: 0 | J110: 0
A111: 77 | B111: SINAPI | C111: 96535 | D111: =VLOOKUP(C111,'SINAPI -TO'!$A$3:$D$7831,2,FALSE) -> FABRICAÇÃO, MONTAGEM E DESMONTAGEM DE FÔRMA PARA SAPATA, EM MADEIRA SERRADA, E=25 MM, 4 UTILIZAÇÕES. AF_01/2024 | E111: =VLOOKUP(C111,'SINAPI -TO'!$A$3:$D$7831,3,FALSE) -> M2 | F111: =MC!J397 -> 1728 | I111: 0 | J111: 0
A112: 78 | B112: SINAPI | C112: 96543 | D112: =VLOOKUP(C112,'SINAPI -TO'!$A$3:$D$7831,2,FALSE) -> ARMAÇÃO DE BLOCO UTILIZANDO AÇO CA-60 DE 5 MM - MONTAGEM. AF_01/2024 | E112: =VLOOKUP(C112,'SINAPI -TO'!$A$3:$D$7831,3,FALSE) -> KG | F112: =MC!J401 -> 22432.5 | I112: 0 | J112: 0
A113: 79 | B113: SINAPI | C113: 104918 | D113: =VLOOKUP(C113,'SINAPI -TO'!$A$3:$D$7831,2,FALSE) -> ARMAÇÃO DE SAPATA ISOLADA, VIGA BALDRAME E SAPATA CORRIDA UTILIZANDO AÇO CA-50 DE 8 MM - MONTAGEM. AF_01/2024 | E113: =VLOOKUP(C113,'SINAPI -TO'!$A$3:$D$7831,3,FALSE) -> KG | F113: =MC!J406 -> 107010 | I113: 0 | J113: 0
A114: 80 | B114: SINAPI | C114: 104919 | D114: =VLOOKUP(C114,'SINAPI -TO'!$A$3:$D$7831,2,FALSE) -> ARMAÇÃO DE SAPATA ISOLADA, VIGA BALDRAME E SAPATA CORRIDA UTILIZANDO AÇO CA-50 DE 10 MM - MONTAGEM. AF_01/2024 | E114: =VLOOKUP(C114,'SINAPI -TO'!$A$3:$D$7831,3,FALSE) -> KG | F114: =MC!J411 -> 107010 | I114: 0 | J114: 0
A115: 81 | B115: SINAPI | C115: 104920 | D115: =VLOOKUP(C115,'SINAPI -TO'!$A$3:$D$7831,2,FALSE) -> ARMAÇÃO DE BLOCO, SAPATA ISOLADA, VIGA BALDRAME E SAPATA CORRIDA UTILIZANDO AÇO CA-50 DE 12,5 MM - MONTAGEM. AF_01/2024 | E115: =VLOOKUP(C115,'SINAPI -TO'!$A$3:$D$7831,3,FALSE) -> KG | F115: =MC!J416 -> 53505 | I115: 0 | J115: 0
A116: 82 | B116: SINAPI | C116: 104921 | D116: =VLOOKUP(C116,'SINAPI -TO'!$A$3:$D$7831,2,FALSE) -> ARMAÇÃO DE BLOCO, SAPATA ISOLADA, VIGA BALDRAME E SAPATA CORRIDA UTILIZANDO AÇO CA-50 DE 16 MM - MONTAGEM. AF_01/2024 | E116: =VLOOKUP(C116,'SINAPI -TO'!$A$3:$D$7831,3,FALSE) -> KG | F116: =MC!J421 -> 53505 | I116: 0 | J116: 0
A117: 83 | B117: SINAPI | C117: 96556 | D117: =VLOOKUP(C117,'SINAPI -TO'!$A$3:$D$7831,2,FALSE) -> CONCRETAGEM DE SAPATA, FCK 30 MPA, COM USO DE JERICA - LANÇAMENTO, ADENSAMENTO E ACABAMENTO. AF_01/2024 | E117: =VLOOKUP(C117,'SINAPI -TO'!$A$3:$D$7831,3,FALSE) -> M3 | F117: =MC!J426 -> 864 | I117: 0 | J117: 0
A118: 84 | B118: SINAPI | C118: 96557 | D118: =VLOOKUP(C118,'SINAPI -TO'!$A$3:$D$7831,2,FALSE) -> CONCRETAGEM DE BLOCO DE COROAMENTO OU VIGA BALDRAME, FCK 30 MPA, COM USO DE BOMBA - LANÇAMENTO, ADENSAMENTO E ACABAMENTO. AF_01/2024 | E118: =VLOOKUP(C118,'SINAPI -TO'!$A$3:$D$7831,3,FALSE) -> M3 | F118: =MC!J430 -> 378.9 | I118: 0 | J118: 0
D119: PILARES | J119: =SUM(J120:J125) -> 0
A120: 85 | B120: SINAPI | C120: 92427 | D120: =VLOOKUP(C120,'SINAPI -TO'!$A$3:$D$7831,2,FALSE) -> MONTAGEM E DESMONTAGEM DE FÔRMA DE PILARES RETANGULARES E ESTRUTURAS SIMILARES, PÉ-DIREITO SIMPLES, EM CHAPA DE MADEIRA COMPENSADA RESINADA, 8 UTILIZAÇÕES. AF_09/2020 | E120: =VLOOKUP(C120,'SINAPI -TO'!$A$3:$D$7831,3,FALSE) -> M2 | F120: =MC!J436 -> 4320 | I120: =TRUNC(H120*(1+G120),2) -> 0 | J120: 0
A121: 86 | B121: SINAPI | C121: 92759 | D121: =VLOOKUP(C121,'SINAPI -TO'!$A$3:$D$7831,2,FALSE) -> ARMAÇÃO DE PILAR OU VIGA DE ESTRUTURA CONVENCIONAL DE CONCRETO ARMADO UTILIZANDO AÇO CA-60 DE 5,0 MM - MONTAGEM. AF_06/2022 | E121: =VLOOKUP(C121,'SINAPI -TO'!$A$3:$D$7831,3,FALSE) -> KG | F121: =MC!J441 -> 10368 | I121: 0 | J121: 0
A122: 87 | B122: SINAPI | C122: 92762 | D122: =VLOOKUP(C122,'SINAPI -TO'!$A$3:$D$7831,2,FALSE) -> ARMAÇÃO DE PILAR OU VIGA DE ESTRUTURA CONVENCIONAL DE CONCRETO ARMADO UTILIZANDO AÇO CA-50 DE 10,0 MM - MONTAGEM. AF_06/2022 | E122: =VLOOKUP(C122,'SINAPI -TO'!$A$3:$D$7831,3,FALSE) -> KG | F122: =MC!J445 -> 51840 | I122: 0 | J122: 0
A123: 88 | B123: SINAPI | C123: 92763 | D123: =VLOOKUP(C123,'SINAPI -TO'!$A$3:$D$7831,2,FALSE) -> ARMAÇÃO DE PILAR OU VIGA DE ESTRUTURA CONVENCIONAL DE CONCRETO ARMADO UTILIZANDO AÇO CA-50 DE 12,5 MM - MONTAGEM. AF_06/2022 | E123: =VLOOKUP(C123,'SINAPI -TO'!$A$3:$D$7831,3,FALSE) -> KG | F123: =MC!J449 -> 36288 | I123: 0 | J123: 0
A124: 89 | B124: SINAPI | C124: 92764 | D124: =VLOOKUP(C124,'SINAPI -TO'!$A$3:$D$7831,2,FALSE) -> ARMAÇÃO DE PILAR OU VIGA DE ESTRUTURA CONVENCIONAL DE CONCRETO ARMADO UTILIZANDO AÇO CA-50 DE 16,0 MM - MONTAGEM. AF_06/2022 | E124: =VLOOKUP(C124,'SINAPI -TO'!$A$3:$D$7831,3,FALSE) -> KG | F124: =MC!J453 -> 25920 | I124: 0 | J124: 0
A125: 90 | B125: SINAPI | C125: 103669 | D125: =VLOOKUP(C125,'SINAPI -TO'!$A$3:$D$7831,2,FALSE) -> CONCRETAGEM DE PILARES, FCK = 25 MPA, COM USO DE BALDES - LANÇAMENTO, ADENSAMENTO E ACABAMENTO. AF_02/2022 | E125: =VLOOKUP(C125,'SINAPI -TO'!$A$3:$D$7831,3,FALSE) -> M3 | F125: =MC!J457 -> 518.4 | I125: 0 | J125: 0
D126: ESTRUTURA METÁLICA | J126: =J127 -> 0
A127: 91 | B127: SINAPI | C127: 100773 | D127: =VLOOKUP(C127,'SINAPI -TO'!$A$3:$D$7831,2,FALSE) -> ESTRUTURA TRELIÇADA DE COBERTURA, TIPO ARCO, COM LIGAÇÕES SOLDADAS, INCLUSOS PERFIS METÁLICOS, CHAPAS METÁLICAS, MÃO DE OBRA E TRANSPORTE COM GUINDASTE - FORNECIMENTO E INSTALAÇÃO. AF_01/2020_PSA | E127: =VLOOKUP(C127,'SINAPI -TO'!$A$3:$D$7831,3,FALSE) -> KG | F127: =MC!J462 -> 449096.4 | I127: =TRUNC(H127*(1+G127),2) -> 0 | J127: 0
D128: TELHAS | J128: =J129 -> 0
A129: 92 | B129: SINAPI | C129: 94213 | D129: =VLOOKUP(C129,'SINAPI -TO'!$A$3:$D$7831,2,FALSE) -> TELHAMENTO COM TELHA DE AÇO/ALUMÍNIO E = 0,5 MM, COM ATÉ 2 ÁGUAS, INCLUSO IÇAMENTO. AF_07/2019 | E129: =VLOOKUP(C129,'SINAPI -TO'!$A$3:$D$7831,3,FALSE) -> M2 | F129: =MC!J467 -> 24949.8 | I129: =TRUNC(H129*(1+G129),2) -> 0 | J129: 0
D130: INSTALAÇÕES PLUVIAIS | J130: =SUM(J131:J134) -> 0
A131: 93 | B131: SINAPI | C131: 94229 | D131: =VLOOKUP(C131,'SINAPI -TO'!$A$3:$D$7831,2,FALSE) -> CALHA EM CHAPA DE AÇO GALVANIZADO NÚMERO 24, DESENVOLVIMENTO DE 100 CM, INCLUSO TRANSPORTE VERTICAL. AF_07/2019 | E131: =VLOOKUP(C131,'SINAPI -TO'!$A$3:$D$7831,3,FALSE) -> M | F131: =MC!J472 -> 2004 | I131: =TRUNC(H131*(1+G131),2) -> 0 | J131: 0
A132: 94 | B132: SINAPI-I | C132: 11708 | D132: =VLOOKUP($C132,'SINAPI TO - INSUMOS'!$A$3:$D$7831,2,FALSE) -> RALO FOFO SEMIESFERICO, 100 MM, PARA LAJES/ CALHAS | E132: UN | F132: =MC!J476 -> 240 | I132: 0 | J132: 0
A133: 95 | B133: Codevasf | C133: CPU-11 | D133: INSTALAÇÃO DE TUBOS DE PVC | E133: M | F133: =MC!J480 -> 1650 | I133: 0 | J133: 0
A134: 96 | B134: SINAPI | C134: 99253 | D134: =VLOOKUP(C134,'SINAPI -TO'!$A$3:$D$7831,2,FALSE) -> CAIXA ENTERRADA HIDRÁULICA RETANGULAR EM ALVENARIA COM TIJOLOS CERÂMICOS MACIÇOS, DIMENSÕES INTERNAS: 0,6X0,6X0,6 M PARA REDE DE DRENAGEM. AF_12/2020 | E134: =VLOOKUP(C134,'SINAPI -TO'!$A$3:$D$7831,3,FALSE) -> UN | F134: =MC!J484 -> 240 | I134: 0 | J134: 0
D135: LIMPEZA DA OBRA | J135: =SUM(J136) -> 0
A136: 97 | B136: Codevasf | C136: CPU-18 | D136: LIMPEZA DE PISO EM ÁREA URBANIZADA | E136: M2 | F136: =MC!J489 -> 24949.8 | I136: =TRUNC(H136*(1+G136),2) -> 0 | J136: =TRUNC(F136*I136,2) -> 0 | L136: *subtraiu R$8,13 para obter o valor exato do produto da multiplicação do módulo mínimo com a quatidade de módulos.
A137: VALOR TOTAL | J137: =J135+J130+J104+J77+J56+J44+J20+J18+J16+J14+J9+J7 -> 0
J140: ='P. O. MÓDULO MÍNIMO'!J137*30 -> 0
J142: =J140-J137 -> 0

Sheet P. O. MÓDULO MÍNIMO
A1: CONTRATAÇÃO DE SERVIÇOS DE CONSTRUÇÃO DE ESPAÇOS MULTIUSO COBERTOS EM DIVERSOS MUNICÍPIOS INSERIDOS NA ÁREA DE ATUAÇÃO DA CODEVASF, NO ESTADO DO TOCANTINS.
A2: MODULO MÍNIMO
A3: ITEM | B3: ORIGEM COMPOSIÇÃO | C3: CÓDIGO COMPOSIÇÃO | D3: DISCRIMINAÇÃO DOS SERVIÇOS | E3: Sinapi | F3: Dezembro/2024 - TO | G3: Qtd. de módulos | H3: =MC!K1 -> 30 | I3: R$/m² = | J3: =J137/E5 -> 0
E4: Total de m² | F4: Encargos Sociais: | G4: Horista (%) | H4: Mensalista (%) | I4: PREÇO UNITÁRIO COM BDI | J4: PREÇO TOTAL COM BDI
E5: =MC!H28 -> 831.66 | G5: ='ENCARGOS SOCIAIS'!D41 -> 1.1111 | H5: ='ENCARGOS SOCIAIS'!E41 -> 0.6732
E6: UND | F6: QTDE. | G6: BDI | H6: PREÇO UNITÁRIO
D7: PROJETO EXECUTIVO | J7: =J8 -> 0
A8: 1 | B8: Codevasf | C8: CPU-01 | D8: PROJETO EXECUTIVO | E8: UN | F8: =MC!H6 -> 1 | H8: =CPU!H4 -> 0 | I8: =TRUNC(H8*(1+G8),2) -> 0 | J8: =TRUNC(F8*I8,2) -> 0
D9: SERVIÇOS PRELIMINARES | J9: =SUM(J10:J13) -> 0
A10: 2 | B10: Codevasf | C10: CPU-02 | D10: ADMINISTRAÇÃO LOCAL | E10: UN | F10: =MC!H11 -> 1 | H10: =CPU!H17 -> 0 | I10: =TRUNC(H10*(1+G10),2) -> 0 | J10: =TRUNC(F10*I10,2) -> 0
A11: 3 | B11: Codevasf | C11: CPU-03 | D11: MOBILIZAÇÃO E DESMOBILIZAÇÃO | E11: UN | F11: =MC!H15 -> 2 | H11: =CPU!H24 -> 0 | I11: =TRUNC(H11*(1+G11),2) -> 0 | J11: =TRUNC(F11*I11,2) -> 0
A12: 4 | B12: Codevasf | C12: CPU-04 | D12: CANTEIRO DE OBRAS E ALMOXARIFADO | E12: UN | F12: =MC!H19 -> 1 | H12: =CPU!H31 -> 0 | I12: 0 | J12: 0
A13: 5 | B13: Codevasf | C13: CPU-05 | D13: PLACA DE OBRA EM CHAPA DE AÇO GALVANIZADO | E13: M2 | F13: =MC!H23 -> 6 | H13: =CPU!H37 -> 0 | I13: 0 | J13: 0
D14: PREPARAÇÃO DO TERRENO | J14: =J15 -> 0
A15: 6 | B15: Codevasf | C15: CPU-06 | D15: RASPAGEM E LIMPEZA DO TERRENO | E15: M2 | F15: =MC!H28 -> 831.66 | H15: =CPU!H47 -> 0 | I15: =TRUNC(H15*(1+G15),2) -> 0 | J15: =TRUNC(F15*I15,2) -> 0
D16: LOCAÇÃO DA OBRA | J16: =J17 -> 0
A17: 7 | B17: SINAPI | C17: 99059 | D17: =VLOOKUP(C17,'SINAPI -TO'!$A$3:$D$7831,2,FALSE) -> LOCAÇÃO CONVENCIONAL DE OBRA, UTILIZANDO GABARITO DE TÁBUAS CORRIDAS PONTALETADAS A CADA 2,00M - 2 UTILIZAÇÕES. AF_03/2024 | E17: =VLOOKUP(C17,'SINAPI -TO'!$A$3:$D$7831,3,FALSE) -> M | F17: =MC!H33 -> 116.6 | I17: =TRUNC(H17*(1+G17),2) -> 0 | J17: =TRUNC(F17*I17,2) -> 0
D18: REGULARIZAÇÃO DO TERRENO | J18: =J19 -> 0
A19: 8 | B19: SINAPI | C19: 100576 | D19: =VLOOKUP(C19,'SINAPI -TO'!$A$3:$D$7831,2,FALSE) -> REGULARIZAÇÃO E COMPACTAÇÃO DE SUBLEITO DE SOLO PREDOMINANTEMENTE ARGILOSO, PARA OBRAS DE CONSTRUÇÃO DE PAVIMENTOS. AF_09/2024 | E19: =VLOOKUP(C19,'SINAPI -TO'!$A$3:$D$7831,3,FALSE) -> M2 | F19: =MC!H38 -> 831.66 | I19: =TRUNC(H19*(1+G19),2) -> 0 | J19: =TRUNC(F19*I19,2) -> 0
D20: MURETA E ALAMBRADO | J20: =J21+J29+J35+J41 -> 0
D21: FUNDAÇÃO DA MURETA | J21: =SUM(J22:J28) -> 0
A22: 9 | B22: SINAPI | C22: 93358 | D22: =VLOOKUP(C22,'SINAPI -TO'!$A$3:$D$7831,2,FALSE) -> ESCAVAÇÃO MANUAL DE VALA. AF_09/2024 | E22: =VLOOKUP(C22,'SINAPI -TO'!$A$3:$D$7831,3,FALSE) -> M3 | F22: =MC!H44 -> 23.23 | I22: =TRUNC(H22*(1+G22),2) -> 0 | J22: =TRUNC(F22*I22,2) -> 0
A23: 10 | B23: SINAPI | C23: 100977 | D23: =VLOOKUP(C23,'SINAPI -TO'!$A$3:$D$7831,2,FALSE) -> CARGA, MANOBRA E DESCARGA DE SOLOS E MATERIAIS GRANULARES EM CAMINHÃO BASCULANTE 6 M³ - CARGA COM ESCAVADEIRA HIDRÁULICA (CAÇAMBA DE 1,20 M³ / 155 HP) E DESCARGA LIVRE (UNIDADE: M3). AF_07/2020 | E23: =VLOOKUP(C23,'SINAPI -TO'!$A$3:$D$7831,3,FALSE) -> M3 | F23: =MC!H49 -> 23.23 | I23: =TRUNC(H23*(1+G23),2) -> 0 | J23: 0
A24: 11 | B24: SINAPI | C24: 97914 | D24: =VLOOKUP(C24,'SINAPI -TO'!$A$3:$D$7831,2,FALSE) -> TRANSPORTE COM CAMINHÃO BASCULANTE DE 6 M³, EM VIA URBANA PAVIMENTADA, DMT ATÉ 30 KM (UNIDADE: M3XKM). AF_07/2020 | E24: =VLOOKUP(C24,'SINAPI -TO'!$A$3:$D$7831,3,FALSE) -> M3XKM | F24: =MC!H53 -> 116.15 | I24: 0 | J24: 0
A25: 12 | B25: SINAPI | C25: 101616 | D25: =VLOOKUP(C25,'SINAPI -TO'!$A$3:$D$7831,2,FALSE) -> PREPARO DE FUNDO DE VALA COM LARGURA MENOR QUE 1,5 M (ACERTO DO SOLO NATURAL). AF_08/2020 | E25: =VLOOKUP(C25,'SINAPI -TO'!$A$3:$D$7831,3,FALSE) -> M2 | F25: =MC!H57 -> 38.72 | I25: 0 | J25: 0
A26: 13 | B26: SINAPI | C26: 103800 | D26: =VLOOKUP(C26,'SINAPI -TO'!$A$3:$D$7831,2,FALSE) -> PEDRA ARGAMASSADA COM CIMENTO E AREIA 1:3, 40% DE ARGAMASSA EM VOLUME - AREIA E PEDRA DE MÃO COMERCIAIS - FORNECIMENTO E ASSENTAMENTO. AF_08/2022 | E26: =VLOOKUP(C26,'SINAPI -TO'!$A$3:$D$7831,3,FALSE) -> M3 | F26: =MC!H62 -> 15.48 | I26: 0 | J26: 0
A27: 14 | B27: SINAPI | C27: 93205 | D27: =VLOOKUP(C27,'SINAPI -TO'!$A$3:$D$7831,2,FALSE) -> CINTA DE AMARRAÇÃO DE ALVENARIA MOLDADA IN LOCO COM UTILIZAÇÃO DE BLOCOS CANALETA, ESPESSURA DE *20* CM. AF_03/2024 | E27: =VLOOKUP(C27,'SINAPI -TO'!$A$3:$D$7831,3,FALSE) -> M | F27: =MC!H67 -> 96.8 | I27: 0 | J27: 0
A28: 15 | B28: SINAPI | C28: 98555 | D28: =VLOOKUP(C28,'SINAPI -TO'!$A$3:$D$7831,2,FALSE) -> IMPERMEABILIZAÇÃO DE SUPERFÍCIE COM ARGAMASSA POLIMÉRICA / MEMBRANA ACRÍLICA, 3 DEMÃOS. AF_09/2023 | E28: =VLOOKUP(C28,'SINAPI -TO'!$A$3:$D$7831,3,FALSE) -> M2 | F28: =MC!H72 -> 77.44 | I28: 0 | J28: =TRUNC(F28*I28,2) -> 0
D29: PILARETES DE SUSTENTAÇÃO | J29: =SUM(J30:J34) -> 0
A30: 16 | B30: SINAPI | C30: 92427 | D30: =VLOOKUP(C30,'SINAPI -TO'!$A$3:$D$7831,2,FALSE) -> MONTAGEM E DESMONTAGEM DE FÔRMA DE PILARES RETANGULARES E ESTRUTURAS SIMILARES, PÉ-DIREITO SIMPLES, EM CHAPA DE MADEIRA COMPENSADA RESINADA, 8 UTILIZAÇÕES. AF_09/2020 | E30: =VLOOKUP(C30,'SINAPI -TO'!$A$3:$D$7831,3,FALSE) -> M2 | F30: =MC!H80 -> 16.8 | I30: =TRUNC(H30*(1+G30),2) -> 0 | J30: 0
A31: 17 | B31: SINAPI | C31: 92759 | D31: =VLOOKUP(C31,'SINAPI -TO'!$A$3:$D$7831,2,FALSE) -> ARMAÇÃO DE PILAR OU VIGA DE ESTRUTURA CONVENCIONAL DE CONCRETO ARMADO UTILIZANDO AÇO CA-60 DE 5,0 MM - MONTAGEM. AF_06/2022 | E31: =VLOOKUP(C31,'SINAPI -TO'!$A$3:$D$7831,3,FALSE) -> KG | F31: =MC!H85 -> 16.8 | I31: 0 | J31: 0
A32: 18 | B32: SINAPI | C32: 92762 | D32: =VLOOKUP(C32,'SINAPI -TO'!$A$3:$D$7831,2,FALSE) -> ARMAÇÃO DE PILAR OU VIGA DE ESTRUTURA CONVENCIONAL DE CONCRETO ARMADO UTILIZANDO AÇO CA-50 DE 10,0 MM - MONTAGEM. AF_06/2022 | E32: =VLOOKUP(C32,'SINAPI -TO'!$A$3:$D$7831,3,FALSE) -> KG | F32: =MC!H89 -> 84 | I32: 0 | J32: 0
A33: 19 | B33: SINAPI | C33: 92763 | D33: =VLOOKUP(C33,'SINAPI -TO'!$A$3:$D$7831,2,FALSE) -> ARMAÇÃO DE PILAR OU VIGA DE ESTRUTURA CONVENCIONAL DE CONCRETO ARMADO UTILIZANDO AÇO CA-50 DE 12,5 MM - MONTAGEM. AF_06/2022 | E33: =VLOOKUP(C33,'SINAPI -TO'!$A$3:$D$7831,3,FALSE) -> KG | F33: =MC!H93 -> 84 | I33: =TRUNC(H33*(1+G33),2) -> 0 | J33: 0
A34: 20 | B34: SINAPI | C34: 94971 | D34: =VLOOKUP(C34,'SINAPI -TO'!$A$3:$D$7831,2,FALSE) -> CONCRETO FCK = 25MPA, TRAÇO 1:2,3:2,7 (EM MASSA SECA DE CIMENTO/ AREIA MÉDIA/ BRITA 1) - PREPARO MECÂNICO COM BETONEIRA 600 L. AF_05/2021 | E34: =VLOOKUP(C34,'SINAPI -TO'!$A$3:$D$7831,3,FALSE) -> M3 | F34: =MC!H97 -> 0.84 | I34: 0 | J34: =TRUNC(F34*I34,2) -> 0
D35: ALVENARIA | J35: =SUM(J36:J40) -> 0
A36: 21 | B36: SINAPI | C36: 103334 | D36: =VLOOKUP(C36,'SINAPI -TO'!$A$3:$D$7831,2,FALSE) -> ALVENARIA DE VEDAÇÃO DE BLOCOS CERÂMICOS FURADOS NA HORIZONTAL DE 14X9X19 CM (ESPESSURA 14 CM, BLOCO DEITADO) E ARGAMASSA DE ASSENTAMENTO COM PREPARO EM BETONEIRA. AF_12/2021 | E36: =VLOOKUP(C36,'SINAPI -TO'!$A$3:$D$7831,3,FALSE) -> M2 | F36: =MC!H102 -> 45.68 | I36: =TRUNC(H36*(1+G36),2) -> 0 | J36: 0
A37: 22 | B37: SINAPI | C37: 87893 | D37: =VLOOKUP(C37,'SINAPI -TO'!$A$3:$D$7831,2,FALSE) -> CHAPISCO APLICADO EM ALVENARIA (SEM PRESENÇA DE VÃOS) E ESTRUTURAS DE CONCRETO DE FACHADA, COM COLHER DE PEDREIRO. ARGAMASSA TRAÇO 1:3 COM PREPARO MANUAL. AF_10/2022 | E37: =VLOOKUP(C37,'SINAPI -TO'!$A$3:$D$7831,3,FALSE) -> M2 | F37: =MC!H111 -> 88 | I37: =TRUNC(H37*(1+G37),2) -> 0 | J37: 0
A38: 23 | B38: SINAPI | C38: 87529 | D38: =VLOOKUP(C38,'SINAPI -TO'!$A$3:$D$7831,2,FALSE) -> MASSA ÚNICA, EM ARGAMASSA TRAÇO 1:2:8, PREPARO MECÂNICO, APLICADA MANUALMENTE EM PAREDES INTERNAS DE AMBIENTES COM ÁREA ENTRE 5M² E 10M², E = 17,5MM, COM TALISCAS. AF_03/2024 | E38: =VLOOKUP(C38,'SINAPI -TO'!$A$3:$D$7831,3,FALSE) -> M2 | F38: =MC!H119 -> 88 | I38: 0 | J38: 0
A39: 24 | B39: Codevasf | C39: CPU-07 | D39: CHAPIM DE CONCRETO | E39: M2 | F39: =MC!H123 -> 19.36 | I39: 0 | J39: 0
A40: 25 | B40: SINAPI | C40: 95305 | D40: =VLOOKUP(C40,'SINAPI -TO'!$A$3:$D$7831,2,FALSE) -> TEXTURA ACRÍLICA, APLICAÇÃO MANUAL EM PAREDE, UMA DEMÃO. AF_04/2023 | E40: =VLOOKUP(C40,'SINAPI -TO'!$A$3:$D$7831,3,FALSE) -> M2 | F40: =MC!H128 -> 88 | I40: 0 | J40: =TRUNC(F40*I40,2) -> 0
D41: ALAMBRADO | J41: =SUM(J42:J43) -> 0
A42: 26 | B42: SINAPI | C42: 102364 | D42: =VLOOKUP(C42,'SINAPI -TO'!$A$3:$D$7831,2,FALSE) -> ALAMBRADO PARA QUADRA POLIESPORTIVA, ESTRUTURADO POR TUBOS DE ACO GALVANIZADO, (MONTANTES COM DIAMETRO 2", TRAVESSAS E ESCORAS COM DIÂMETRO 1 ¼"), COM TELA DE ARAME GALVANIZADO, FIO 10 BWG E MALHA QUADRADA 5X5CM (EXCETO MURETA). AF_03/2021 | E42: =VLOOKUP(C42,'SINAPI -TO'!$A$3:$D$7831,3,FALSE) -> M2 | F42: =MC!H133 -> 378.4 | I42: =TRUNC(H42*(1+G42),2) -> 0 | J42: 0
A43: 27 | B43: Codevasf | C43: CPU-08 | D43: PORTÃO DA QUADRA | E43: M2 | F43: =MC!H139 -> 8.8 | I43: 0 | J43: =TRUNC(F43*I43,2) -> 0
D44: PISO | J44: =J45+J51+J53 -> 0
D45: PISO DA QUADRA | J45: =SUM(J46:J50) -> 0
A46: 28 | B46: SINAPI | C46: 96622 | D46: =VLOOKUP(C46,'SINAPI -TO'!$A$3:$D$7831,2,FALSE) -> LASTRO COM MATERIAL GRANULAR, APLICADO EM PISOS OU LAJES SOBRE SOLO, ESPESSURA DE *5 CM*. AF_01/2024 | E46: =VLOOKUP(C46,'SINAPI -TO'!$A$3:$D$7831,3,FALSE) -> M3 | F46: =MC!H144 -> 11.52 | I46: =TRUNC(H46*(1+G46),2) -> 0 | J46: =TRUNC(F46*I46,2) -> 0
A47: 29 | B47: SINAPI | C47: 97087 | D47: =VLOOKUP(C47,'SINAPI -TO'!$A$3:$D$7831,2,FALSE) -> CAMADA SEPARADORA PARA EXECUÇÃO DE RADIER, PISO DE CONCRETO OU LAJE SOBRE SOLO, EM LONA PLÁSTICA. AF_09/2021 | E47: =VLOOKUP(C47,'SINAPI -TO'!$A$3:$D$7831,3,FALSE) -> M2 | F47: =MC!H148 -> 540 | I47: 0 | J47: 0
A48: 30 | B48: SINAPI | C48: 97088 | D48: =VLOOKUP(C48,'SINAPI -TO'!$A$3:$D$7831,2,FALSE) -> ARMAÇÃO PARA EXECUÇÃO DE RADIER, PISO DE CONCRETO OU LAJE SOBRE SOLO, COM USO DE TELA Q-92. AF_09/2021 | E48: =VLOOKUP(C48,'SINAPI -TO'!$A$3:$D$7831,3,FALSE) -> KG | F48: =MC!H152 -> 799.2 | I48: 0 | J48: 0
A49: 31 | B49: SINAPI | C49: 101747 | D49: =VLOOKUP(C49,'SINAPI -TO'!$A$3:$D$7831,2,FALSE) -> PISO EM CONCRETO 20 MPA PREPARO MECÂNICO, ESPESSURA 7CM. AF_09/2020 | E49: =VLOOKUP(C49,'SINAPI -TO'!$A$3:$D$7831,3,FALSE) -> M2 | F49: =MC!H156 -> 540 | I49: 0 | J49: 0
A50: 32 | B50: Codevasf | C50: CPU-09 | D50: JUNTA DE DILATAÇÃO DO PISO | E50: M | F50: =MC!H160 -> 72 | I50: 0 | J50: =TRUNC(F50*I50,2) -> 0
D51: PINTURA DO PISO | J51: =SUM(J52:J52) -> 0
A52: 33 | B52: SINAPI | C52: 102491 | D52: =VLOOKUP(C52,'SINAPI -TO'!$A$3:$D$7831,2,FALSE) -> PINTURA DE PISO COM TINTA ACRÍLICA, APLICAÇÃO MANUAL, 2 DEMÃOS, INCLUSO FUNDO PREPARADOR. AF_05/2021 | E52: =VLOOKUP(C52,'SINAPI -TO'!$A$3:$D$7831,3,FALSE) -> M2 | F52: =MC!H166 -> 540 | I52: =TRUNC(H52*(1+G52),2) -> 0 | J52: 0
D53: PISO DA ÁREA DE CIRCULAÇÃO | J53: =SUM(J54:J55) -> 0
A54: 34 | B54: SINAPI | C54: 93679 | D54: =VLOOKUP(C54,'SINAPI -TO'!$A$3:$D$7831,2,FALSE) -> EXECUÇÃO DE PASSEIO EM PISO INTERTRAVADO, COM BLOCO RETANGULAR COLORIDO DE 20 X 10 CM, ESPESSURA 6 CM. AF_10/2022 | E54: =VLOOKUP(C54,'SINAPI -TO'!$A$3:$D$7831,3,FALSE) -> M2 | F54: =MC!H171 -> 228.02 | I54: =TRUNC(H54*(1+G54),2) -> 0 | J54: =TRUNC(F54*I54,2) -> 0
A55: 35 | B55: SINAPI | C55: 94275 | D55: =VLOOKUP(C55,'SINAPI -TO'!$A$3:$D$7831,2,FALSE) -> ASSENTAMENTO DE GUIA (MEIO-FIO) EM TRECHO RETO, CONFECCIONADA EM CONCRETO PRÉ-FABRICADO, DIMENSÕES 100X15X13X20 CM (COMPRIMENTO X BASE INFERIOR X BASE SUPERIOR X ALTURA). AF_01/2024 | E55: =VLOOKUP(C55,'SINAPI -TO'!$A$3:$D$7831,3,FALSE) -> M | F55: =MC!H177 -> 116.6 | I55: 0 | J55: =TRUNC(F55*I55,2) -> 0
D56: ARQUIBANCADAS | J56: =J57+J62+J72 -> 0
D57: MOVIMENTAÇÃO DE TERRA | J57: =SUM(J58:J61) -> 0
A58: 36 | B58: SINAPI | C58: 93358 | D58: =VLOOKUP(C58,'SINAPI -TO'!$A$3:$D$7831,2,FALSE) -> ESCAVAÇÃO MANUAL DE VALA. AF_09/2024 | E58: =VLOOKUP(C58,'SINAPI -TO'!$A$3:$D$7831,3,FALSE) -> M3 | F58: =MC!H183 -> 23.6 | I58: =TRUNC(H58*(1+G58),2) -> 0 | J58: =TRUNC(F58*I58,2) -> 0
A59: 37 | B59: SINAPI | C59: 100975 | D59: =VLOOKUP(C59,'SINAPI -TO'!$A$3:$D$7831,2,FALSE) -> CARGA, MANOBRA E DESCARGA DE SOLOS E MATERIAIS GRANULARES EM CAMINHÃO BASCULANTE 14 M³ - CARGA COM PÁ CARREGADEIRA (CAÇAMBA DE 1,7 A 2,8 M³ / 128 HP) E DESCARGA LIVRE (UNIDADE: M3). AF_07/2020 | E59: =VLOOKUP(C59,'SINAPI -TO'!$A$3:$D$7831,3,FALSE) -> M3 | F59: =MC!H188 -> 23.6 | I59: 0 | J59: 0
A60: 38 | B60: SINAPI | C60: 101617 | D60: =VLOOKUP(C60,'SINAPI -TO'!$A$3:$D$7831,2,FALSE) -> PREPARO DE FUNDO DE VALA COM LARGURA MAIOR OU IGUAL A 1,5 M E MENOR QUE 2,5 M (ACERTO DO SOLO NATURAL). AF_08/2020 | E60: =VLOOKUP(C60,'SINAPI -TO'!$A$3:$D$7831,3,FALSE) -> M2 | F60: =MC!H192 -> 29.52 | I60: 0 | J60: 0
A61: 39 | B61: SINAPI | C61: 94342 | D61: =VLOOKUP(C61,'SINAPI -TO'!$A$3:$D$7831,2,FALSE) -> ATERRO MANUAL DE VALAS COM AREIA PARA ATERRO. AF_08/2023 | E61: =VLOOKUP(C61,'SINAPI -TO'!$A$3:$D$7831,3,FALSE) -> M3 | F61: =MC!H197 -> 28.32 | I61: 0 | J61: =TRUNC(F61*I61,2) -> 0
D62: ESTRUTURA E ALVENARIA | J62: =SUM(J63:J71) -> 0
A63: 40 | B63: SINAPI | C63: 103800 | D63: =VLOOKUP(C63,'SINAPI -TO'!$A$3:$D$7831,2,FALSE) -> PEDRA ARGAMASSADA COM CIMENTO E AREIA 1:3, 40% DE ARGAMASSA EM VOLUME - AREIA E PEDRA DE MÃO COMERCIAIS - FORNECIMENTO E ASSENTAMENTO. AF_08/2022 | E63: =VLOOKUP(C63,'SINAPI -TO'!$A$3:$D$7831,3,FALSE) -> M3 | F63: =MC!H205 -> 11.8 | I63: =TRUNC(H63*(1+G63),2) -> 0 | J63: 0
A64: 41 | B64: SINAPI | C64: 92427 | D64: =VLOOKUP(C64,'SINAPI -TO'!$A$3:$D$7831,2,FALSE) -> MONTAGEM E DESMONTAGEM DE FÔRMA DE PILARES RETANGULARES E ESTRUTURAS SIMILARES, PÉ-DIREITO SIMPLES, EM CHAPA DE MADEIRA COMPENSADA RESINADA, 8 UTILIZAÇÕES. AF_09/2020 | E64: =VLOOKUP(C64,'SINAPI -TO'!$A$3:$D$7831,3,FALSE) -> M2 | F64: =MC!H210 -> 22.4 | I64: 0 | J64: 0
A65: 42 | B65: SINAPI | C65: 92759 | D65: =VLOOKUP(C65,'SINAPI -TO'!$A$3:$D$7831,2,FALSE) -> ARMAÇÃO DE PILAR OU VIGA DE ESTRUTURA CONVENCIONAL DE CONCRETO ARMADO UTILIZANDO AÇO CA-60 DE 5,0 MM - MONTAGEM. AF_06/2022 | E65: =VLOOKUP(C65,'SINAPI -TO'!$A$3:$D$7831,3,FALSE) -> KG | F65: =MC!H216 -> 24.6 | I65: 0 | J65: 0
A66: 43 | B66: SINAPI | C66: 92762 | D66: =VLOOKUP(C66,'SINAPI -TO'!$A$3:$D$7831,2,FALSE) -> ARMAÇÃO DE PILAR OU VIGA DE ESTRUTURA CONVENCIONAL DE CONCRETO ARMADO UTILIZANDO AÇO CA-50 DE 10,0 MM - MONTAGEM. AF_06/2022 | E66: =VLOOKUP(C66,'SINAPI -TO'!$A$3:$D$7831,3,FALSE) -> KG | F66: =MC!H220 -> 123 | I66: 0 | J66: 0
A67: 44 | B67: SINAPI | C67: 92763 | D67: =VLOOKUP(C67,'SINAPI -TO'!$A$3:$D$7831,2,FALSE) -> ARMAÇÃO DE PILAR OU VIGA DE ESTRUTURA CONVENCIONAL DE CONCRETO ARMADO UTILIZANDO AÇO CA-50 DE 12,5 MM - MONTAGEM. AF_06/2022 | E67: =VLOOKUP(C67,'SINAPI -TO'!$A$3:$D$7831,3,FALSE) -> KG | F67: =MC!H224 -> 123 | I67: =TRUNC(H67*(1+G67),2) -> 0 | J67: 0
A68: 45 | B68: SINAPI | C68: 94971 | D68: =VLOOKUP(C68,'SINAPI -TO'!$A$3:$D$7831,2,FALSE) -> CONCRETO FCK = 25MPA, TRAÇO 1:2,3:2,7 (EM MASSA SECA DE CIMENTO/ AREIA MÉDIA/ BRITA 1) - PREPARO MECÂNICO COM BETONEIRA 600 L. AF_05/2021 | E68: =VLOOKUP(C68,'SINAPI -TO'!$A$3:$D$7831,3,FALSE) -> M3 | F68: =MC!H228 -> 1.23 | I68: 0 | J68: 0
A69: 46 | B69: SINAPI | C69: 103327 | D69: =VLOOKUP(C69,'SINAPI -TO'!$A$3:$D$7831,2,FALSE) -> ALVENARIA DE VEDAÇÃO DE BLOCOS CERÂMICOS FURADOS NA VERTICAL DE 19X19X39 CM (ESPESSURA 19 CM) E ARGAMASSA DE ASSENTAMENTO COM PREPARO MANUAL. AF_12/2021 | E69: =VLOOKUP(C69,'SINAPI -TO'!$A$3:$D$7831,3,FALSE) -> M2 | F69: =MC!H234 -> 87.46 | I69: 0 | J69: 0
A70: 47 | B70: SINAPI | C70: 96620 | D70: =VLOOKUP(C70,'SINAPI -TO'!$A$3:$D$7831,2,FALSE) -> LASTRO DE CONCRETO MAGRO, APLICADO EM PISOS, LAJES SOBRE SOLO OU RADIERS. AF_01/2024 | E70: =VLOOKUP(C70,'SINAPI -TO'!$A$3:$D$7831,3,FALSE) -> M3 | F70: =MC!H246 -> 1.46 | I70: 0 | J70: 0
A71: 48 | B71: SINAPI | C71: 97088 | D71: =VLOOKUP(C71,'SINAPI -TO'!$A$3:$D$7831,2,FALSE) -> ARMAÇÃO PARA EXECUÇÃO DE RADIER, PISO DE CONCRETO OU LAJE SOBRE SOLO, COM USO DE TELA Q-92. AF_09/2021 | E71: =VLOOKUP(C71,'SINAPI -TO'!$A$3:$D$7831,3,FALSE) -> KG | F71: =MC!H251 -> 141.69 | I71: 0 | J71: =TRUNC(F71*I71,2) -> 0
D72: REVESTIMENTO | J72: =SUM(J73:J76) -> 0
A73: 49 | B73: SINAPI | C73: 98682 | D73: =VLOOKUP(C73,'SINAPI -TO'!$A$3:$D$7831,2,FALSE) -> PISO CIMENTADO, TRAÇO 1:3 (CIMENTO E AREIA), ACABAMENTO RÚSTICO, ESPESSURA 3,0 CM, PREPARO MECÂNICO DA ARGAMASSA. AF_09/2020 | E73: =VLOOKUP(C73,'SINAPI -TO'!$A$3:$D$7831,3,FALSE) -> M2 | F73: =MC!H256 -> 39.36 | I73: =TRUNC(H73*(1+G73),2) -> 0 | J73: 0
A74: 50 | B74: SINAPI | C74: 87878 | D74: =VLOOKUP(C74,'SINAPI -TO'!$A$3:$D$7831,2,FALSE) -> CHAPISCO APLICADO EM ALVENARIAS E ESTRUTURAS DE CONCRETO INTERNAS, COM COLHER DE PEDREIRO. ARGAMASSA TRAÇO 1:3 COM PREPARO MANUAL. AF_10/2022 | E74: =VLOOKUP(C74,'SINAPI -TO'!$A$3:$D$7831,3,FALSE) -> M2 | F74: =MC!H261 -> 104.4 | I74: 0 | J74: 0
A75: 51 | B75: SINAPI | C75: 87543 | D75: =VLOOKUP(C75,'SINAPI -TO'!$A$3:$D$7831,2,FALSE) -> MASSA ÚNICA, EM ARGAMASSA INDUSTRIALIZADA, PREPARO MECÂNICO, APLICADA COM EQUIPAMENTO DE MISTURA E PROJEÇÃO DE ARGAMASSA EM PAREDES INTERNAS, E = 5MM, SEM TALISCAS. AF_03/2024 | E75: =VLOOKUP(C75,'SINAPI -TO'!$A$3:$D$7831,3,FALSE) -> M2 | F75: =MC!H269 -> 104.4 | I75: 0 | J75: 0
A76: 52 | B76: SINAPI | C76: 102492 | D76: =VLOOKUP(C76,'SINAPI -TO'!$A$3:$D$7831,2,FALSE) -> PINTURA DE PISO COM TINTA ACRÍLICA, APLICAÇÃO MANUAL, 3 DEMÃOS, INCLUSO FUNDO PREPARADOR. AF_05/2021 | E76: =VLOOKUP(C76,'SINAPI -TO'!$A$3:$D$7831,3,FALSE) -> M2 | F76: =MC!H277 -> 104.4 | I76: 0 | J76: 0
D77: INSTALAÇÕES ELÉTRICAS | J77: =J78+J82+J86+J90+J94+J99+J102 -> 0
D78: VALAS PARA ELETRODUTOS | J78: =SUM(J79:J81) -> 0
A79: 53 | B79: SINAPI | C79: 93358 | D79: =VLOOKUP(C79,'SINAPI -TO'!$A$3:$D$7831,2,FALSE) -> ESCAVAÇÃO MANUAL DE VALA. AF_09/2024 | E79: =VLOOKUP(C79,'SINAPI -TO'!$A$3:$D$7831,3,FALSE) -> M3 | F79: =MC!H287 -> 1.25 | I79: =TRUNC(H79*(1+G79),2) -> 0 | J79: =TRUNC(F79*I79,2) -> 0
A80: 54 | B80: SINAPI | C80: 100323 | D80: =VLOOKUP(C80,'SINAPI -TO'!$A$3:$D$7831,2,FALSE) -> LASTRO COM MATERIAL GRANULAR (AREIA MÉDIA), APLICADO EM PISOS OU LAJES SOBRE SOLO, ESPESSURA DE *10 CM*. AF_01/2024 | E80: =VLOOKUP(C80,'SINAPI -TO'!$A$3:$D$7831,3,FALSE) -> M3 | F80: =MC!H291 -> 0.25 | I80: 0 | J80: 0
A81: 55 | B81: SINAPI | C81: 93382 | D81: =VLOOKUP(C81,'SINAPI -TO'!$A$3:$D$7831,2,FALSE) -> REATERRO MANUAL DE VALAS, COM COMPACTADOR DE SOLOS DE PERCUSSÃO. AF_08/2023 | E81: =VLOOKUP(C81,'SINAPI -TO'!$A$3:$D$7831,3,FALSE) -> M3 | F81: =MC!H295 -> 1 | I81: 0 | J81: 0
D82: ELETRODUTOS E CONEXOS | J82: =SUM(J83:J85) -> 0
A83: 56 | B83: SINAPI | C83: 97667 | D83: =VLOOKUP(C83,'SINAPI -TO'!$A$3:$D$7831,2,FALSE) -> ELETRODUTO FLEXÍVEL CORRUGADO, PEAD, DN 50 (1 1/2"), PARA REDE ENTERRADA DE DISTRIBUIÇÃO DE ENERGIA ELÉTRICA - FORNECIMENTO E INSTALAÇÃO. AF_12/2021 | E83: =VLOOKUP(C83,'SINAPI -TO'!$A$3:$D$7831,3,FALSE) -> M | F83: =MC!H301 -> 8.37 | I83: =TRUNC(H83*(1+G83),2) -> 0 | J83: =TRUNC(F83*I83,2) -> 0
A84: 57 | B84: SINAPI | C84: 91864 | D84: =VLOOKUP(C84,'SINAPI -TO'!$A$3:$D$7831,2,FALSE) -> ELETRODUTO RÍGIDO ROSCÁVEL, PVC, DN 32 MM (1"), PARA CIRCUITOS TERMINAIS, INSTALADO EM FORRO - FORNECIMENTO E INSTALAÇÃO. AF_03/2023 | E84: =VLOOKUP(C84,'SINAPI -TO'!$A$3:$D$7831,3,FALSE) -> M | F84: =MC!H305 -> 9.21 | I84: 0 | J84: 0
A85: 58 | B85: SINAPI | C85: 91867 | D85: =VLOOKUP(C85,'SINAPI -TO'!$A$3:$D$7831,2,FALSE) -> ELETRODUTO RÍGIDO ROSCÁVEL, PVC, DN 25 MM (3/4"), PARA CIRCUITOS TERMINAIS, INSTALADO EM LAJE - FORNECIMENTO E INSTALAÇÃO. AF_03/2023 | E85: =VLOOKUP(C85,'SINAPI -TO'!$A$3:$D$7831,3,FALSE) -> M | F85: =MC!H309 -> 161.25 | I85: 0 | J85: 0
D86: QUADROS/CAIXAS | J86: =SUM(J87:J89) -> 0
A87: 59 | B87: SINAPI | C87: 101946 | D87: =VLOOKUP(C87,'SINAPI -TO'!$A$3:$D$7831,2,FALSE) -> QUADRO DE MEDIÇÃO GERAL DE ENERGIA PARA 1 MEDIDOR DE SOBREPOR - FORNECIMENTO E INSTALAÇÃO. AF_10/2020 | E87: =VLOOKUP(C87,'SINAPI -TO'!$A$3:$D$7831,3,FALSE) -> UN | F87: =MC!H314 -> 1 | I87: =TRUNC(H87*(1+G87),2) -> 0 | J87: =TRUNC(F87*I87,2) -> 0
A88: 60 | B88: SINAPI | C88: 97892 | D88: =VLOOKUP(C88,'SINAPI -TO'!$A$3:$D$7831,2,FALSE) -> CAIXA ENTERRADA ELÉTRICA RETANGULAR, EM ALVENARIA COM BLOCOS DE CONCRETO, FUNDO COM BRITA, DIMENSÕES INTERNAS: 0,6X0,6X0,6 M. AF_12/2020 | E88: =VLOOKUP(C88,'SINAPI -TO'!$A$3:$D$7831,3,FALSE) -> UN | F88: =MC!H318 -> 1 | I88: 0 | J88: 0
A89: 61 | B89: SINAPI | C89: 101875 | D89: =VLOOKUP(C89,'SINAPI -TO'!$A$3:$D$7831,2,FALSE) -> QUADRO DE DISTRIBUIÇÃO DE ENERGIA EM CHAPA DE AÇO GALVANIZADO, DE EMBUTIR, COM BARRAMENTO TRIFÁSICO, PARA 12 DISJUNTORES DIN 100A - FORNECIMENTO E INSTALAÇÃO. AF_10/2020 | E89: =VLOOKUP(C89,'SINAPI -TO'!$A$3:$D$7831,3,FALSE) -> UN | F89: =MC!H322 -> 1 | I89: 0 | J89: =TRUNC(F89*I89,2) -> 0
D90: FIOS/CABOS/ACESSÓRIOS | J90: =SUM(J91:J93) -> 0
A91: 62 | B91: SINAPI | C91: 91927 | D91: =VLOOKUP(C91,'SINAPI -TO'!$A$3:$D$7831,2,FALSE) -> CABO DE COBRE FLEXÍVEL ISOLADO, 2,5 MM², ANTI-CHAMA 0,6/1,0 KV, PARA CIRCUITOS TERMINAIS - FORNECIMENTO E INSTALAÇÃO. AF_03/2023 | E91: =VLOOKUP(C91,'SINAPI -TO'!$A$3:$D$7831,3,FALSE) -> M | F91: =MC!H327 -> 897.4 | I91: =TRUNC(H91*(1+G91),2) -> 0 | J91: 0
A92: 63 | B92: SINAPI | C92: 91931 | D92: =VLOOKUP(C92,'SINAPI -TO'!$A$3:$D$7831,2,FALSE) -> CABO DE COBRE FLEXÍVEL ISOLADO, 6 MM², ANTI-CHAMA 0,6/1,0 KV, PARA CIRCUITOS TERMINAIS - FORNECIMENTO E INSTALAÇÃO. AF_03/2023 | E92: =VLOOKUP(C92,'SINAPI -TO'!$A$3:$D$7831,3,FALSE) -> M | F92: =MC!H331 -> 15 | I92: 0 | J92: 0
A93: 64 | B93: SINAPI | C93: 96985 | D93: =VLOOKUP(C93,'SINAPI -TO'!$A$3:$D$7831,2,FALSE) -> HASTE DE ATERRAMENTO, DIÂMETRO 5/8", COM 3 METROS - FORNECIMENTO E INSTALAÇÃO. AF_08/2023 | E93: =VLOOKUP(C93,'SINAPI -TO'!$A$3:$D$7831,3,FALSE) -> UN | F93: =MC!H335 -> 3 | I93: 0 | J93: 0
D94: BASES/ CHAVES/ DISJUNTORES | J94: =SUM(J95:J98) -> 0
A95: 65 | B95: SINAPI | C95: 93653 | D95: =VLOOKUP(C95,'SINAPI -TO'!$A$3:$D$7831,2,FALSE) -> DISJUNTOR MONOPOLAR TIPO DIN, CORRENTE NOMINAL DE 10A - FORNECIMENTO E INSTALAÇÃO. AF_10/2020 | E95: =VLOOKUP(C95,'SINAPI -TO'!$A$3:$D$7831,3,FALSE) -> UN | F95: =MC!H340 -> 8 | I95: =TRUNC(H95*(1+G95),2) -> 0 | J95: 0
A96: 66 | B96: SINAPI | C96: 93657 | D96: =VLOOKUP(C96,'SINAPI -TO'!$A$3:$D$7831,2,FALSE) -> DISJUNTOR MONOPOLAR TIPO DIN, CORRENTE NOMINAL DE 32A - FORNECIMENTO E INSTALAÇÃO. AF_10/2020 | E96: =VLOOKUP(C96,'SINAPI -TO'!$A$3:$D$7831,3,FALSE) -> UN | F96: =MC!H344 -> 1 | I96: 0 | J96: 0
A97: 67 | B97: SINAPI | C97: 93658 | D97: =VLOOKUP(C97,'SINAPI -TO'!$A$3:$D$7831,2,FALSE) -> DISJUNTOR MONOPOLAR TIPO DIN, CORRENTE NOMINAL DE 40A - FORNECIMENTO E INSTALAÇÃO. AF_10/2020 | E97: =VLOOKUP(C97,'SINAPI -TO'!$A$3:$D$7831,3,FALSE) -> UN | F97: =MC!H348 -> 2 | I97: 0 | J97: 0
A98: 68 | B98: SINAPI-I | C98: 39471 | D98: =VLOOKUP($C98,'SINAPI TO - INSUMOS'!$A$3:$D$7831,2,FALSE) -> DISPOSITIVO DPS CLASSE II, 1 POLO, TENSAO MAXIMA DE 275 V, CORRENTE MAXIMA DE *45* KA (TIPO AC) | E98: UN | F98: =MC!H352 -> 2 | I98: 0 | J98: =TRUNC(F98*I98,2) -> 0
D99: POSTES | J99: =SUM(J100:J101) -> 0
A100: 69 | B100: SINAPI | C100: 100599 | D100: =VLOOKUP(C100,'SINAPI -TO'!$A$3:$D$7831,2,FALSE) -> ASSENTAMENTO DE POSTE DE CONCRETO COM COMPRIMENTO NOMINAL DE 9 M, CARGA NOMINAL DE 150 DAN, ENGASTAMENTO BASE CONCRETADA COM 1 M DE CONCRETO E 0,5 M DE SOLO (NÃO INCLUI FORNECIMENTO). AF_11/2019 | E100: =VLOOKUP(C100,'SINAPI -TO'!$A$3:$D$7831,3,FALSE) -> UN | F100: =MC!H357 -> 1 | I100: =TRUNC(H100*(1+G100),2) -> 0 | J100: 0
A101: 70 | B101: SINAPI-I | C101: 41196 | D101: =VLOOKUP($C101,'SINAPI TO - INSUMOS'!$A$3:$D$7831,2,FALSE) -> POSTE DE CONCRETO ARMADO DE SECAO DUPLO T, EXTENSAO DE 9,00 M, RESISTENCIA DE 150 DAN, TIPO D | E101: UN | F101: =MC!H361 -> 1 | I101: 0 | J101: 0
D102: LUMINÁRIAS E ACESSÓRIOS | J102: =J103 -> 0
A103: 71 | B103: Codevasf | C103: CPU-10 | D103: REFLETOR SLIM LED 200W DE POTÊNCIA, BRANCO FRIO, 6500K, AUTOVOLT, MARCA G-LIGHT OU SIMILIAR | E103: UN | F103: =MC!H366 -> 24 | I103: =TRUNC(H103*(1+G103),2) -> 0 | J103: 0
D104: COBERTURA | J104: =J105+J119+J126+J128 -> 0
D105: FUNDAÇÃO DA COBERTURA | J105: =SUM(J106:J118) -> 0
A106: 72 | B106: SINAPI | C106: 96527 | D106: =VLOOKUP(C106,'SINAPI -TO'!$A$3:$D$7831,2,FALSE) -> ESCAVAÇÃO MANUAL PARA VIGA BALDRAME OU SAPATA CORRIDA (INCLUINDO ESCAVAÇÃO PARA COLOCAÇÃO DE FÔRMAS). AF_01/2024 | E106: =VLOOKUP(C106,'SINAPI -TO'!$A$3:$D$7831,3,FALSE) -> M3 | F106: =MC!H372 -> 88.84 | I106: =TRUNC(H106*(1+G106),2) -> 0 | J106: =TRUNC(F106*I106,2) -> 0
A107: 73 | B107: SINAPI | C107: 101616 | D107: =VLOOKUP(C107,'SINAPI -TO'!$A$3:$D$7831,2,FALSE) -> PREPARO DE FUNDO DE VALA COM LARGURA MENOR QUE 1,5 M (ACERTO DO SOLO NATURAL). AF_08/2020 | E107: =VLOOKUP(C107,'SINAPI -TO'!$A$3:$D$7831,3,FALSE) -> M2 | F107: =MC!H378 -> 48 | I107: =TRUNC(H107*(1+G107),2) -> 0 | J107: 0
A108: 74 | B108: SINAPI | C108: 101617 | D108: =VLOOKUP(C108,'SINAPI -TO'!$A$3:$D$7831,2,FALSE) -> PREPARO DE FUNDO DE VALA COM LARGURA MAIOR OU IGUAL A 1,5 M E MENOR QUE 2,5 M (ACERTO DO SOLO NATURAL). AF_08/2020 | E108: =VLOOKUP(C108,'SINAPI -TO'!$A$3:$D$7831,3,FALSE) -> M2 | F108: =MC!H382 -> 21.06 | I108: 0 | J108: 0
A109: 75 | B109: SINAPI | C109: 93382 | D109: =VLOOKUP(C109,'SINAPI -TO'!$A$3:$D$7831,2,FALSE) -> REATERRO MANUAL DE VALAS, COM COMPACTADOR DE SOLOS DE PERCUSSÃO. AF_08/2023 | E109: =VLOOKUP(C109,'SINAPI -TO'!$A$3:$D$7831,3,FALSE) -> M3 | F109: =MC!H387 -> 47.41 | I109: =TRUNC(H109*(1+G109),2) -> 0 | J109: 0
A110: 76 | B110: SINAPI | C110: 96536 | D110: =VLOOKUP(C110,'SINAPI -TO'!$A$3:$D$7831,2,FALSE) -> FABRICAÇÃO, MONTAGEM E DESMONTAGEM DE FÔRMA PARA VIGA BALDRAME, EM MADEIRA SERRADA, E=25 MM, 4 UTILIZAÇÕES. AF_01/2024 | E110: =VLOOKUP(C110,'SINAPI -TO'!$A$3:$D$7831,3,FALSE) -> M2 | F110: =MC!H392 -> 125.16 | I110: =TRUNC(H110*(1+G110),2) -> 0 | J110: 0
A111: 77 | B111: SINAPI | C111: 96535 | D111: =VLOOKUP(C111,'SINAPI -TO'!$A$3:$D$7831,2,FALSE) -> FABRICAÇÃO, MONTAGEM E DESMONTAGEM DE FÔRMA PARA SAPATA, EM MADEIRA SERRADA, E=25 MM, 4 UTILIZAÇÕES. AF_01/2024 | E111: =VLOOKUP(C111,'SINAPI -TO'!$A$3:$D$7831,3,FALSE) -> M2 | F111: =MC!H397 -> 57.6 | I111: =TRUNC(H111*(1+G111),2) -> 0 | J111: 0
A112: 78 | B112: SINAPI | C112: 96543 | D112: =VLOOKUP(C112,'SINAPI -TO'!$A$3:$D$7831,2,FALSE) -> ARMAÇÃO DE BLOCO UTILIZANDO AÇO CA-60 DE 5 MM - MONTAGEM. AF_01/2024 | E112: =VLOOKUP(C112,'SINAPI -TO'!$A$3:$D$7831,3,FALSE) -> KG | F112: =MC!H401 -> 747.75 | I112: 0 | J112: 0
A113: 79 | B113: SINAPI | C113: 104918 | D113: =VLOOKUP(C113,'SINAPI -TO'!$A$3:$D$7831,2,FALSE) -> ARMAÇÃO DE SAPATA ISOLADA, VIGA BALDRAME E SAPATA CORRIDA UTILIZANDO AÇO CA-50 DE 8 MM - MONTAGEM. AF_01/2024 | E113: =VLOOKUP(C113,'SINAPI -TO'!$A$3:$D$7831,3,FALSE) -> KG | F113: =MC!H406 -> 3567 | I113: =TRUNC(H113*(1+G113),2) -> 0 | J113: 0
A114: 80 | B114: SINAPI | C114: 104919 | D114: =VLOOKUP(C114,'SINAPI -TO'!$A$3:$D$7831,2,FALSE) -> ARMAÇÃO DE SAPATA ISOLADA, VIGA BALDRAME E SAPATA CORRIDA UTILIZANDO AÇO CA-50 DE 10 MM - MONTAGEM. AF_01/2024 | E114: =VLOOKUP(C114,'SINAPI -TO'!$A$3:$D$7831,3,FALSE) -> KG | F114: =MC!H411 -> 3567 | I114: =TRUNC(H114*(1+G114),2) -> 0 | J114: 0
A115: 81 | B115: SINAPI | C115: 104920 | D115: =VLOOKUP(C115,'SINAPI -TO'!$A$3:$D$7831,2,FALSE) -> ARMAÇÃO DE BLOCO, SAPATA ISOLADA, VIGA BALDRAME E SAPATA CORRIDA UTILIZANDO AÇO CA-50 DE 12,5 MM - MONTAGEM. AF_01/2024 | E115: =VLOOKUP(C115,'SINAPI -TO'!$A$3:$D$7831,3,FALSE) -> KG | F115: =MC!H416 -> 1783.5 | I115: =TRUNC(H115*(1+G115),2) -> 0 | J115: 0
A116: 82 | B116: SINAPI | C116: 104921 | D116: =VLOOKUP(C116,'SINAPI -TO'!$A$3:$D$7831,2,FALSE) -> ARMAÇÃO DE BLOCO, SAPATA ISOLADA, VIGA BALDRAME E SAPATA CORRIDA UTILIZANDO AÇO CA-50 DE 16 MM - MONTAGEM. AF_01/2024 | E116: =VLOOKUP(C116,'SINAPI -TO'!$A$3:$D$7831,3,FALSE) -> KG | F116: =MC!H421 -> 1783.5 | I116: =TRUNC(H116*(1+G116),2) -> 0 | J116: 0
A117: 83 | B117: SINAPI | C117: 96556 | D117: =VLOOKUP(C117,'SINAPI -TO'!$A$3:$D$7831,2,FALSE) -> CONCRETAGEM DE SAPATA, FCK 30 MPA, COM USO DE JERICA - LANÇAMENTO, ADENSAMENTO E ACABAMENTO. AF_01/2024 | E117: =VLOOKUP(C117,'SINAPI -TO'!$A$3:$D$7831,3,FALSE) -> M3 | F117: =MC!H426 -> 28.8 | I117: 0 | J117: 0
A118: 84 | B118: SINAPI | C118: 96557 | D118: =VLOOKUP(C118,'SINAPI -TO'!$A$3:$D$7831,2,FALSE) -> CONCRETAGEM DE BLOCO DE COROAMENTO OU VIGA BALDRAME, FCK 30 MPA, COM USO DE BOMBA - LANÇAMENTO, ADENSAMENTO E ACABAMENTO. AF_01/2024 | E118: =VLOOKUP(C118,'SINAPI -TO'!$A$3:$D$7831,3,FALSE) -> M3 | F118: =MC!H430 -> 12.63 | I118: =TRUNC(H118*(1+G118),2) -> 0 | J118: =TRUNC(F118*I118,2) -> 0
D119: PILARES | J119: =SUM(J120:J125) -> 0
A120: 85 | B120: SINAPI | C120: 92427 | D120: =VLOOKUP(C120,'SINAPI -TO'!$A$3:$D$7831,2,FALSE) -> MONTAGEM E DESMONTAGEM DE FÔRMA DE PILARES RETANGULARES E ESTRUTURAS SIMILARES, PÉ-DIREITO SIMPLES, EM CHAPA DE MADEIRA COMPENSADA RESINADA, 8 UTILIZAÇÕES. AF_09/2020 | E120: =VLOOKUP(C120,'SINAPI -TO'!$A$3:$D$7831,3,FALSE) -> M2 | F120: =MC!H436 -> 144 | I120: =TRUNC(H120*(1+G120),2) -> 0 | J120: 0
A121: 86 | B121: SINAPI | C121: 92759 | D121: =VLOOKUP(C121,'SINAPI -TO'!$A$3:$D$7831,2,FALSE) -> ARMAÇÃO DE PILAR OU VIGA DE ESTRUTURA CONVENCIONAL DE CONCRETO ARMADO UTILIZANDO AÇO CA-60 DE 5,0 MM - MONTAGEM. AF_06/2022 | E121: =VLOOKUP(C121,'SINAPI -TO'!$A$3:$D$7831,3,FALSE) -> KG | F121: =MC!H441 -> 345.6 | I121: 0 | J121: 0
A122: 87 | B122: SINAPI | C122: 92762 | D122: =VLOOKUP(C122,'SINAPI -TO'!$A$3:$D$7831,2,FALSE) -> ARMAÇÃO DE PILAR OU VIGA DE ESTRUTURA CONVENCIONAL DE CONCRETO ARMADO UTILIZANDO AÇO CA-50 DE 10,0 MM - MONTAGEM. AF_06/2022 | E122: =VLOOKUP(C122,'SINAPI -TO'!$A$3:$D$7831,3,FALSE) -> KG | F122: =MC!H445 -> 1728 | I122: =TRUNC(H122*(1+G122),2) -> 0 | J122: 0
A123: 88 | B123: SINAPI | C123: 92763 | D123: =VLOOKUP(C123,'SINAPI -TO'!$A$3:$D$7831,2,FALSE) -> ARMAÇÃO DE PILAR OU VIGA DE ESTRUTURA CONVENCIONAL DE CONCRETO ARMADO UTILIZANDO AÇO CA-50 DE 12,5 MM - MONTAGEM. AF_06/2022 | E123: =VLOOKUP(C123,'SINAPI -TO'!$A$3:$D$7831,3,FALSE) -> KG | F123: =MC!H449 -> 1209.6 | I123: 0 | J123: 0
A124: 89 | B124: SINAPI | C124: 92764 | D124: =VLOOKUP(C124,'SINAPI -TO'!$A$3:$D$7831,2,FALSE) -> ARMAÇÃO DE PILAR OU VIGA DE ESTRUTURA CONVENCIONAL DE CONCRETO ARMADO UTILIZANDO AÇO CA-50 DE 16,0 MM - MONTAGEM. AF_06/2022 | E124: =VLOOKUP(C124,'SINAPI -TO'!$A$3:$D$7831,3,FALSE) -> KG | F124: =MC!H453 -> 864 | I124: =TRUNC(H124*(1+G124),2) -> 0 | J124: 0
A125: 90 | B125: SINAPI | C125: 103669 | D125: =VLOOKUP(C125,'SINAPI -TO'!$A$3:$D$7831,2,FALSE) -> CONCRETAGEM DE PILARES, FCK = 25 MPA, COM USO DE BALDES - LANÇAMENTO, ADENSAMENTO E ACABAMENTO. AF_02/2022 | E125: =VLOOKUP(C125,'SINAPI -TO'!$A$3:$D$7831,3,FALSE) -> M3 | F125: =MC!H457 -> 17.28 | I125: 0 | J125: =TRUNC(F125*I125,2) -> 0
D126: ESTRUTURA METÁLICA | J126: =J127 -> 0
A127: 91 | B127: SINAPI | C127: 100773 | D127: =VLOOKUP(C127,'SINAPI -TO'!$A$3:$D$7831,2,FALSE) -> ESTRUTURA TRELIÇADA DE COBERTURA, TIPO ARCO, COM LIGAÇÕES SOLDADAS, INCLUSOS PERFIS METÁLICOS, CHAPAS METÁLICAS, MÃO DE OBRA E TRANSPORTE COM GUINDASTE - FORNECIMENTO E INSTALAÇÃO. AF_01/2020_PSA | E127: =VLOOKUP(C127,'SINAPI -TO'!$A$3:$D$7831,3,FALSE) -> KG | F127: =MC!H462 -> 14969.88 | I127: =TRUNC(H127*(1+G127),2) -> 0 | J127: 0
D128: TELHAS | J128: =J129 -> 0
A129: 92 | B129: SINAPI | C129: 94213 | D129: =VLOOKUP(C129,'SINAPI -TO'!$A$3:$D$7831,2,FALSE) -> TELHAMENTO COM TELHA DE AÇO/ALUMÍNIO E = 0,5 MM, COM ATÉ 2 ÁGUAS, INCLUSO IÇAMENTO. AF_07/2019 | E129: =VLOOKUP(C129,'SINAPI -TO'!$A$3:$D$7831,3,FALSE) -> M2 | F129: =MC!H467 -> 831.66 | I129: =TRUNC(H129*(1+G129),2) -> 0 | J129: 0
D130: INSTALAÇÕES PLUVIAIS | J130: =SUM(J131:J134) -> 0
A131: 93 | B131: SINAPI | C131: 94229 | D131: =VLOOKUP(C131,'SINAPI -TO'!$A$3:$D$7831,2,FALSE) -> CALHA EM CHAPA DE AÇO GALVANIZADO NÚMERO 24, DESENVOLVIMENTO DE 100 CM, INCLUSO TRANSPORTE VERTICAL. AF_07/2019 | E131: =VLOOKUP(C131,'SINAPI -TO'!$A$3:$D$7831,3,FALSE) -> M | F131: =MC!H472 -> 66.8 | I131: =TRUNC(H131*(1+G131),2) -> 0 | J131: 0
A132: 94 | B132: SINAPI-I | C132: 11708 | D132: =VLOOKUP($C132,'SINAPI TO - INSUMOS'!$A$3:$D$7831,2,FALSE) -> RALO FOFO SEMIESFERICO, 100 MM, PARA LAJES/ CALHAS | E132: UN | F132: =MC!H476 -> 8 | I132: 0 | J132: 0
A133: 95 | B133: Codevasf | C133: CPU-11 | D133: INSTALAÇÃO DE TUBOS DE PVC | E133: M | F133: =MC!H480 -> 55 | I133: 0 | J133: 0
A134: 96 | B134: SINAPI | C134: 99253 | D134: =VLOOKUP(C134,'SINAPI -TO'!$A$3:$D$7831,2,FALSE) -> CAIXA ENTERRADA HIDRÁULICA RETANGULAR EM ALVENARIA COM TIJOLOS CERÂMICOS MACIÇOS, DIMENSÕES INTERNAS: 0,6X0,6X0,6 M PARA REDE DE DRENAGEM. AF_12/2020 | E134: =VLOOKUP(C134,'SINAPI -TO'!$A$3:$D$7831,3,FALSE) -> UN | F134: =MC!H484 -> 8 | I134: 0 | J134: =TRUNC(F134*I134,2) -> 0
D135: LIMPEZA DA OBRA | J135: =SUM(J136) -> 0
A136: 97 | B136: Codevasf | C136: CPU-18 | D136: LIMPEZA DE PISO EM ÁREA URBANIZADA | E136: M2 | F136: =MC!H489 -> 831.66 | I136: =TRUNC(H136*(1+G136),2) -> 0 | J136: =TRUNC(F136*I136,2) -> 0
A137: VALOR TOTAL DO MÓDULO MÍNIMO | J137: =J135+J130+J104+J77+J56+J44+J20+J18+J16+J14+J9+J7 -> 0

Sheet MC
A1: CONTRATAÇÃO DE SERVIÇOS DE CONSTRUÇÃO DE ESPAÇOS MULTIUSO COBERTOS EM DIVERSOS MUNICÍPIOS INSERIDOS NA ÁREA DE ATUAÇÃO DA CODEVASF, NO ESTADO DO TOCANTINS. | J1: QTD. DE MÓDULOS | K1: 30
A2: MEMÓRIA DE CÁLCULO
A3: ITEM | B3: DESCRIÇÃO | D3: VARIÁVEIS | H3: QTD. MODULO MÍNIMO | I3: TOTAL MÓDULOS | J3: QUANT TOTAL | K3: UNIDADE
B4: ='P. O. MÓDULO MÍNIMO'!D7 -> PROJETO EXECUTIVO
A5: 1 | B5: =VLOOKUP(MC!A5,'P. O. MÓDULO MÍNIMO'!$A$7:$D$136,4) -> PROJETO EXECUTIVO
A6: > | B6: Observação | C6: Fórmula Aplicada e Variáveis | D6: Var. 1 | E6: Var. 2 | F6: Var. 3 | G6: Var. 4 | H6: =H7 -> 1 | I6: =VLOOKUP(A5,'P. O. MÓDULO MÍNIMO'!$A$7:$E$136,5) -> UN | J6: =J7 -> 30 | K6: =VLOOKUP(A5,'P. O. MÓDULO MÍNIMO'!$A$7:$E$136,5) -> UN
A7: > | C7: Qtd. (unid.) | D7: 1 | H7: =TRUNC(PRODUCT(D7,E7,F7,G7),2) -> 1 | I7: =$K$1 -> 30 | J7: =ROUND(H7*I7,2) -> 30
B9: ='P. O. MÓDULO MÍNIMO'!D9 -> SERVIÇOS PRELIMINARES
A10: 2 | B10: =VLOOKUP(MC!A10,'P. O. MÓDULO MÍNIMO'!$A$7:$D$136,4) -> ADMINISTRAÇÃO LOCAL
A11: > | B11: Observação | C11: Fórmula Aplicada e Variáveis | D11: Var. 1 | E11: Var. 2 | F11: Var. 3 | G11: Var. 4 | H11: =H12 -> 1 | I11: =VLOOKUP(A10,'P. O. MÓDULO MÍNIMO'!$A$7:$E$136,5) -> UN | J11: =J12 -> 30 | K11: =VLOOKUP(A10,'P. O. MÓDULO MÍNIMO'!$A$7:$E$136,5) -> UN
A12: > | C12: Qtd. (unid.) | D12: 1 | H12: =TRUNC(PRODUCT(D12,E12,F12,G12),2) -> 1 | I12: =$K$1 -> 30 | J12: =ROUND(H12*I12,2) -> 30
A14: 3 | B14: =VLOOKUP(MC!A14,'P. O. MÓDULO MÍNIMO'!$A$7:$D$136,4) -> MOBILIZAÇÃO E DESMOBILIZAÇÃO
A15: > | B15: Observação | C15: Fórmula Aplicada e Variáveis | D15: Var. 1 | E15: Var. 2 | F15: Var. 3 | G15: Var. 4 | H15: =H16 -> 2 | I15: =VLOOKUP(A14,'P. O. MÓDULO MÍNIMO'!$A$7:$E$136,5) -> UN | J15: =J16 -> 60 | K15: =VLOOKUP(A14,'P. O. MÓDULO MÍNIMO'!$A$7:$E$136,5) -> UN
A16: > | C16: Qtd. (unid.) | D16: 2 | H16: =TRUNC(PRODUCT(D16,E16,F16,G16),2) -> 2 | I16: =$K$1 -> 30 | J16: =ROUND(H16*I16,2) -> 60
A18: 4 | B18: =VLOOKUP(MC!A18,'P. O. MÓDULO MÍNIMO'!$A$7:$D$136,4) -> CANTEIRO DE OBRAS E ALMOXARIFADO
A19: > | B19: Observação | C19: Fórmula Aplicada e Variáveis | D19: Var. 1 | E19: Var. 2 | F19: Var. 3 | G19: Var. 4 | H19: =H20 -> 1 | I19: =VLOOKUP(A18,'P. O. MÓDULO MÍNIMO'!$A$7:$E$136,5) -> UN | J19: =J20 -> 30 | K19: =VLOOKUP(A18,'P. O. MÓDULO MÍNIMO'!$A$7:$E$136,5) -> UN
A20: > | C20: Qtd. (unid.) | D20: 1 | H20: =TRUNC(PRODUCT(D20,E20,F20,G20),2) -> 1 | I20: =$K$1 -> 30 | J20: =ROUND(H20*I20,2) -> 30
A22: 5 | B22: =VLOOKUP(MC!A22,'P. O. MÓDULO MÍNIMO'!$A$7:$D$136,4) -> PLACA DE OBRA EM CHAPA DE AÇO GALVANIZADO
A23: > | B23: Observação | C23: Fórmula Aplicada e Variáveis | D23: Var. 1 | E23: Var. 2 | F23: Var. 3 | G23: Var. 4 | H23: =H24 -> 6 | I23: =VLOOKUP(A22,'P. O. MÓDULO MÍNIMO'!$A$7:$E$136,5) -> M2 | J23: =J24 -> 180 | K23: =VLOOKUP(A22,'P. O. MÓDULO MÍNIMO'!$A$7:$E$136,5) -> M2
A24: > | C24: L1(m) x L2(m) | D24: 3 | E24: 2 | H24: =TRUNC(PRODUCT(D24,E24,F24,G24),2) -> 6 | I24: =$K$1 -> 30 | J24: =ROUND(H24*I24,2) -> 180
B26: ='P. O. MÓDULO MÍNIMO'!D14 -> PREPARAÇÃO DO TERRENO
A27: 6 | B27: =VLOOKUP(MC!A27,'P. O. MÓDULO MÍNIMO'!$A$7:$D$136,4) -> RASPAGEM E LIMPEZA DO TERRENO
A28: > | B28: Observação | C28: Fórmula Aplicada e Variáveis | D28: Var. 1 | E28: Var. 2 | F28: Var. 3 | G28: Var. 4 | H28: =H29 -> 831.66 | I28: =VLOOKUP(A27,'P. O. MÓDULO MÍNIMO'!$A$7:$E$136,5) -> M2 | J28: =J29 -> 24949.8 | K28: =VLOOKUP(A27,'P. O. MÓDULO MÍNIMO'!$A$7:$E$136,5) -> M2
A29: > | C29: L1(m) x L2(m) | D29: 33.4 | E29: 24.9 | H29: =TRUNC(PRODUCT(D29,E29,F29,G29),2) -> 831.66 | I29: =$K$1 -> 30 | J29: =ROUND(H29*I29,2) -> 24949.8
B31: ='P. O. MÓDULO MÍNIMO'!D16 -> LOCAÇÃO DA OBRA
A32: 7 | B32: =VLOOKUP(MC!A32,'P. O. MÓDULO MÍNIMO'!$A$7:$D$136,4) -> LOCAÇÃO CONVENCIONAL DE OBRA, UTILIZANDO GABARITO DE TÁBUAS CORRIDAS PONTALETADAS A CADA 2,00M - 2 UTILIZAÇÕES. AF_03/2024
A33: > | B33: Observação | C33: Fórmula Aplicada e Variáveis | D33: Var. 1 | E33: Var. 2 | F33: Var. 3 | G33: Var. 4 | H33: =SUM(H34:H34) -> 116.6 | I33: =VLOOKUP(A32,'P. O. MÓDULO MÍNIMO'!$A$7:$E$136,5) -> M | J33: =SUM(J34:J34) -> 3498 | K33: =VLOOKUP(A32,'P. O. MÓDULO MÍNIMO'!$A$7:$E$136,5) -> M
A34: > | B34: Quadra | C34: L1(m) + L2(m) + L3(m) + L4(m) | D34: 33.4 | E34: 24.9 | F34: 33.4 | G34: 24.9 | H34: =TRUNC(SUM(D34,E34,F34,G34),2) -> 116.6 | I34: =$K$1 -> 30 | J34: =ROUND(H34*I34,2) -> 3498
B36: ='P. O. MÓDULO MÍNIMO'!D18 -> REGULARIZAÇÃO DO TERRENO
A37: 8 | B37: =VLOOKUP(MC!A37,'P. O. MÓDULO MÍNIMO'!$A$7:$D$136,4) -> REGULARIZAÇÃO E COMPACTAÇÃO DE SUBLEITO DE SOLO PREDOMINANTEMENTE ARGILOSO, PARA OBRAS DE CONSTRUÇÃO DE PAVIMENTOS. AF_09/2024
A38: > | B38: Observação | C38: Fórmula Aplicada e Variáveis | D38: Var. 1 | E38: Var. 2 | F38: Var. 3 | G38: Var. 4 | H38: =SUM(H39:H42) -> 831.66 | I38: =VLOOKUP(A37,'P. O. MÓDULO MÍNIMO'!$A$7:$E$136,5) -> M2 | J38: =SUM(J39:J42) -> 24949.8 | K38: =VLOOKUP(A37,'P. O. MÓDULO MÍNIMO'!$A$7:$E$136,5) -> M2
A39: > | C39: L1(m) x L2(m) | D39: 33.4 | E39: 24.9 | H39: =TRUNC(PRODUCT(D39,E39,F39,G39),2) -> 831.66 | I39: =$K$1 -> 30 | J39: =ROUND(H39*I39,2) -> 24949.8
B41: ='P. O. MÓDULO MÍNIMO'!D20 -> MURETA E ALAMBRADO
B42: ='P. O. MÓDULO MÍNIMO'!D21 -> FUNDAÇÃO DA MURETA
A43: 9 | B43: =VLOOKUP(MC!A43,'P. O. MÓDULO MÍNIMO'!$A$7:$D$136,4) -> ESCAVAÇÃO MANUAL DE VALA. AF_09/2024
A44: > | B44: Observação | C44: Fórmula Aplicada e Variáveis | D44: Var. 1 | E44: Var. 2 | F44: Var. 3 | G44: Var. 4 | H44: =SUM(H45:H46) -> 23.23 | I44: =VLOOKUP(A43,'P. O. MÓDULO MÍNIMO'!$A$7:$E$136,5) -> M3 | J44: =SUM(J45:J46) -> 696.9 | K44: =VLOOKUP(A43,'P. O. MÓDULO MÍNIMO'!$A$7:$E$136,5) -> M3
A45: > | B45: Eixo X | C45: L1(m) x L2(m) x H(m) x Qtd. | D45: 0.4 | E45: 30.4 | F45: 0.6 | G45: 2 | H45: =TRUNC(PRODUCT(D45,E45,F45,G45),2) -> 14.59 | I45: =$K$1 -> 30 | J45: =ROUND(H45*I45,2) -> 437.7
A46: > | B46: Eixo Y | C46: L1(m) x L2(m) x H(m) x Qtd. | D46: 0.4 | E46: 18 | F46: 0.6 | G46: 2 | H46: =TRUNC(PRODUCT(D46,E46,F46,G46),2) -> 8.64 | I46: =$K$1 -> 30 | J46: =ROUND(H46*I46,2) -> 259.2
A48: 10 | B48: =VLOOKUP(MC!A48,'P. O. MÓDULO MÍNIMO'!$A$7:$D$136,4) -> CARGA, MANOBRA E DESCARGA DE SOLOS E MATERIAIS GRANULARES EM CAMINHÃO BASCULANTE 6 M³ - CARGA COM ESCAVADEIRA HIDRÁULICA (CAÇAMBA DE 1,20 M³ / 155 HP) E DESCARGA LIVRE (UNIDADE: M3). AF_07/2020
A49: > | B49: Observação | C49: Fórmula Aplicada e Variáveis | D49: Var. 1 | E49: Var. 2 | F49: Var. 3 | G49: Var. 4 | H49: =SUM(H50:H50) -> 23.23 | I49: =VLOOKUP(A48,'P. O. MÓDULO MÍNIMO'!$A$7:$E$136,5) -> M3 | J49: =SUM(J50:J50) -> 696.9 | K49: =VLOOKUP(A48,'P. O. MÓDULO MÍNIMO'!$A$7:$E$136,5) -> M3
A50: > | B50: Mesmo volume da escavação | C50: Volume(m³) | D50: =$H$44 -> 23.23 | H50: =TRUNC(PRODUCT(D50,E50,F50,G50),2) -> 23.23 | I50: =$K$1 -> 30 | J50: =ROUND(H50*I50,2) -> 696.9
A52: 11 | B52: =VLOOKUP(MC!A52,'P. O. MÓDULO MÍNIMO'!$A$7:$D$136,4) -> TRANSPORTE COM CAMINHÃO BASCULANTE DE 6 M³, EM VIA URBANA PAVIMENTADA, DMT ATÉ 30 KM (UNIDADE: M3XKM). AF_07/2020
A53: > | B53: Observação | C53: Fórmula Aplicada e Variáveis | D53: Var. 1 | E53: Var. 2 | F53: Var. 3 | G53: Var. 4 | H53: =SUM(H54:H54) -> 116.15 | I53: =VLOOKUP(A52,'P. O. MÓDULO MÍNIMO'!$A$7:$E$136,5) -> M3XKM | J53: =SUM(J54:J54) -> 3484.5 | K53: =VLOOKUP(A52,'P. O. MÓDULO MÍNIMO'!$A$7:$E$136,5) -> M3XKM
A54: > | B54: DMT estimada, ajustar após o projeto executivo | C54: Vol(m³) x DMT(km) | D54: =$H$44 -> 23.23 | E54: 5 | H54: =TRUNC(PRODUCT(D54,E54,F54,G54),2) -> 116.15 | I54: =$K$1 -> 30 | J54: =ROUND(H54*I54,2) -> 3484.5
A56: 12 | B56: =VLOOKUP(MC!A56,'P. O. MÓDULO MÍNIMO'!$A$7:$D$136,4) -> PREPARO DE FUNDO DE VALA COM LARGURA MENOR QUE 1,5 M (ACERTO DO SOLO NATURAL). AF_08/2020
A57: > | B57: Observação | C57: Fórmula Aplicada e Variáveis | D57: Var. 1 | E57: Var. 2 | F57: Var. 3 | G57: Var. 4 | H57: =SUM(H58:H59) -> 38.72 | I57: =VLOOKUP(A56,'P. O. MÓDULO MÍNIMO'!$A$7:$E$136,5) -> M2 | J57: =SUM(J58:J59) -> 1161.6 | K57: =VLOOKUP(A56,'P. O. MÓDULO MÍNIMO'!$A$7:$E$136,5) -> M2
A58: > | B58: Eixo X | C58: L1(m) x L2(m) x Qtd. | D58: 0.4 | E58: 30.4 | F58: 2 | H58: =TRUNC(PRODUCT(D58,E58,F58,G58),2) -> 24.32 | I58: =$K$1 -> 30 | J58: =ROUND(H58*I58,2) -> 729.6
A59: > | B59: Eixo Y | C59: L1(m) x L2(m) x Qtd. | D59: 0.4 | E59: 18 | F59: 2 | H59: =TRUNC(PRODUCT(D59,E59,F59,G59),2) -> 14.4 | I59: =$K$1 -> 30 | J59: =ROUND(H59*I59,2) -> 432
A61: 13 | B61: =VLOOKUP(MC!A61,'P. O. MÓDULO MÍNIMO'!$A$7:$D$136,4) -> PEDRA ARGAMASSADA COM CIMENTO E AREIA 1:3, 40% DE ARGAMASSA EM VOLUME - AREIA E PEDRA DE MÃO COMERCIAIS - FORNECIMENTO E ASSENTAMENTO. AF_08/2022
A62: > | B62: Observação | C62: Fórmula Aplicada e Variáveis | D62: Var. 1 | E62: Var. 2 | F62: Var. 3 | G62: Var. 4 | H62: =SUM(H63:H64) -> 15.48 | I62: =VLOOKUP(A61,'P. O. MÓDULO MÍNIMO'!$A$7:$E$136,5) -> M3 | J62: =SUM(J63:J64) -> 464.4 | K62: =VLOOKUP(A61,'P. O. MÓDULO MÍNIMO'!$A$7:$E$136,5) -> M3
A63: > | B63: Eixo X | C63: L1(m) x L2(m) x H(m) x Qtd. | D63: 0.4 | E63: 30.4 | F63: 0.4 | G63: 2 | H63: =TRUNC(PRODUCT(D63,E63,F63,G63),2) -> 9.72 | I63: =$K$1 -> 30 | J63: =ROUND(H63*I63,2) -> 291.6
A64: > | B64: Eixo Y | C64: L1(m) x L2(m) x H(m) x Qtd. | D64: 0.4 | E64: 18 | F64: 0.4 | G64: 2 | H64: =TRUNC(PRODUCT(D64,E64,F64,G64),2) -> 5.76 | I64: =$K$1 -> 30 | J64: =ROUND(H64*I64,2) -> 172.8
A66: 14 | B66: =VLOOKUP(MC!A66,'P. O. MÓDULO MÍNIMO'!$A$7:$D$136,4) -> CINTA DE AMARRAÇÃO DE ALVENARIA MOLDADA IN LOCO COM UTILIZAÇÃO DE BLOCOS CANALETA, ESPESSURA DE *20* CM. AF_03/2024
A67: > | B67: Observação | C67: Fórmula Aplicada e Variáveis | D67: Var. 1 | E67: Var. 2 | F67: Var. 3 | G67: Var. 4 | H67: =SUM(H68:H69) -> 96.8 | I67: =VLOOKUP(A66,'P. O. MÓDULO MÍNIMO'!$A$7:$E$136,5) -> M | J67: =SUM(J68:J69) -> 2904 | K67: =VLOOKUP(A66,'P. O. MÓDULO MÍNIMO'!$A$7:$E$136,5) -> M
A68: > | B68: Eixo X | C68: L1(m) x Qtd. | D68: 30.4 | E68: 2 | H68: =TRUNC(PRODUCT(D68,E68,F68,G68),2) -> 60.8 | I68: =$K$1 -> 30 | J68: =ROUND(H68*I68,2) -> 1824
A69: > | B69: Eixo Y | C69: L1(m) x Qtd. | D69: 18 | E69: 2 | H69: =TRUNC(PRODUCT(D69,E69,F69,G69),2) -> 36 | I69: =$K$1 -> 30 | J69: =ROUND(H69*I69,2) -> 1080
A71: 15 | B71: =VLOOKUP(MC!A71,'P. O. MÓDULO MÍNIMO'!$A$7:$D$136,4) -> IMPERMEABILIZAÇÃO DE SUPERFÍCIE COM ARGAMASSA POLIMÉRICA / MEMBRANA ACRÍLICA, 3 DEMÃOS. AF_09/2023
A72: > | B72: Observação | C72: Fórmula Aplicada e Variáveis | D72: Var. 1 | E72: Var. 2 | F72: Var. 3 | G72: Var. 4 | H72: =SUM(H73:H76) -> 77.44 | I72: =VLOOKUP(A71,'P. O. MÓDULO MÍNIMO'!$A$7:$E$136,5) -> M2 | J72: =SUM(J73:J76) -> 2323.2 | K72: =VLOOKUP(A71,'P. O. MÓDULO MÍNIMO'!$A$7:$E$136,5) -> M2
A73: > | C73: L1(m) x H(m) x lados x Qtd. | D73: 30.4 | E73: 0.3 | F73: 2 | G73: 2 | H73: =TRUNC(PRODUCT(D73,E73,F73,G73),2) -> 36.48 | I73: =$K$1 -> 30 | J73: =ROUND(H73*I73,2) -> 1094.4
A74: > | C74: L1(m) x H(m) x lados x Qtd. | D74: 18 | E74: 0.3 | F74: 2 | G74: 2 | H74: =TRUNC(PRODUCT(D74,E74,F74,G74),2) -> 21.6 | I74: =$K$1 -> 30 | J74: =ROUND(H74*I74,2) -> 648
A75: > | C75: L1(m) x L2(m) x Qtd. | D75: 30.4 | E75: 0.2 | F75: 2 | H75: =TRUNC(PRODUCT(D75,E75,F75,G75),2) -> 12.16 | I75: 30 | J75: 364.8
A76: > | C76: L1(m) x L2(m) x Qtd. | D76: 18 | E76: 0.2 | F76: 2 | H76: =TRUNC(PRODUCT(D76,E76,F76,G76),2) -> 7.2 | I76: 30 | J76: 216
B78: ='P. O. MÓDULO MÍNIMO'!D29 -> PILARETES DE SUSTENTAÇÃO
A79: 16 | B79: =VLOOKUP(MC!A79,'P. O. MÓDULO MÍNIMO'!$A$7:$D$136,4) -> MONTAGEM E DESMONTAGEM DE FÔRMA DE PILARES RETANGULARES E ESTRUTURAS SIMILARES, PÉ-DIREITO SIMPLES, EM CHAPA DE MADEIRA COMPENSADA RESINADA, 8 UTILIZAÇÕES. AF_09/2020
A80: > | B80: Observação | C80: Fórmula Aplicada e Variáveis | D80: Var. 1 | E80: Var. 2 | F80: Var. 3 | G80: Var. 4 | H80: =SUM(H81:H82) -> 16.8 | I80: =VLOOKUP(A79,'P. O. MÓDULO MÍNIMO'!$A$7:$E$136,5) -> M2 | J80: =SUM(J81:J82) -> 504 | K80: =VLOOKUP(A79,'P. O. MÓDULO MÍNIMO'!$A$7:$E$136,5) -> M2
A81: > | B81: Eixo X | C81: L1(m) x L2(m) x Qtd. X Fator | D81: 0.2 | E81: 0.7 | F81: 20 | G81: 4 | H81: =TRUNC(PRODUCT(D81,E81,F81,G81),2) -> 11.2 | I81: =$K$1 -> 30 | J81: =ROUND(H81*I81,2) -> 336
A82: > | B82: Eixo Y | C82: L1(m) x L2(m) x Qtd. X Fator | D82: 0.2 | E82: 0.7 | F82: 10 | G82: 4 | H82: =TRUNC(PRODUCT(D82,E82,F82,G82),2) -> 5.6 | I82: =$K$1 -> 30 | J82: =ROUND(H82*I82,2) -> 168
A84: 17 | B84: =VLOOKUP(MC!A84,'P. O. MÓDULO MÍNIMO'!$A$7:$D$136,4) -> ARMAÇÃO DE PILAR OU VIGA DE ESTRUTURA CONVENCIONAL DE CONCRETO ARMADO UTILIZANDO AÇO CA-60 DE 5,0 MM - MONTAGEM. AF_06/2022
A85: > | B85: Observação | C85: Fórmula Aplicada e Variáveis | D85: Var. 1 | E85: Var. 2 | F85: Var. 3 | G85: Var. 4 | H85: =SUM(H86:H86) -> 16.8 | I85: =VLOOKUP(A84,'P. O. MÓDULO MÍNIMO'!$A$7:$E$136,5) -> KG | J85: =SUM(J86:J86) -> 504 | K85: =VLOOKUP(A84,'P. O. MÓDULO MÍNIMO'!$A$7:$E$136,5) -> KG
A86: > | B86: Consumo estimado, ajustar após o projeto executivo | C86: Consumo (kg/m³) x Volume (m³) | D86: 20 | E86: =$H$97 -> 0.84 | H86: =TRUNC(PRODUCT(D86,E86,F86,G86),2) -> 16.8 | I86: =$K$1 -> 30 | J86: =ROUND(H86*I86,2) -> 504
A88: 18 | B88: =VLOOKUP(MC!A88,'P. O. MÓDULO MÍNIMO'!$A$7:$D$136,4) -> ARMAÇÃO DE PILAR OU VIGA DE ESTRUTURA CONVENCIONAL DE CONCRETO ARMADO UTILIZANDO AÇO CA-50 DE 10,0 MM - MONTAGEM. AF_06/2022
A89: > | B89: Observação | C89: Fórmula Aplicada e Variáveis | D89: Var. 1 | E89: Var. 2 | F89: Var. 3 | G89: Var. 4 | H89: =SUM(H90:H90) -> 84 | I89: =VLOOKUP(A88,'P. O. MÓDULO MÍNIMO'!$A$7:$E$136,5) -> KG | J89: =SUM(J90:J90) -> 2520 | K89: =VLOOKUP(A88,'P. O. MÓDULO MÍNIMO'!$A$7:$E$136,5) -> KG
A90: > | B90: Consumo estimado, ajustar após o projeto executivo | C90: Consumo (kg/m³) x Volume (m³) | D90: 100 | E90: =$H$97 -> 0.84 | H90: =TRUNC(PRODUCT(D90,E90,F90,G90),2) -> 84 | I90: =$K$1 -> 30 | J90: =ROUND(H90*I90,2) -> 2520
A92: 19 | B92: =VLOOKUP(MC!A92,'P. O. MÓDULO MÍNIMO'!$A$7:$D$136,4) -> ARMAÇÃO DE PILAR OU VIGA DE ESTRUTURA CONVENCIONAL DE CONCRETO ARMADO UTILIZANDO AÇO CA-50 DE 12,5 MM - MONTAGEM. AF_06/2022
A93: > | B93: Observação | C93: Fórmula Aplicada e Variáveis | D93: Var. 1 | E93: Var. 2 | F93: Var. 3 | G93: Var. 4 | H93: =SUM(H94:H94) -> 84 | I93: =VLOOKUP(A92,'P. O. MÓDULO MÍNIMO'!$A$7:$E$136,5) -> KG | J93: =SUM(J94:J94) -> 2520 | K93: =VLOOKUP(A92,'P. O. MÓDULO MÍNIMO'!$A$7:$E$136,5) -> KG
A94: > | B94: Consumo estimado, ajustar após o projeto executivo | C94: Consumo (kg/m³) x Volume (m³) | D94: 100 | E94: =$H$97 -> 0.84 | H94: =TRUNC(PRODUCT(D94,E94,F94,G94),2) -> 84 | I94: =$K$1 -> 30 | J94: =ROUND(H94*I94,2) -> 2520
A96: 20 | B96: =VLOOKUP(MC!A96,'P. O. MÓDULO MÍNIMO'!$A$7:$D$136,4) -> CONCRETO FCK = 25MPA, TRAÇO 1:2,3:2,7 (EM MASSA SECA DE CIMENTO/ AREIA MÉDIA/ BRITA 1) - PREPARO MECÂNICO COM BETONEIRA 600 L. AF_05/2021
A97: > | B97: Observação | C97: Fórmula Aplicada e Variáveis | D97: Var. 1 | E97: Var. 2 | F97: Var. 3 | G97: Var. 4 | H97: =SUM(H98:H98) -> 0.84 | I97: =VLOOKUP(A96,'P. O. MÓDULO MÍNIMO'!$A$7:$E$136,5) -> M3 | J97: =SUM(J98:J98) -> 25.2 | K97: =VLOOKUP(A96,'P. O. MÓDULO MÍNIMO'!$A$7:$E$136,5) -> M3
A98: > | C98: L1(m) x L2(m) x H(m) x Qtd. | D98: 0.2 | E98: 0.2 | F98: 0.7 | G98: 30 | H98: =TRUNC(PRODUCT(D98,E98,F98,G98),2) -> 0.84 | I98: =$K$1 -> 30 | J98: =ROUND(H98*I98,2) -> 25.2
B100: ='P. O. MÓDULO MÍNIMO'!D35 -> ALVENARIA
A101: 21 | B101: =VLOOKUP(MC!A101,'P. O. MÓDULO MÍNIMO'!$A$7:$D$136,4) -> ALVENARIA DE VEDAÇÃO DE BLOCOS CERÂMICOS FURADOS NA HORIZONTAL DE 14X9X19 CM (ESPESSURA 14 CM, BLOCO DEITADO) E ARGAMASSA DE ASSENTAMENTO COM PREPARO EM BETONEIRA. AF_12/2021
A102: > | B102: Observação | C102: Fórmula Aplicada e Variáveis | D102: Var. 1 | E102: Var. 2 | F102: Var. 3 | G102: Var. 4 | H102: =SUM(H103:H106)-H107-H108 -> 45.68 | I102: =VLOOKUP(A101,'P. O. MÓDULO MÍNIMO'!$A$7:$E$136,5) -> M2 | J102: =SUM(J103:J106)-J107-J108 -> 1370.4 | K102: =VLOOKUP(A101,'P. O. MÓDULO MÍNIMO'!$A$7:$E$136,5) -> M2
A103: > | B103: Eixo X | C103: L1(m) x H(m) x Qtd. | D103: 30.4 | E103: 0.2 | F103: 2 | H103: =TRUNC(PRODUCT(D103,E103,F103,G103),2) -> 12.16 | I103: =$K$1 -> 30 | J103: =ROUND(H103*I103,2) -> 364.8
A104: > | B104: Eixo Y | C104: L1(m) x H(m) x Qtd. | D104: 18 | E104: 0.2 | F104: 2 | H104: 7.2 | I104: 30 | J104: 216
A105: > | B105: Eixo X | C105: L1(m) x H(m) x Qtd. | D105: 30.4 | E105: 0.4 | F105: 2 | H105: 24.32 | I105: 30 | J105: 729.6
A106: > | B106: Eixo Y | C106: L1(m) x H(m) x Qtd. | D106: 18 | E106: 0.4 | F106: 2 | H106: 14.4 | I106: 30 | J106: 432
A107: > | B107: Desconto da área dos pilaretes | C107: L1(m) x H(m) x Qtd. | D107: 0.2 | E107: 0.6 | F107: 30 | H107: 3.6 | I107: 30 | J107: 108
A108: > | B108: Desconto da área dos portões | C108: L1(m) x H(m) x Qtd. | D108: 2 | E108: 2.2 | F108: 2 | H108: 8.8 | I108: 30 | J108: 264
A110: 22 | B110: =VLOOKUP(MC!A110,'P. O. MÓDULO MÍNIMO'!$A$7:$D$136,4) -> CHAPISCO APLICADO EM ALVENARIA (SEM PRESENÇA DE VÃOS) E ESTRUTURAS DE CONCRETO DE FACHADA, COM COLHER DE PEDREIRO. ARGAMASSA TRAÇO 1:3 COM PREPARO MANUAL. AF_10/2022
A111: > | B111: Observação | C111: Fórmula Aplicada e Variáveis | D111: Var. 1 | E111: Var. 2 | F111: Var. 3 | G111: Var. 4 | H111: =SUM(H112:H115)-H116 -> 88 | I111: =VLOOKUP(A110,'P. O. MÓDULO MÍNIMO'!$A$7:$E$136,5) -> M2 | J111: =SUM(J112:J115)-J116 -> 2640 | K111: =VLOOKUP(A110,'P. O. MÓDULO MÍNIMO'!$A$7:$E$136,5) -> M2
A112: > | B112: Eixo X - face externa | C112: L1(m) x H(m) x Qtd. | D112: 30.4 | E112: 0.5 | F112: 2 | H112: =TRUNC(PRODUCT(D112,E112,F112,G112),2) -> 30.4 | I112: =$K$1 -> 30 | J112: =ROUND(H112*I112,2) -> 912
A113: > | B113: Eixo Y - face externa | C113: L1(m) x H(m) x Qtd. | D113: 18.4 | E113: 0.5 | F113: 2 | H113: =TRUNC(PRODUCT(D113,E113,F113,G113),2) -> 18.4 | I113: =$K$1 -> 30 | J113: =ROUND(H113*I113,2) -> 552
A114: > | B114: Eixo X - face interna | C114: L1(m) x H(m) x Qtd. | D114: 30 | E114: 0.5 | F114: 2 | H114: =TRUNC(PRODUCT(D114,E114,F114,G114),2) -> 30 | I114: =$K$1 -> 30 | J114: =ROUND(H114*I114,2) -> 900
A115: > | B115: Eixo Y - face interna | C115: L1(m) x H(m) x Qtd. | D115: 18 | E115: 0.5 | F115: 2 | H115: =TRUNC(PRODUCT(D115,E115,F115,G115),2) -> 18 | I115: =$K$1 -> 30 | J115: =ROUND(H115*I115,2) -> 540
A116: > | B116: Desconto da área dos portões | C116: L1(m) x H(m) x Qtd. | D116: 2 | E116: 2.2 | F116: 2 | H116: =TRUNC(PRODUCT(D116,E116,F116,G116),2) -> 8.8 | I116: =$K$1 -> 30 | J116: =ROUND(H116*I116,2) -> 264
A118: 23 | B118: =VLOOKUP(MC!A118,'P. O. MÓDULO MÍNIMO'!$A$7:$D$136,4) -> MASSA ÚNICA, EM ARGAMASSA TRAÇO 1:2:8, PREPARO MECÂNICO, APLICADA MANUALMENTE EM PAREDES INTERNAS DE AMBIENTES COM ÁREA ENTRE 5M² E 10M², E = 17,5MM, COM TALISCAS. AF_03/2024
A119: > | B119: Observação | C119: Fórmula Aplicada e Variáveis | D119: Var. 1 | E119: Var. 2 | F119: Var. 3 | G119: Var. 4 | H119: =SUM(H120:H120) -> 88 | I119: =VLOOKUP(A118,'P. O. MÓDULO MÍNIMO'!$A$7:$E$136,5) -> M2 | J119: =SUM(J120:J120) -> 2640 | K119: =VLOOKUP(A118,'P. O. MÓDULO MÍNIMO'!$A$7:$E$136,5) -> M2
A120: > | B120: Mesma área do chapisco | C120: área (m²) | D120: =H111 -> 88 | H120: =TRUNC(PRODUCT(D120,E120,F120,G120),2) -> 88 | I120: =$K$1 -> 30 | J120: =ROUND(H120*I120,2) -> 2640
A122: 24 | B122: =VLOOKUP(MC!A122,'P. O. MÓDULO MÍNIMO'!$A$7:$D$136,4) -> CHAPIM DE CONCRETO
A123: > | B123: Observação | C123: Fórmula Aplicada e Variáveis | D123: Var. 1 | E123: Var. 2 | F123: Var. 3 | G123: Var. 4 | H123: =SUM(H124:H125) -> 19.36 | I123: =VLOOKUP(A122,'P. O. MÓDULO MÍNIMO'!$A$7:$E$136,5) -> M2 | J123: =SUM(J124:J125) -> 580.8 | K123: =VLOOKUP(A122,'P. O. MÓDULO MÍNIMO'!$A$7:$E$136,5) -> M2
A124: > | B124: Eixo X | C124: L1(m) x L2(m) x Qtd. | D124: 0.2 | E124: 30.4 | F124: 2 | H124: =TRUNC(PRODUCT(D124,E124,F124,G124),2) -> 12.16 | I124: =$K$1 -> 30 | J124: =ROUND(H124*I124,2) -> 364.8
A125: > | B125: Eixo Y | C125: L1(m) x L2(m) x Qtd. | D125: 0.2 | E125: 18 | F125: 2 | H125: =TRUNC(PRODUCT(D125,E125,F125,G125),2) -> 7.2 | I125: =$K$1 -> 30 | J125: =ROUND(H125*I125,2) -> 216
A127: 25 | B127: =VLOOKUP(MC!A127,'P. O. MÓDULO MÍNIMO'!$A$7:$D$136,4) -> TEXTURA ACRÍLICA, APLICAÇÃO MANUAL EM PAREDE, UMA DEMÃO. AF_04/2023
A128: > | B128: Observação | C128: Fórmula Aplicada e Variáveis | D128: Var. 1 | E128: Var. 2 | F128: Var. 3 | G128: Var. 4 | H128: =SUM(H129:H129) -> 88 | I128: =VLOOKUP(A127,'P. O. MÓDULO MÍNIMO'!$A$7:$E$136,5) -> M2 | J128: =SUM(J129:J129) -> 2640 | K128: =VLOOKUP(A127,'P. O. MÓDULO MÍNIMO'!$A$7:$E$136,5) -> M2
A129: > | B129: Mesma área do chapisco | C129: área (m²) | D129: =$H$119 -> 88 | H129: =TRUNC(PRODUCT(D129,E129,F129,G129),2) -> 88 | I129: =$K$1 -> 30 | J129: =ROUND(H129*I129,2) -> 2640
B131: ='P. O. MÓDULO MÍNIMO'!D41 -> ALAMBRADO
A132: 26 | B132: =VLOOKUP(MC!A132,'P. O. MÓDULO MÍNIMO'!$A$7:$D$136,4) -> ALAMBRADO PARA QUADRA POLIESPORTIVA, ESTRUTURADO POR TUBOS DE ACO GALVANIZADO, (MONTANTES COM DIAMETRO 2", TRAVESSAS E ESCORAS COM DIÂMETRO 1 ¼"), COM TELA DE ARAME GALVANIZADO, FIO 10 BWG E MALHA QUADRADA 5X5CM (EXCETO MURETA). AF_03/2021
A133: > | B133: Observação | C133: Fórmula Aplicada e Variáveis | D133: Var. 1 | E133: Var. 2 | F133: Var. 3 | G133: Var. 4 | H133: =SUM(H134:H135)-H136 -> 378.4 | I133: =VLOOKUP(A132,'P. O. MÓDULO MÍNIMO'!$A$7:$E$136,5) -> M2 | J133: =SUM(J134:J135)-J136 -> 11352 | K133: =VLOOKUP(A132,'P. O. MÓDULO MÍNIMO'!$A$7:$E$136,5) -> M2
A134: > | B134: Eixo X | C134: L1(m) x H(m) x Qtd. | D134: 18.2 | E134: 4 | F134: 2 | H134: =TRUNC(PRODUCT(D134,E134,F134,G134),2) -> 145.6 | I134: =$K$1 -> 30 | J134: =ROUND(H134*I134,2) -> 4368
A135: > | B135: Eixo Y | C135: L1(m) x H(m) x Qtd. | D135: 30.2 | E135: 4 | F135: 2 | H135: =TRUNC(PRODUCT(D135,E135,F135,G135),2) -> 241.6 | I135: =$K$1 -> 30 | J135: =ROUND(H135*I135,2) -> 7248
A136: > | B136: Desconto da área dos portões | C136: L1(m) x H(m) x Qtd. | D136: 2 | E136: 2.2 | F136: 2 | H136: =TRUNC(PRODUCT(D136,E136,F136,G136),2) -> 8.8 | I136: =$K$1 -> 30 | J136: =ROUND(H136*I136,2) -> 264
A138: 27 | B138: =VLOOKUP(MC!A138,'P. O. MÓDULO MÍNIMO'!$A$7:$D$136,4) -> PORTÃO DA QUADRA
A139: > | B139: Observação | C139: Fórmula Aplicada e Variáveis | D139: Var. 1 | E139: Var. 2 | F139: Var. 3 | G139: Var. 4 | H139: =SUM(H140:H140) -> 8.8 | I139: =VLOOKUP(A138,'P. O. MÓDULO MÍNIMO'!$A$7:$E$136,5) -> M2 | J139: =SUM(J140:J140) -> 264 | K139: =VLOOKUP(A138,'P. O. MÓDULO MÍNIMO'!$A$7:$E$136,5) -> M2
A140: > | B140: Eixo X | C140: L1(m) x H(m) x Qtd. | D140: 2 | E140: 2.2 | F140: 2 | H140: =TRUNC(PRODUCT(D140,E140,F140,G140),2) -> 8.8 | I140: =$K$1 -> 30 | J140: =ROUND(H140*I140,2) -> 264
B142: ='P. O. MÓDULO MÍNIMO'!D45 -> PISO DA QUADRA
A143: 28 | B143: =VLOOKUP(MC!A143,'P. O. MÓDULO MÍNIMO'!$A$7:$D$136,4) -> LASTRO COM MATERIAL GRANULAR, APLICADO EM PISOS OU LAJES SOBRE SOLO, ESPESSURA DE *5 CM*. AF_01/2024
A144: > | B144: Observação | C144: Fórmula Aplicada e Variáveis | D144: Var. 1 | E144: Var. 2 | F144: Var. 3 | G144: Var. 4 | H144: =SUM(H145:H145) -> 11.52 | I144: =VLOOKUP(A143,'P. O. MÓDULO MÍNIMO'!$A$7:$E$136,5) -> M3 | J144: =SUM(J145:J145) -> 345.6 | K144: =VLOOKUP(A143,'P. O. MÓDULO MÍNIMO'!$A$7:$E$136,5) -> M3
A145: > | B145: Perímetro total da quadra x altura estimada | C145: L1(m) x H(m) | D145: =18+18+30+30 -> 96 | E145: 0.12 | H145: =TRUNC(PRODUCT(D145,E145,F145,G145),2) -> 11.52 | I145: =$K$1 -> 30 | J145: =ROUND(H145*I145,2) -> 345.6
A147: 29 | B147: =VLOOKUP(MC!A147,'P. O. MÓDULO MÍNIMO'!$A$7:$D$136,4) -> CAMADA SEPARADORA PARA EXECUÇÃO DE RADIER, PISO DE CONCRETO OU LAJE SOBRE SOLO, EM LONA PLÁSTICA. AF_09/2021
A148: > | B148: Observação | C148: Fórmula Aplicada e Variáveis | D148: Var. 1 | E148: Var. 2 | F148: Var. 3 | G148: Var. 4 | H148: =SUM(H149:H149) -> 540 | I148: =VLOOKUP(A147,'P. O. MÓDULO MÍNIMO'!$A$7:$E$136,5) -> M2 | J148: =SUM(J149:J149) -> 16200 | K148: =VLOOKUP(A147,'P. O. MÓDULO MÍNIMO'!$A$7:$E$136,5) -> M2
A149: > | C149: L1(m) x L2(m) | D149: 30 | E149: 18 | H149: =TRUNC(PRODUCT(D149,E149,F149,G149),2) -> 540 | I149: =$K$1 -> 30 | J149: =ROUND(H149*I149,2) -> 16200
A151: 30 | B151: =VLOOKUP(MC!A151,'P. O. MÓDULO MÍNIMO'!$A$7:$D$136,4) -> ARMAÇÃO PARA EXECUÇÃO DE RADIER, PISO DE CONCRETO OU LAJE SOBRE SOLO, COM USO DE TELA Q-92. AF_09/2021
A152: > | B152: Observação | C152: Fórmula Aplicada e Variáveis | D152: Var. 1 | E152: Var. 2 | F152: Var. 3 | G152: Var. 4 | H152: =SUM(H153:H153) -> 799.2 | I152: =VLOOKUP(A151,'P. O. MÓDULO MÍNIMO'!$A$7:$E$136,5) -> KG | J152: =SUM(J153:J153) -> 23976 | K152: =VLOOKUP(A151,'P. O. MÓDULO MÍNIMO'!$A$7:$E$136,5) -> KG
A153: > | B153: Fator estimado, ajustar após o projeto executivo | C153: Área(m²) x Fator(Kg/m²) | D153: =$H$148 -> 540 | E153: 1.48 | H153: =TRUNC(PRODUCT(D153,E153,F153,G153),2) -> 799.2 | I153: =$K$1 -> 30 | J153: =ROUND(H153*I153,2) -> 23976
A155: 31 | B155: =VLOOKUP(MC!A155,'P. O. MÓDULO MÍNIMO'!$A$7:$D$136,4) -> PISO EM CONCRETO 20 MPA PREPARO MECÂNICO, ESPESSURA 7CM. AF_09/2020
A156: > | B156: Observação | C156: Fórmula Aplicada e Variáveis | D156: Var. 1 | E156: Var. 2 | F156: Var. 3 | G156: Var. 4 | H156: =SUM(H157:H157) -> 540 | I156: =VLOOKUP(A155,'P. O. MÓDULO MÍNIMO'!$A$7:$E$136,5) -> M2 | J156: =SUM(J157:J157) -> 16200 | K156: =VLOOKUP(A155,'P. O. MÓDULO MÍNIMO'!$A$7:$E$136,5) -> M2
A157: > | C157: Área (m²) | D157: =$H$148 -> 540 | H157: =TRUNC(PRODUCT(D157,E157,F157,G157),2) -> 540 | I157: =$K$1 -> 30 | J157: =ROUND(H157*I157,2) -> 16200
A159: 32 | B159: =VLOOKUP(MC!A159,'P. O. MÓDULO MÍNIMO'!$A$7:$D$136,4) -> JUNTA DE DILATAÇÃO DO PISO
A160: > | B160: Observação | C160: Fórmula Aplicada e Variáveis | D160: Var. 1 | E160: Var. 2 | F160: Var. 3 | G160: Var. 4 | H160: =SUM(H161:H161) -> 72 | I160: =VLOOKUP(A159,'P. O. MÓDULO MÍNIMO'!$A$7:$E$136,5) -> M | J160: =SUM(J161:J161) -> 2160 | K160: =VLOOKUP(A159,'P. O. MÓDULO MÍNIMO'!$A$7:$E$136,5) -> M
A161: > | B161: Eixo X | C161: L1(m) x repetição | D161: 18 | E161: 4 | H161: =TRUNC(PRODUCT(D161,E161,F161,G161),2) -> 72 | I161: =$K$1 -> 30 | J161: =ROUND(H161*I161,2) -> 2160
A162: > | B162: Eixo Y | C162: L1(m) x repetição | D162: 30 | E162: 2 | H162: =TRUNC(PRODUCT(D162,E162,F162,G162),2) -> 60 | I162: =$K$1 -> 30 | J162: =ROUND(H162*I162,2) -> 1800
B164: ='P. O. MÓDULO MÍNIMO'!D51 -> PINTURA DO PISO
A165: 33 | B165: =VLOOKUP(MC!A165,'P. O. MÓDULO MÍNIMO'!$A$7:$D$136,4) -> PINTURA DE PISO COM TINTA ACRÍLICA, APLICAÇÃO MANUAL, 2 DEMÃOS, INCLUSO FUNDO PREPARADOR. AF_05/2021
A166: > | B166: Observação | C166: Fórmula Aplicada e Variáveis | D166: Var. 1 | E166: Var. 2 | F166: Var. 3 | G166: Var. 4 | H166: =SUM(H167:H167) -> 540 | I166: =VLOOKUP(A165,'P. O. MÓDULO MÍNIMO'!$A$7:$E$136,5) -> M2 | J166: =SUM(J167:J167) -> 16200 | K166: =VLOOKUP(A165,'P. O. MÓDULO MÍNIMO'!$A$7:$E$136,5) -> M2
A167: > | C167: Área (m²) | D167: =$H$148 -> 540 | H167: =TRUNC(PRODUCT(D167,E167,F167,G167),2) -> 540 | I167: =$K$1 -> 30 | J167: =ROUND(H167*I167,2) -> 16200
B169: ='P. O. MÓDULO MÍNIMO'!D53 -> PISO DA ÁREA DE CIRCULAÇÃO
A170: 34 | B170: =VLOOKUP(MC!A170,'P. O. MÓDULO MÍNIMO'!$A$7:$D$136,4) -> EXECUÇÃO DE PASSEIO EM PISO INTERTRAVADO, COM BLOCO RETANGULAR COLORIDO DE 20 X 10 CM, ESPESSURA 6 CM. AF_10/2022
A171: > | B171: Observação | C171: Fórmula Aplicada e Variáveis | D171: Var. 1 | E171: Var. 2 | F171: Var. 3 | G171: Var. 4 | H171: =SUM(H172)-H173-H174 -> 228.02 | I171: =VLOOKUP(A170,'P. O. MÓDULO MÍNIMO'!$A$7:$E$136,5) -> M2 | J171: =SUM(J172)-J173-J174 -> 6840.6 | K171: =VLOOKUP(A170,'P. O. MÓDULO MÍNIMO'!$A$7:$E$136,5) -> M2
A172: > | C172: L1(m) x L2(m) | D172: 33.4 | E172: 24.9 | H172: =TRUNC(PRODUCT(D172,E172,F172,G172),2) -> 831.66 | I172: =$K$1 -> 30 | J172: =ROUND(H172*I172,2) -> 24949.8
A173: > | B173: Desconto da área da quadra | C173: L1(m) x L2(m) | D173: 30.4 | E173: 18.4 | H173: =TRUNC(PRODUCT(D173,E173,F173,G173),2) -> 559.36 | I173: =$K$1 -> 30 | J173: =ROUND(H173*I173,2) -> 16780.8
A174: > | B174: Desconto da área da arquibancada | C174: L1(m) x L2(m) x Qtd. | D174: 12.3 | E174: 1.8 | F174: 2 | H174: =TRUNC(PRODUCT(D174,E174,F174,G174),2) -> 44.28 | I174: =$K$1 -> 30 | J174: =ROUND(H174*I174,2) -> 1328.4
A176: 35 | B176: =VLOOKUP(MC!A176,'P. O. MÓDULO MÍNIMO'!$A$7:$D$136,4) -> ASSENTAMENTO DE GUIA (MEIO-FIO) EM TRECHO RETO, CONFECCIONADA EM CONCRETO PRÉ-FABRICADO, DIMENSÕES 100X15X13X20 CM (COMPRIMENTO X BASE INFERIOR X BASE SUPERIOR X ALTURA). AF_01/2024
A177: > | B177: Observação | C177: Fórmula Aplicada e Variáveis | D177: Var. 1 | E177: Var. 2 | F177: Var. 3 | G177: Var. 4 | H177: =SUM(H178:H178) -> 116.6 | I177: =VLOOKUP(A176,'P. O. MÓDULO MÍNIMO'!$A$7:$E$136,5) -> M | J177: =SUM(J178:J178) -> 3498 | K177: =VLOOKUP(A176,'P. O. MÓDULO MÍNIMO'!$A$7:$E$136,5) -> M
A178: > | B178: Mesma área do Lastro | C178: L1(m) + L2(m) + L3(m) + L4(m) | D178: 33.4 | E178: 24.9 | F178: 33.4 | G178: 24.9 | H178: =TRUNC(SUM(D178,E178,F178,G178),2) -> 116.6 | I178: =$K$1 -> 30 | J178: =ROUND(H178*I178,2) -> 3498
B180: ='P. O. MÓDULO MÍNIMO'!D56 -> ARQUIBANCADAS
B181: ='P. O. MÓDULO MÍNIMO'!D57 -> MOVIMENTAÇÃO DE TERRA
A182: 36 | B182: =VLOOKUP(MC!A182,'P. O. MÓDULO MÍNIMO'!$A$7:$D$136,4) -> ESCAVAÇÃO MANUAL DE VALA. AF_09/2024
A183: > | B183: Observação | C183: Fórmula Aplicada e Variáveis | D183: Var. 1 | E183: Var. 2 | F183: Var. 3 | G183: Var. 4 | H183: =SUM(H184:H185) -> 23.6 | I183: =VLOOKUP(A182,'P. O. MÓDULO MÍNIMO'!$A$7:$E$136,5) -> M3 | J183: =SUM(J184:J185) -> 708 | K183: =VLOOKUP(A182,'P. O. MÓDULO MÍNIMO'!$A$7:$E$136,5) -> M3
A184: > | B184: Arquibancada lado esquerdo | C184: L1(m) x L2(m) x H(m) x Qtd. | D184: 12.3 | E184: 0.4 | F184: 0.8 | G184: 3 | H184: =TRUNC(PRODUCT(D184,E184,F184,G184),2) -> 11.8 | I184: =$K$1 -> 30 | J184: =ROUND(H184*I184,2) -> 354
A185: > | B185: Arquibancada lado direito | C185: L1(m) x L2(m) x H(m) x Qtd. | D185: 12.3 | E185: 0.4 | F185: 0.8 | G185: 3 | H185: =TRUNC(PRODUCT(D185,E185,F185,G185),2) -> 11.8 | I185: =$K$1 -> 30 | J185: =ROUND(H185*I185,2) -> 354
A187: 37 | B187: =VLOOKUP(MC!A187,'P. O. MÓDULO MÍNIMO'!$A$7:$D$136,4) -> CARGA, MANOBRA E DESCARGA DE SOLOS E MATERIAIS GRANULARES EM CAMINHÃO BASCULANTE 14 M³ - CARGA COM PÁ CARREGADEIRA (CAÇAMBA DE 1,7 A 2,8 M³ / 128 HP) E DESCARGA LIVRE (UNIDADE: M3). AF_07/2020
A188: > | B188: Observação | C188: Fórmula Aplicada e Variáveis | D188: Var. 1 | E188: Var. 2 | F188: Var. 3 | G188: Var. 4 | H188: =SUM(H189:H189) -> 23.6 | I188: =VLOOKUP(A187,'P. O. MÓDULO MÍNIMO'!$A$7:$E$136,5) -> M3 | J188: =SUM(J189:J189) -> 708 | K188: =VLOOKUP(A187,'P. O. MÓDULO MÍNIMO'!$A$7:$E$136,5) -> M3
A189: > | B189: Mesmo volume da escavação | C189: Volume | D189: =$H$183 -> 23.6 | H189: =TRUNC(PRODUCT(D189,E189,F189,G189),2) -> 23.6 | I189: =$K$1 -> 30 | J189: =ROUND(H189*I189,2) -> 708
A191: 38 | B191: =VLOOKUP(MC!A191,'P. O. MÓDULO MÍNIMO'!$A$7:$D$136,4) -> PREPARO DE FUNDO DE VALA COM LARGURA MAIOR OU IGUAL A 1,5 M E MENOR QUE 2,5 M (ACERTO DO SOLO NATURAL). AF_08/2020
A192: > | B192: Observação | C192: Fórmula Aplicada e Variáveis | D192: Var. 1 | E192: Var. 2 | F192: Var. 3 | G192: Var. 4 | H192: =SUM(H193:H194) -> 29.52 | I192: =VLOOKUP(A191,'P. O. MÓDULO MÍNIMO'!$A$7:$E$136,5) -> M2 | J192: =SUM(J193:J194) -> 885.6 | K192: =VLOOKUP(A191,'P. O. MÓDULO MÍNIMO'!$A$7:$E$136,5) -> M2
A193: > | B193: Arquibancada lado esquerdo | C193: L1(m) x L2(m) x Qtd. | D193: 12.3 | E193: 0.4 | F193: 3 | H193: =TRUNC(PRODUCT(D193,E193,F193,G193),2) -> 14.76 | I193: =$K$1 -> 30 | J193: =ROUND(H193*I193,2) -> 442.8
A194: > | B194: Arquibancada lado direito | C194: L1(m) x L2(m) x Qtd. | D194: 12.3 | E194: 0.4 | F194: 3 | H194: =TRUNC(PRODUCT(D194,E194,F194,G194),2) -> 14.76 | I194: =$K$1 -> 30 | J194: =ROUND(H194*I194,2) -> 442.8
A196: 39 | B196: =VLOOKUP(MC!A196,'P. O. MÓDULO MÍNIMO'!$A$7:$D$136,4) -> ATERRO MANUAL DE VALAS COM AREIA PARA ATERRO. AF_08/2023
A197: > | B197: Observação | C197: Fórmula Aplicada e Variáveis | D197: Var. 1 | E197: Var. 2 | F197: Var. 3 | G197: Var. 4 | H197: =SUM(H198:H201) -> 28.32 | I197: =VLOOKUP(A196,'P. O. MÓDULO MÍNIMO'!$A$7:$E$136,5) -> M3 | J197: =SUM(J198:J201) -> 849.6 | K197: =VLOOKUP(A196,'P. O. MÓDULO MÍNIMO'!$A$7:$E$136,5) -> M3
A198: > | B198: Arquibancada lado esquerdo | C198: L1(m) x L2(m) x H(m) | D198: 0.6 | E198: 12.3 | F198: 1.16 | H198: =TRUNC(PRODUCT(D198,E198,F198,G198),2) -> 8.56 | I198: =$K$1 -> 30 | J198: =ROUND(H198*I198,2) -> 256.8
A199: > | B199: Arquibancada lado esquerdo | C199: L1(m) x L2(m) x H(m) | D199: 0.6 | E199: 12.3 | F199: 0.76 | H199: =TRUNC(PRODUCT(D199,E199,F199,G199),2) -> 5.6 | I199: =$K$1 -> 30 | J199: =ROUND(H199*I199,2) -> 168
A200: > | B200: Arquibancada lado direito | C200: L1(m) x L2(m) x H(m) | D200: 0.6 | E200: 12.3 | F200: 1.16 | H200: =TRUNC(PRODUCT(D200,E200,F200,G200),2) -> 8.56 | I200: =$K$1 -> 30 | J200: =ROUND(H200*I200,2) -> 256.8
A201: > | B201: Arquibancada lado direito | C201: L1(m) x L2(m) x H(m) | D201: 0.6 | E201: 12.3 | F201: 0.76 | H201: =TRUNC(PRODUCT(D201,E201,F201,G201),2) -> 5.6 | I201: =$K$1 -> 30 | J201: =ROUND(H201*I201,2) -> 168
B203: ='P. O. MÓDULO MÍNIMO'!D62 -> ESTRUTURA E ALVENARIA
A204: 40 | B204: =VLOOKUP(MC!A204,'P. O. MÓDULO MÍNIMO'!$A$7:$D$136,4) -> PEDRA ARGAMASSADA COM CIMENTO E AREIA 1:3, 40% DE ARGAMASSA EM VOLUME - AREIA E PEDRA DE MÃO COMERCIAIS - FORNECIMENTO E ASSENTAMENTO. AF_08/2022
A205: > | B205: Observação | C205: Fórmula Aplicada e Variáveis | D205: Var. 1 | E205: Var. 2 | F205: Var. 3 | G205: Var. 4 | H205: =SUM(H206:H207) -> 11.8 | I205: =VLOOKUP(A204,'P. O. MÓDULO MÍNIMO'!$A$7:$E$136,5) -> M3 | J205: =SUM(J206:J207) -> 354 | K205: =VLOOKUP(A204,'P. O. MÓDULO MÍNIMO'!$A$7:$E$136,5) -> M3
A206: > | B206: Arquibancada lado esquerdo | C206: L1(m) x L2(m) x H(m) x Qtd. | D206: 0.4 | E206: 12.3 | F206: 0.4 | G206: 3 | H206: =TRUNC(PRODUCT(D206,E206,F206,G206),2) -> 5.9 | I206: =$K$1 -> 30 | J206: =ROUND(H206*I206,2) -> 177
A207: > | B207: Arquibancada lado direito | C207: L1(m) x L2(m) x H(m) x Qtd. | D207: 0.4 | E207: 12.3 | F207: 0.4 | G207: 3 | H207: =TRUNC(PRODUCT(D207,E207,F207,G207),2) -> 5.9 | I207: =$K$1 -> 30 | J207: =ROUND(H207*I207,2) -> 177
A209: 41 | B209: =VLOOKUP(MC!A209,'P. O. MÓDULO MÍNIMO'!$A$7:$D$136,4) -> MONTAGEM E DESMONTAGEM DE FÔRMA DE PILARES RETANGULARES E ESTRUTURAS SIMILARES, PÉ-DIREITO SIMPLES, EM CHAPA DE MADEIRA COMPENSADA RESINADA, 8 UTILIZAÇÕES. AF_09/2020
A210: > | B210: Observação | C210: Fórmula Aplicada e Variáveis | D210: Var. 1 | E210: Var. 2 | F210: Var. 3 | G210: Var. 4 | H210: =SUM(H211:H213) -> 22.4 | I210: =VLOOKUP(A209,'P. O. MÓDULO MÍNIMO'!$A$7:$E$136,5) -> M2 | J210: =SUM(J211:J213) -> 672 | K210: =VLOOKUP(A209,'P. O. MÓDULO MÍNIMO'!$A$7:$E$136,5) -> M2
A211: > | C211: L1(m) x H(m) x Face X repetição | D211: 0.2 | E211: 1.6 | F211: 4 | G211: 8 | H211: =TRUNC(PRODUCT(D211,E211,F211,G211),2) -> 10.24 | I211: =$K$1 -> 30 | J211: =ROUND(H211*I211,2) -> 307.2
A212: > | C212: L1(m) x H(m) x Face X repetição | D212: 0.2 | E212: 1.15 | F212: 4 | G212: 8 | H212: =TRUNC(PRODUCT(D212,E212,F212,G212),2) -> 7.36 | I212: =$K$1 -> 30 | J212: =ROUND(H212*I212,2) -> 220.8
A213: > | C213: L1(m) x H(m) x Face X repetição | D213: 0.2 | E213: 0.75 | F213: 4 | G213: 8 | H213: =TRUNC(PRODUCT(D213,E213,F213,G213),2) -> 4.8 | I213: =$K$1 -> 30 | J213: =ROUND(H213*I213,2) -> 144
A215: 42 | B215: =VLOOKUP(MC!A215,'P. O. MÓDULO MÍNIMO'!$A$7:$D$136,4) -> ARMAÇÃO DE PILAR OU VIGA DE ESTRUTURA CONVENCIONAL DE CONCRETO ARMADO UTILIZANDO AÇO CA-60 DE 5,0 MM - MONTAGEM. AF_06/2022
A216: > | B216: Observação | C216: Fórmula Aplicada e Variáveis | D216: Var. 1 | E216: Var. 2 | F216: Var. 3 | G216: Var. 4 | H216: =SUM(H217:H217) -> 24.6 | I216: =VLOOKUP(A215,'P. O. MÓDULO MÍNIMO'!$A$7:$E$136,5) -> KG | J216: =SUM(J217:J217) -> 738 | K216: =VLOOKUP(A215,'P. O. MÓDULO MÍNIMO'!$A$7:$E$136,5) -> KG
A217: > | B217: Consumo estimado, ajustar após o projeto executivo | C217: Consumo (kg/m³) x Volume (m³) | D217: 20 | E217: =$H$228 -> 1.23 | H217: =TRUNC(PRODUCT(D217,E217,F217,G217),2) -> 24.6 | I217: =$K$1 -> 30 | J217: =ROUND(H217*I217,2) -> 738
A219: 43 | B219: =VLOOKUP(MC!A219,'P. O. MÓDULO MÍNIMO'!$A$7:$D$136,4) -> ARMAÇÃO DE PILAR OU VIGA DE ESTRUTURA CONVENCIONAL DE CONCRETO ARMADO UTILIZANDO AÇO CA-50 DE 10,0 MM - MONTAGEM. AF_06/2022
A220: > | B220: Observação | C220: Fórmula Aplicada e Variáveis | D220: Var. 1 | E220: Var. 2 | F220: Var. 3 | G220: Var. 4 | H220: =SUM(H221:H221) -> 123 | I220: =VLOOKUP(A219,'P. O. MÓDULO MÍNIMO'!$A$7:$E$136,5) -> KG | J220: =SUM(J221:J221) -> 3690 | K220: =VLOOKUP(A219,'P. O. MÓDULO MÍNIMO'!$A$7:$E$136,5) -> KG
A221: > | B221: Consumo estimado, ajustar após o projeto executivo | C221: Consumo (kg/m³) x Volume (m³) | D221: 100 | E221: =$H$228 -> 1.23 | H221: =TRUNC(PRODUCT(D221,E221,F221,G221),2) -> 123 | I221: =$K$1 -> 30 | J221: =ROUND(H221*I221,2) -> 3690
A223: 44 | B223: =VLOOKUP(MC!A223,'P. O. MÓDULO MÍNIMO'!$A$7:$D$136,4) -> ARMAÇÃO DE PILAR OU VIGA DE ESTRUTURA CONVENCIONAL DE CONCRETO ARMADO UTILIZANDO AÇO CA-50 DE 12,5 MM - MONTAGEM. AF_06/2022
A224: > | B224: Observação | C224: Fórmula Aplicada e Variáveis | D224: Var. 1 | E224: Var. 2 | F224: Var. 3 | G224: Var. 4 | H224: =SUM(H225:H225) -> 123 | I224: =VLOOKUP(A223,'P. O. MÓDULO MÍNIMO'!$A$7:$E$136,5) -> KG | J224: =SUM(J225:J225) -> 3690 | K224: =VLOOKUP(A223,'P. O. MÓDULO MÍNIMO'!$A$7:$E$136,5) -> KG
A225: > | B225: Consumo estimado, ajustar após o projeto executivo | C225: Consumo (kg/m³) x Volume (m³) | D225: 100 | E225: =$H$228 -> 1.23 | H225: =TRUNC(PRODUCT(D225,E225,F225,G225),2) -> 123 | I225: =$K$1 -> 30 | J225: =ROUND(H225*I225,2) -> 3690
A227: 45 | B227: =VLOOKUP(MC!A227,'P. O. MÓDULO MÍNIMO'!$A$7:$D$136,4) -> CONCRETO FCK = 25MPA, TRAÇO 1:2,3:2,7 (EM MASSA SECA DE CIMENTO/ AREIA MÉDIA/ BRITA 1) - PREPARO MECÂNICO COM BETONEIRA 600 L. AF_05/2021
A228: > | B228: Observação | C228: Fórmula Aplicada e Variáveis | D228: Var. 1 | E228: Var. 2 | F228: Var. 3 | G228: Var. 4 | H228: =SUM(H229:H231) -> 1.23 | I228: =VLOOKUP(A227,'P. O. MÓDULO MÍNIMO'!$A$7:$E$136,5) -> M3 | J228: =SUM(J229:J231) -> 36.9 | K228: =VLOOKUP(A227,'P. O. MÓDULO MÍNIMO'!$A$7:$E$136,5) -> M3
A229: > | C229: L1(m) x L2(m) x H(m) x Qtd. | D229: 0.2 | E229: 0.2 | F229: 1.6 | G229: 8 | H229: =TRUNC(PRODUCT(D229,E229,F229,G229),2) -> 0.51 | I229: =$K$1 -> 30 | J229: =ROUND(H229*I229,2) -> 15.3
A230: > | C230: L1(m) x L2(m) x H(m) x Qtd. | D230: 0.2 | E230: 0.2 | F230: 1.15 | G230: 8 | H230: =TRUNC(PRODUCT(D230,E230,F230,G230),2) -> 0.36 | I230: =$K$1 -> 30 | J230: =ROUND(H230*I230,2) -> 10.8
A231: > | C231: L1(m) x L2(m) x H(m) x Qtd. | D231: 0.2 | E231: 0.2 | F231: 1.15 | G231: 8 | H231: =TRUNC(PRODUCT(D231,E231,F231,G231),2) -> 0.36 | I231: =$K$1 -> 30 | J231: =ROUND(H231*I231,2) -> 10.8
A233: 46 | B233: =VLOOKUP(MC!A233,'P. O. MÓDULO MÍNIMO'!$A$7:$D$136,4) -> ALVENARIA DE VEDAÇÃO DE BLOCOS CERÂMICOS FURADOS NA VERTICAL DE 19X19X39 CM (ESPESSURA 19 CM) E ARGAMASSA DE ASSENTAMENTO COM PREPARO MANUAL. AF_12/2021
A234: > | B234: Observação | C234: Fórmula Aplicada e Variáveis | D234: Var. 1 | E234: Var. 2 | F234: Var. 3 | G234: Var. 4 | H234: =SUM(H235:H240)-H241-H242-H243 -> 87.46 | I234: =VLOOKUP(A233,'P. O. MÓDULO MÍNIMO'!$A$7:$E$136,5) -> M2 | J234: =SUM(J235:J240)-J241-J242-J243 -> 2623.8 | K234: =VLOOKUP(A233,'P. O. MÓDULO MÍNIMO'!$A$7:$E$136,5) -> M2
A235: > | C235: L1(m) x H(m) x Qtd. | D235: 12.3 | E235: 1.6 | F235: 2 | H235: =TRUNC(PRODUCT(D235,E235,F235,G235),2) -> 39.36 | I235: =$K$1 -> 30 | J235: =ROUND(H235*I235,2) -> 1180.8
A236: > | C236: L1(m) x H(m) x Qtd. | D236: 12.3 | E236: 1.15 | F236: 2 | H236: 28.29 | I236: =$K$1 -> 30 | J236: =ROUND(H236*I236,2) -> 848.7
A237: > | C237: L1(m) x H(m) x Qtd. | D237: 12.3 | E237: 0.75 | F237: 2 | H237: 18.45 | I237: =$K$1 -> 30 | J237: =ROUND(H237*I237,2) -> 553.5
A238: > | B238: Fechamento lateral da arquibancada | C238: L1(m) x H(m) x Qtd. | D238: 0.6 | E238: 0.75 | F238: 4 | H238: 1.8 | I238: =$K$1 -> 30 | J238: =ROUND(H238*I238,2) -> 54
A239: > | B239: Fechamento lateral da arquibancada | C239: L1(m) x H(m) x Qtd. | D239: 0.6 | E239: 1.15 | F239: 4 | H239: 2.76 | I239: 30 | J239: 82.8
A240: > | B240: Degraus | C240: L1(m) x L2(m) x Qtd. | D240: 1 | E240: 0.3 | F240: 8 | H240: 2.4 | I240: 30 | J240: 72
A241: > | B241: Desconto da área dos pilares | C241: L1(m) x H(m) x Qtd. | D241: 0.2 | E241: 1.6 | F241: 8 | H241: 2.56 | I241: 30 | J241: 76.8
A242: > | B242: Desconto da área dos pilares | C242: L1(m) x H(m) x Qtd. | D242: 0.2 | E242: 1.15 | F242: 8 | H242: 1.84 | I242: 30 | J242: 55.2
A243: > | B243: Desconto da área dos pilares | C243: L1(m) x H(m) x Qtd. | D243: 0.2 | E243: 0.75 | F243: 8 | H243: 1.2 | I243: 30 | J243: 36
A245: 47 | B245: =VLOOKUP(MC!A245,'P. O. MÓDULO MÍNIMO'!$A$7:$D$136,4) -> LASTRO DE CONCRETO MAGRO, APLICADO EM PISOS, LAJES SOBRE SOLO OU RADIERS. AF_01/2024
A246: > | B246: Observação | C246: Fórmula Aplicada e Variáveis | D246: Var. 1 | E246: Var. 2 | F246: Var. 3 | G246: Var. 4 | H246: =SUM(H247:H248) -> 1.46 | I246: =VLOOKUP(A245,'P. O. MÓDULO MÍNIMO'!$A$7:$E$136,5) -> M3 | J246: =SUM(J247:J248) -> 43.8 | K246: =VLOOKUP(A245,'P. O. MÓDULO MÍNIMO'!$A$7:$E$136,5) -> M3
... 194 more rows

Sheet CPU
A1: COMPOSIÇÕES DE CUSTO UNITÁRIO
A3: ITEM | B3: REF. | C3: CÓDIGO | D3: DESCRIÇÃO DO SERVIÇO | E3: UN | F3: COEF. | G3: P. UNIT. (S/ BDI) | H3: VALOR
A4: ='P. O. MÓDULO MÍNIMO'!C8 -> CPU-01 | C4: ='P. O. MÓDULO MÍNIMO'!D8 -> PROJETO EXECUTIVO | E4: UN > | F4: ='P. O. MÓDULO MÍNIMO'!E8 -> UN | G4: VALOR S/ BDI | H4: =SUBTOTAL(9,H5:H11) -> 0
A5: 1.1 | B5: SINAPI-I | C5: 2707 | D5: =VLOOKUP($C5,'SINAPI TO - INSUMOS'!$A$3:$D$7831,2,FALSE) -> ENGENHEIRO CIVIL DE OBRA PLENO (HORISTA) | E5: =VLOOKUP(C5,'SINAPI TO - INSUMOS'!$A$8:$E$4846,3,FALSE) -> H | F5: 30 | H5: =ROUND(G5*F5,2) -> 0
A6: 1.2 | B6: SINAPI-I | C6: 2358 | D6: =VLOOKUP($C6,'SINAPI TO - INSUMOS'!$A$3:$D$7831,2,FALSE) -> DESENHISTA PROJETISTA (HORISTA) | E6: =VLOOKUP(C6,'SINAPI TO - INSUMOS'!$A$8:$E$4846,3,FALSE) -> H | F6: 50 | H6: =ROUND(G6*F6,2) -> 0
A7: 1.3 | B7: SINAPI-I | C7: 6175 | D7: =VLOOKUP($C7,'SINAPI TO - INSUMOS'!$A$3:$D$7831,2,FALSE) -> TECNICO EM SONDAGEM (HORISTA) | E7: =VLOOKUP(C7,'SINAPI TO - INSUMOS'!$A$8:$E$4846,3,FALSE) -> H | F7: 25 | H7: 0
A8: 1.4 | B8: SINAPI-I | C8: 245 | D8: =VLOOKUP($C8,'SINAPI TO - INSUMOS'!$A$3:$D$7831,2,FALSE) -> AUXILIAR DE LABORATORISTA DE SOLOS E DE CONCRETO (HORISTA) | E8: =VLOOKUP(C8,'SINAPI TO - INSUMOS'!$A$8:$E$4846,3,FALSE) -> H | F8: 60 | H8: 0
A9: 1.5 | B9: SINAPI-I | C9: 7247 | D9: =VLOOKUP($C9,'SINAPI TO - INSUMOS'!$A$3:$D$7831,2,FALSE) -> LOCACAO DE TEODOLITO ELETRONICO, PRECISAO ANGULAR DE 5 A 7 SEGUNDOS, INCLUINDO TRIPE | E9: =VLOOKUP(C9,'SINAPI TO - INSUMOS'!$A$8:$E$4846,3,FALSE) -> H | F9: 50 | H9: 0
A10: 1.6 | B10: SINAPI-S | C10: 92145 | D10: =VLOOKUP(C10,'SINAPI -TO'!$A$3:$D$7831,2,FALSE) -> CAMINHONETE CABINE SIMPLES COM MOTOR 1.6 FLEX, CÂMBIO MANUAL, POTÊNCIA 101/104 CV, 2 PORTAS - CHP DIURNO. AF_11/2015 | E10: =VLOOKUP(C10,'SINAPI -TO'!$A$3:$D$7831,3,FALSE) -> CHP | F10: 8 | H10: 0
A11: 1.7 | B11: CAEMA | C11: 10404 | D11: SONDAGEM DO TERRENO - PERCURSSÃO (SPT) | E11: M | F11: 60 | H11: 0
A12: OBS:
A16: ITEM | B16: REF. | C16: CÓDIGO | D16: DESCRIÇÃO DO SERVIÇO | E16: UN | F16: COEF. | G16: P. UNIT. (S/ BDI) | H16: VALOR
A17: ='P. O. MÓDULO MÍNIMO'!C10 -> CPU-02 | C17: ='P. O. MÓDULO MÍNIMO'!D10 -> ADMINISTRAÇÃO LOCAL | E17: UN > | F17: ='P. O. MÓDULO MÍNIMO'!E10 -> UN | G17: VALOR S/ BDI | H17: =SUBTOTAL(9,H18:H20) -> 0
A18: 2.1 | B18: SINAPI-I | C18: 2708 | D18: =VLOOKUP($C18,'SINAPI TO - INSUMOS'!$A$3:$D$7831,2,FALSE) -> ENGENHEIRO CIVIL DE OBRA SENIOR (HORISTA) | E18: =VLOOKUP(C18,'SINAPI TO - INSUMOS'!$A$8:$E$4846,3,FALSE) -> H | F18: 120 | H18: =ROUND(G18*F18,2) -> 0
A19: 2.2 | B19: SINAPI-I | C19: 4069 | D19: =VLOOKUP($C19,'SINAPI TO - INSUMOS'!$A$3:$D$7831,2,FALSE) -> MESTRE DE OBRAS (HORISTA) | E19: =VLOOKUP(C19,'SINAPI TO - INSUMOS'!$A$8:$E$4846,3,FALSE) -> H | F19: 600 | H19: =ROUND(G19*F19,2) -> 0
A20: OBS:
A23: ITEM | B23: REF. | C23: CÓDIGO | D23: DESCRIÇÃO DO SERVIÇO | E23: UN | F23: COEF. | G23: P. UNIT. (S/ BDI) | H23: VALOR
A24: ='P. O. MÓDULO MÍNIMO'!C11 -> CPU-03 | C24: ='P. O. MÓDULO MÍNIMO'!D11 -> MOBILIZAÇÃO E DESMOBILIZAÇÃO | E24: UN > | F24: ='P. O. MÓDULO MÍNIMO'!E11 -> UN | G24: VALOR S/ BDI | H24: =SUBTOTAL(9,H25:H27) -> 0
A25: 3.1 | B25: SINAPI-S | C25: 89876 | D25: =VLOOKUP(C25,'SINAPI -TO'!$A$3:$D$7831,2,FALSE) -> CAMINHÃO BASCULANTE 14 M3, COM CAVALO MECÂNICO DE CAPACIDADE MÁXIMA DE TRAÇÃO COMBINADO DE 36000 KG, POTÊNCIA 286 CV, INCLUSIVE SEMIREBOQUE COM CAÇAMBA METÁLICA - CHP DIURNO. AF_12/2014 | E25: =VLOOKUP(C25,'SINAPI -TO'!$A$3:$D$7831,3,FALSE) -> CHP | F25: 20 | H25: =ROUND(G25*F25,2) -> 0
A26: 3.2 | B26: SINAPI-S | C26: 5747 | D26: =VLOOKUP(C26,'SINAPI -TO'!$A$3:$D$7831,2,FALSE) -> CAMINHÃO PIPA 6.000 L, PESO BRUTO TOTAL 13.000 KG, DISTÂNCIA ENTRE EIXOS 4,80 M, POTÊNCIA 189 CV INCLUSIVE TANQUE DE AÇO PARA TRANSPORTE DE ÁGUA, CAPACIDADE 6 M3 - MATERIAIS NA OPERAÇÃO. AF_06/2014 | E26: =VLOOKUP(C26,'SINAPI -TO'!$A$3:$D$7831,3,FALSE) -> H | F26: 20 | H26: =ROUND(G26*F26,2) -> 0
A27: OBS:
A30: ITEM | B30: REF. | C30: CÓDIGO | D30: DESCRIÇÃO DO SERVIÇO | E30: UN | F30: COEF. | G30: P. UNIT. (S/ BDI) | H30: VALOR
A31: ='P. O. MÓDULO MÍNIMO'!C12 -> CPU-04 | C31: ='P. O. MÓDULO MÍNIMO'!D12 -> CANTEIRO DE OBRAS E ALMOXARIFADO | E31: UN > | F31: ='P. O. MÓDULO MÍNIMO'!E12 -> UN | G31: VALOR S/ BDI | H31: =SUBTOTAL(9,H32:H33) -> 0
A32: 4.1 | B32: SINAPI-I | C32: 10775 | D32: =VLOOKUP($C32,'SINAPI TO - INSUMOS'!$A$3:$D$7831,2,FALSE) -> LOCACAO DE CONTAINER 2,30 X 6,00 M, ALT. 2,50 M, COM 1 SANITARIO, PARA ESCRITORIO, COMPLETO, SEM DIVISORIAS INTERNAS (NAO INCLUI MOBILIZACAO/DESMOBILIZACAO) | E32: =VLOOKUP(C32,'SINAPI TO - INSUMOS'!$A$8:$E$4846,3,FALSE) -> MES | F32: 6 | H32: =ROUND(G32*F32,2) -> 0
A33: OBS:
A36: ITEM | B36: REF. | C36: CÓDIGO | D36: DESCRIÇÃO DO SERVIÇO | E36: UN | F36: COEF. | G36: P. UNIT. (S/ BDI) | H36: VALOR
A37: ='P. O. MÓDULO MÍNIMO'!C13 -> CPU-05 | C37: ='P. O. MÓDULO MÍNIMO'!D13 -> PLACA DE OBRA EM CHAPA DE AÇO GALVANIZADO | E37: UN > | F37: ='P. O. MÓDULO MÍNIMO'!E13 -> M2 | G37: VALOR S/ BDI | H37: =SUBTOTAL(9,H38:H42) -> 0
A38: 5.1 | B38: SINAPI-I | C38: 6117 | D38: =VLOOKUP($C38,'SINAPI TO - INSUMOS'!$A$3:$D$7831,2,FALSE) -> CARPINTEIRO AUXILIAR (HORISTA) | E38: =VLOOKUP(C38,'SINAPI TO - INSUMOS'!$A$8:$E$4846,3,FALSE) -> H | F38: 1.5 | H38: =ROUND(G38*F38,2) -> 0
A39: 5.2 | B39: SINAPI-I | C39: 6111 | D39: =VLOOKUP($C39,'SINAPI TO - INSUMOS'!$A$3:$D$7831,2,FALSE) -> SERVENTE DE OBRAS (HORISTA) | E39: =VLOOKUP(C39,'SINAPI TO - INSUMOS'!$A$8:$E$4846,3,FALSE) -> H | F39: 1.5 | H39: =ROUND(G39*F39,2) -> 0
A40: 5.3 | B40: SINAPI-I | C40: 4491 | D40: =VLOOKUP($C40,'SINAPI TO - INSUMOS'!$A$3:$D$7831,2,FALSE) -> PONTALETE *7,5 X 7,5* CM EM PINUS, MISTA OU EQUIVALENTE DA REGIAO - BRUTA | E40: =VLOOKUP(C40,'SINAPI TO - INSUMOS'!$A$8:$E$4846,3,FALSE) -> M | F40: 5 | H40: =ROUND(G40*F40,2) -> 0
A41: 5.4 | B41: SINAPI-I | C41: 4417 | D41: =VLOOKUP($C41,'SINAPI TO - INSUMOS'!$A$3:$D$7831,2,FALSE) -> SARRAFO NAO APARELHADO *2,5 X 7* CM, EM MACARANDUBA/MASSARANDUBA, ANGELIM, PEROBA-ROSA OU EQUIVALENTE DA REGIAO - BRUTA | E41: =VLOOKUP(C41,'SINAPI TO - INSUMOS'!$A$8:$E$4846,3,FALSE) -> M | F41: 2 | H41: =ROUND(G41*F41,2) -> 0
A42: 5.5 | B42: SINAPI-I | C42: 4813 | D42: =VLOOKUP($C42,'SINAPI TO - INSUMOS'!$A$3:$D$7831,2,FALSE) -> PLACA DE OBRA (PARA CONSTRUCAO CIVIL) EM CHAPA GALVANIZADA *N. 22*, ADESIVADA, DE *2,4 X 1,2* M (SEM POSTES PARA FIXACAO) | E42: =VLOOKUP(C42,'SINAPI TO - INSUMOS'!$A$8:$E$4846,3,FALSE) -> M2 | F42: 1 | H42: =ROUND(G42*F42,2) -> 0
A43: OBS:
A46: ITEM | B46: REF. | C46: CÓDIGO | D46: DESCRIÇÃO DO SERVIÇO | E46: UN | F46: COEF. | G46: P. UNIT. (S/ BDI) | H46: VALOR
A47: ='P. O. MÓDULO MÍNIMO'!C15 -> CPU-06 | C47: ='P. O. MÓDULO MÍNIMO'!D15 -> RASPAGEM E LIMPEZA DO TERRENO | E47: UN > | F47: ='P. O. MÓDULO MÍNIMO'!E15 -> M2 | G47: VALOR S/ BDI | H47: =SUBTOTAL(9,H48:H49) -> 0
A48: 6.1 | B48: SINAPI-I | C48: 6111 | D48: =VLOOKUP($C48,'SINAPI TO - INSUMOS'!$A$3:$D$7831,2,FALSE) -> SERVENTE DE OBRAS (HORISTA) | E48: =VLOOKUP(C48,'SINAPI TO - INSUMOS'!$A$8:$E$4846,3,FALSE) -> H | F48: 1 | H48: =ROUND(G48*F48,2) -> 0
A49: OBS:
A52: ITEM | B52: REF. | C52: CÓDIGO | D52: DESCRIÇÃO DO SERVIÇO | E52: UN | F52: COEF. | G52: P. UNIT. (S/ BDI) | H52: VALOR
A53: ='P. O. MÓDULO MÍNIMO'!C39 -> CPU-07 | C53: ='P. O. MÓDULO MÍNIMO'!D39 -> CHAPIM DE CONCRETO | E53: UN > | F53: ='P. O. MÓDULO MÍNIMO'!E39 -> M2 | G53: VALOR S/ BDI | H53: =SUM(H54:H57) -> 0
A54: 7.1 | B54: SINAPI-I | C54: 6111 | D54: =VLOOKUP($C54,'SINAPI TO - INSUMOS'!$A$3:$D$7831,2,FALSE) -> SERVENTE DE OBRAS (HORISTA) | E54: =VLOOKUP(C54,'SINAPI TO - INSUMOS'!$A$8:$E$4846,3,FALSE) -> H | F54: 1.074 | H54: =ROUND(G54*F54,2) -> 0
A55: 7.2 | B55: SINAPI-I | C55: 4750 | D55: =VLOOKUP($C55,'SINAPI TO - INSUMOS'!$A$3:$D$7831,2,FALSE) -> PEDREIRO (HORISTA) | E55: =VLOOKUP(C55,'SINAPI TO - INSUMOS'!$A$8:$E$4846,3,FALSE) -> H | F55: 0.84 | H55: =ROUND(G55*F55,2) -> 0
A56: 7.3 | B56: SINAPI-I | C56: 370 | D56: =VLOOKUP($C56,'SINAPI TO - INSUMOS'!$A$3:$D$7831,2,FALSE) -> AREIA MEDIA - POSTO JAZIDA/FORNECEDOR (RETIRADO NA JAZIDA, SEM TRANSPORTE) | E56: =VLOOKUP(C56,'SINAPI TO - INSUMOS'!$A$8:$E$4846,3,FALSE) -> M3 | F56: 0.018 | H56: =ROUND(G56*F56,2) -> 0
A57: 7.4 | B57: SINAPI-I | C57: 1379 | D57: =VLOOKUP($C57,'SINAPI TO - INSUMOS'!$A$3:$D$7831,2,FALSE) -> CIMENTO PORTLAND COMPOSTO CP II-32 | E57: =VLOOKUP(C57,'SINAPI TO - INSUMOS'!$A$8:$E$4846,3,FALSE) -> KG | F57: 1.565 | H57: =ROUND(G57*F57,2) -> 0
A58: OBS:
A61: ITEM | B61: REF. | C61: CÓDIGO | D61: DESCRIÇÃO DO SERVIÇO | E61: UN | F61: COEF. | G61: P. UNIT. (S/ BDI) | H61: VALOR
A62: ='P. O. MÓDULO MÍNIMO'!C43 -> CPU-08 | C62: ='P. O. MÓDULO MÍNIMO'!D43 -> PORTÃO DA QUADRA | E62: UN > | F62: ='P. O. MÓDULO MÍNIMO'!E43 -> M2 | G62: VALOR S/ BDI | H62: =SUBTOTAL(9,H63:H70) -> 0
A63: 8.1 | B63: SINAPI-I | C63: 6111 | D63: =VLOOKUP($C63,'SINAPI TO - INSUMOS'!$A$3:$D$7831,2,FALSE) -> SERVENTE DE OBRAS (HORISTA) | E63: =VLOOKUP(C63,'SINAPI TO - INSUMOS'!$A$8:$E$4846,3,FALSE) -> H | F63: 2.0505 | H63: =ROUND(G63*F63,2) -> 0
A64: 8.2 | B64: SINAPI-I | C64: 6110 | D64: =VLOOKUP($C64,'SINAPI TO - INSUMOS'!$A$3:$D$7831,2,FALSE) -> SERRALHEIRO (HORISTA) | E64: =VLOOKUP(C64,'SINAPI TO - INSUMOS'!$A$8:$E$4846,3,FALSE) -> H | F64: 3.4512 | H64: 0
A65: 8.3 | B65: SINAPI-I | C65: 546 | D65: =VLOOKUP($C65,'SINAPI TO - INSUMOS'!$A$3:$D$7831,2,FALSE) -> BARRA DE ACO CHATA, RETANGULAR (QUALQUER BITOLA) | E65: =VLOOKUP(C65,'SINAPI TO - INSUMOS'!$A$8:$E$4846,3,FALSE) -> KG | F65: 4.3 | H65: 0
A66: 8.4 | B66: SINAPI-I | C66: 552 | D66: =VLOOKUP($C66,'SINAPI TO - INSUMOS'!$A$3:$D$7831,2,FALSE) -> BARRA DE ACO CHATO, RETANGULAR, 38,1 MM X 6,35 MM (L X E), 1,89 KG/M | E66: =VLOOKUP(C66,'SINAPI TO - INSUMOS'!$A$8:$E$4846,3,FALSE) -> M | F66: 0.11 | H66: 0
A67: 8.5 | B67: SINAPI-I | C67: 555 | D67: =VLOOKUP($C67,'SINAPI TO - INSUMOS'!$A$3:$D$7831,2,FALSE) -> BARRA DE ACO CHATO, RETANGULAR, 25,4 MM X 6,35 MM (L X E), 1,2265 KG/M | E67: =VLOOKUP(C67,'SINAPI TO - INSUMOS'!$A$8:$E$4846,3,FALSE) -> M | F67: 0.076 | H67: 0
A68: 8.6 | B68: SINAPI-I | C68: 10997 | D68: =VLOOKUP($C68,'SINAPI TO - INSUMOS'!$A$3:$D$7831,2,FALSE) -> ELETRODO REVESTIDO AWS - E7018, DIAMETRO IGUAL A 4,00 MM | E68: =VLOOKUP(C68,'SINAPI TO - INSUMOS'!$A$8:$E$4846,3,FALSE) -> KG | F68: 2.88 | H68: 0
A69: 8.7 | B69: SINAPI-I | C69: 37712 | D69: =VLOOKUP($C69,'SINAPI TO - INSUMOS'!$A$3:$D$7831,2,FALSE) -> TELA ARAME GALVANIZADO REVESTIDO COM POLIMERO, MALHA HEXAGONAL DUPLA TORCAO, 8 X 10 CM (ZN/AL REVESTIDO COM POLIMERO), FIO *2,4* MM | E69: =VLOOKUP(C69,'SINAPI TO - INSUMOS'!$A$8:$E$4846,3,FALSE) -> M2 | F69: 0.57 | H69: 0
A70: 8.8 | B70: SINAPI-I | C70: 21011 | D70: =VLOOKUP($C70,'SINAPI TO - INSUMOS'!$A$3:$D$7831,2,FALSE) -> TUBO ACO GALVANIZADO COM COSTURA, CLASSE LEVE, DN 32 MM (1 1/4"), E = 2,65 MM, *2,71* KG/M (NBR 5580) | E70: =VLOOKUP(C70,'SINAPI TO - INSUMOS'!$A$8:$E$4846,3,FALSE) -> M | F70: 2.95 | H70: 0
A71: OBS:
A74: ITEM | B74: REF. | C74: CÓDIGO | D74: DESCRIÇÃO DO SERVIÇO | E74: UN | F74: COEF. | G74: P. UNIT. (S/ BDI) | H74: VALOR
A75: ='P. O. MÓDULO MÍNIMO'!C50 -> CPU-09 | C75: ='P. O. MÓDULO MÍNIMO'!D50 -> JUNTA DE DILATAÇÃO DO PISO | E75: UN > | F75: ='P. O. MÓDULO MÍNIMO'!E50 -> M | G75: VALOR S/ BDI | H75: =SUM(H76:H78) -> 0
A76: 9.1 | B76: SINAPI-I | C76: 3671 | D76: =VLOOKUP($C76,'SINAPI TO - INSUMOS'!$A$3:$D$7831,2,FALSE) -> JUNTA PLASTICA DE DILATACAO PARA PISOS, COR CINZA, 17 X 3 MM (ALTURA X ESPESSURA) | E76: =VLOOKUP(C76,'SINAPI TO - INSUMOS'!$A$8:$E$4846,3,FALSE) -> M | F76: 1 | H76: =ROUND(G76*F76,2) -> 0
A77: 9.2 | B77: SINAPI-I | C77: 6111 | D77: =VLOOKUP($C77,'SINAPI TO - INSUMOS'!$A$3:$D$7831,2,FALSE) -> SERVENTE DE OBRAS (HORISTA) | E77: =VLOOKUP(C77,'SINAPI TO - INSUMOS'!$A$8:$E$4846,3,FALSE) -> H | F77: 0.2 | H77: =ROUND(G77*F77,2) -> 0
A78: 9.3 | B78: SINAPI-I | C78: 4750 | D78: =VLOOKUP($C78,'SINAPI TO - INSUMOS'!$A$3:$D$7831,2,FALSE) -> PEDREIRO (HORISTA) | E78: =VLOOKUP(C78,'SINAPI TO - INSUMOS'!$A$8:$E$4846,3,FALSE) -> H | F78: 0.1 | H78: 0
A79: OBS:
A82: ITEM | B82: REF. | C82: CÓDIGO | D82: DESCRIÇÃO DO SERVIÇO | E82: UN | F82: COEF. | G82: P. UNIT. (S/ BDI) | H82: VALOR
A83: ='P. O. MÓDULO MÍNIMO'!C103 -> CPU-10 | C83: ='P. O. MÓDULO MÍNIMO'!D103 -> REFLETOR SLIM LED 200W DE POTÊNCIA, BRANCO FRIO, 6500K, AUTOVOLT, MARCA G-LIGHT OU SIMILIAR | E83: UN > | F83: ='P. O. MÓDULO MÍNIMO'!E103 -> UN | G83: VALOR S/ BDI | H83: =SUBTOTAL(9,H84:H86) -> 0
A84: 11.1 | B84: SINAPI-I | C84: 2436 | D84: =VLOOKUP($C84,'SINAPI TO - INSUMOS'!$A$3:$D$7831,2,FALSE) -> ELETRICISTA (HORISTA) | E84: =VLOOKUP(C84,'SINAPI TO - INSUMOS'!$A$8:$E$4846,3,FALSE) -> H | F84: 0.5 | H84: =ROUND(G84*F84,2) -> 0
A85: 11.2 | B85: SINAPI-I | C85: 6111 | D85: =VLOOKUP($C85,'SINAPI TO - INSUMOS'!$A$3:$D$7831,2,FALSE) -> SERVENTE DE OBRAS (HORISTA) | E85: =VLOOKUP(C85,'SINAPI TO - INSUMOS'!$A$8:$E$4846,3,FALSE) -> H | F85: 0.3 | H85: =ROUND(G85*F85,2) -> 0
A86: 11.3 | B86: ORSE | C86: 13524 | D86: REFLETOR SLIM LED 200W DE POTÊNCIA, BRANCO FRIO, 6500K, AUTOVOLT, MARCA G-LIGHT OU SIMILIAR | E86: UN | F86: 1 | H86: 0
A87: OBS:
A90: ITEM | B90: REF. | C90: CÓDIGO | D90: DESCRIÇÃO DO SERVIÇO | E90: UN | F90: COEF. | G90: P. UNIT. (S/ BDI) | H90: VALOR
A91: ='P. O. MÓDULO MÍNIMO'!C133 -> CPU-11 | C91: ='P. O. MÓDULO MÍNIMO'!D133 -> INSTALAÇÃO DE TUBOS DE PVC | E91: UN > | F91: ='P. O. MÓDULO MÍNIMO'!E133 -> M | G91: VALOR S/ BDI | H91: =SUBTOTAL(9,H92:H93) -> 0
A92: 12.1 | B92: SINAPI-I | C92: 6111 | D92: =VLOOKUP($C92,'SINAPI TO - INSUMOS'!$A$3:$D$7831,2,FALSE) -> SERVENTE DE OBRAS (HORISTA) | E92: =VLOOKUP(C92,'SINAPI TO - INSUMOS'!$A$8:$E$4846,3,FALSE) -> H | F92: 0.5 | H92: =ROUND(G92*F92,2) -> 0
A93: 12.2 | B93: SINAPI-I | C93: 9841 | D93: =VLOOKUP($C93,'SINAPI TO - INSUMOS'!$A$3:$D$7831,2,FALSE) -> TUBO PVC, SERIE R, DN 100 MM, PARA ESGOTO OU AGUAS PLUVIAIS PREDIAL (NBR 5688) | E93: =VLOOKUP(C93,'SINAPI TO - INSUMOS'!$A$8:$E$4846,3,FALSE) -> M | F93: 1 | H93: 0
A94: OBS:
A97: ITEM | B97: REF. | C97: CÓDIGO | D97: DESCRIÇÃO DO SERVIÇO | E97: UN | F97: COEF. | G97: P. UNIT. (S/ BDI) | H97: VALOR
A98: ='P. O. MÓDULO MÍNIMO'!C136 -> CPU-18 | C98: ='P. O. MÓDULO MÍNIMO'!D136 -> LIMPEZA DE PISO EM ÁREA URBANIZADA | E98: UN > | F98: ='P. O. MÓDULO MÍNIMO'!E136 -> M2 | G98: VALOR S/ BDI | H98: =SUBTOTAL(9,H99:H99) -> 0
A99: 18.1 | B99: SINAPI-I | C99: 6111 | D99: =VLOOKUP($C99,'SINAPI TO - INSUMOS'!$A$3:$D$7831,2,FALSE) -> SERVENTE DE OBRAS (HORISTA) | E99: =VLOOKUP(C99,'SINAPI TO - INSUMOS'!$A$8:$E$4846,3,FALSE) -> H | F99: 0.03 | H99: =ROUND(G99*F99,2) -> 0
A100: OBS:

Sheet BDI
A1: COMPOSIÇÃO DO BDI PARA SERVIÇOS EDIFICAÇÕES
A2: ITEM | F2: DESCRIÇÃO | O2: MIN | R2: MED | U2: MÁX | X2: ADOTADO
A3: AC | F3: ADMINISTRAÇÃO CENTRAL | O3: 0.03 | R3: 0.04 | U3: 0.055
A4: S e G | F4: SEGUROS E GARANTIAS | O4: 0.008 | R4: 0.008 | U4: 0.01
A5: R | F5: RISCOS | O5: 0.0097 | R5: 0.0127 | U5: 0.0127
A6: DF | F6: DESPESAS FINANCEIRAS | O6: 0.0059 | R6: 0.0123 | U6: 0.0139
A7: L | F7: LUCRO | O7: 0.0616 | R7: 0.074 | U7: 0.0869
A8: ITEM | F8: DESCRIÇÃO | V8: TOTAL DE IMPOSTOS | X8: =SUM(X9:X11) -> 0
A9: IMPOSTOS | F9: PIS
F10: COFINS
F11: ISS (ALÍQUOTA x BASE DE CÁLCULO) | T11: 0.06 | U11: x | V11: 0.5 | W11: =
A12: FÓRMULA INDICADA PELO TCU
A14: BDI | B14: = | C14: ( | D14: 1 | E14: + | F14: AC | G14: + | H14: S | I14: + | J14: R | K14: + | L14: G | M14: ) x ( | N14: 1 | O14: + | P14: DF | Q14: ) x ( | R14: 1 | S14: + | T14: L | U14: ) | V14: - | W14: 1
H15: 1 | I15: - ( | J15: I1 | K15: + | L15: I2 | M15: + | N15: I3 | O15: )
A17: CÁLCULO SEM A INCLUSÃO DA CPRB
A19: BDI | B19: = | C19: ( | D19: 1 | E19: + | F19: =X3 -> 0 | G19: + | H19: =X4 -> 0 | I19: + | J19: =X5 -> 0 | K19: + | L19: 0 | M19: ) x ( | N19: 1 | O19: + | P19: =X6 -> 0 | Q19: ) x ( | R19: 1 | S19: + | T19: =X7 -> 0 | U19: ) | V19: - | W19: 1 = | X19: =(((1+F19+H19+J19+L19)*(1+P19)*(1+T19))/(1-(J20+L20+N20)))-1 -> 0
H20: 1 | I20: - ( | J20: =X9 -> 0 | K20: + | L20: =X10 -> 0 | M20: + | N20: =X11 -> 0 | O20: )
A22: CÁLCULO COM A INCLUSÃO DA CPRB | W22: PERCENTUAL DA CPRB | X22: 0
A24: BDI | B24: = | C24: ( | D24: 1 | E24: + | F24: =F19 -> 0 | G24: + | H24: =H19 -> 0 | I24: + | J24: =J19 -> 0 | K24: + | L24: =L19 -> 0 | M24: ) x ( | N24: 1 | O24: + | P24: =P19 -> 0 | Q24: ) x ( | R24: 1 | S24: + | T24: =T19 -> 0 | U24: ) | V24: - | W24: 1 = | X24: =ROUND((((1+F24+H24+J24+L24)*(1+P24)*(1+T24))/(1-(J25+L25+N25+P25)))-1,4) -> 0
H25: 1 | I25: - ( | J25: 0 | K25: + | L25: =L20 -> 0 | M25: + | N25: =N20 -> 0 | O25: + | P25: =X22 -> 0 | Q25: )

Sheet ENCARGOS SOCIAIS
A1: DETALHAMENTO DOS ENCARGOS SOCIAIS (%)
A3: VIGÊNCIA A PARTIR DE 12/2023 | D3: SEM DESONERAÇÃO
D4: HORISTA | E4: MENSALISTA
A6: GRUPO A
A7: A1 | B7: INSS | D7: 20 | E7: 20
A8: A2 | B8: SESI | D8: 1.5 | E8: 1.5
A9: A3 | B9: SENAI | D9: 1 | E9: 1
A10: A4 | B10: INCRA | D10: 0.2 | E10: 0.2
A11: A5 | B11: SEBRAE | D11: 0.6 | E11: 0.6
A12: A6 | B12: Salário Educação | D12: 2.5 | E12: 2.5
A13: A7 | B13: Seguro Contra Acidentes de Trabalho | D13: 3 | E13: 3
A14: A8 | B14: FGTS | D14: 8 | E14: 8
A15: A9 | B15: SECONCI
A16: A | B16: Total | D16: =SUM(D7:D15) -> 36.8 | E16: =SUM(E7:E15) -> 36.8
A17: GRUPO B
A18: B1 | B18: Repouso Semanal Remunerado | D18: 17.89 | E18: -
A19: B2 | B19: Feriados | D19: 3.94 | E19: -
A20: B3 | B20: Auxílio-enfermidade | D20: 0.89 | E20: 0.64
A21: B4 | B21: 13° salário | D21: 11.57 | E21: 8.33
A22: B5 | B22: Licença-paternidade | D22: 0.06 | E22: 0.04
A23: B6 | B23: Faltas Justificadas | D23: 0.77 | E23: 0.56
A24: B7 | B24: Dias de chuva | D24: 1.52 | E24: 0
A25: B8 | B25: Auxílio Acidente de Trabalho | D25: 0.11 | E25: 0.08
A26: B9 | B26: Férias Gozadas | D26: 0 | E26: 0
A27: B10 | B27: Salário Maternidade | D27: 0.04 | E27: 0.03
A28: B | B28: Total | D28: =SUM(D18:D27) -> 36.79 | E28: =SUM(E18:E27) -> 9.68
A29: GRUPO C
A30: C1 | B30: Aviso Prévio Indenizado | D30: 7.43 | E30: 5.35
A31: C2 | B31: Aviso Prévio Trabalhado | D31: 0.18 | E31: 0.13
A32: C3 | B32: Férias Indenizadas | D32: 12.68 | E32: 9.14
A33: C4 | B33: Depósito Rescisão Sem Justa Causa | D33: 2.4 | E33: 1.73
A34: C5 | B34: Indenização Adicional | D34: 0.63 | E34: 0.45
A35: C | B35: Total | D35: =SUM(D30:D34) -> 23.32 | E35: =SUM(E30:E34) -> 16.8
A36: GRUPO D
A37: D1 | B37: Reincidência de A sobre B | D37: 13.54 | E37: 3.56
A38: D2 | B38: Reincidência de Grupo A sobre Aviso Prévio Trabalhado e Reincidência do FGTS sobre Aviso Prévio Indenizado | D38: 0.66 | E38: 0.48
A39: D | B39: Total | D39: =SUM(D37:D38) -> 14.2 | E39: =SUM(E37:E38) -> 4.04
A41: T O T A L (%) | D41: =(D16+D28+D35+D39)/100 -> 1.1111 | E41: 0.6732

Sheet CRONOGRAMA
A1: Cronograma Físico e Financeiro
A2: Item | B2: Descrição | C2: Total Por Etapa | D2: 30 DIAS | E2: 60 DIAS | F2: 90 DIAS | G2: 120 DIAS | H2: 150 DIAS | I2: 180 DIAS | J2: 210 DIAS | K2: 240 DIAS | L2: 270 DIAS | M2: 300 DIAS | N2: 330 DIAS | O2: 360 DIAS
A3: 1 | B3: ='P. O. MÓDULO MÍNIMO'!D7 -> PROJETO EXECUTIVO | C3: =SUM(D3:O3) -> 0
C4: ='P. O. TOTAL'!J7 -> 0
A5: 2 | B5: ='P. O. MÓDULO MÍNIMO'!D9 -> SERVIÇOS PRELIMINARES | C5: =SUM(D5:O5) -> 0
C6: ='P. O. TOTAL'!J9 -> 0
A7: 3 | B7: ='P. O. MÓDULO MÍNIMO'!D14 -> PREPARAÇÃO DO TERRENO | C7: =SUM(D7:O7) -> 0
C8: ='P. O. TOTAL'!J14 -> 0
A9: 4 | B9: ='P. O. MÓDULO MÍNIMO'!D16 -> LOCAÇÃO DA OBRA | C9: =SUM(D9:O9) -> 0
C10: ='P. O. TOTAL'!J16 -> 0
A11: 5 | B11: ='P. O. MÓDULO MÍNIMO'!D18 -> REGULARIZAÇÃO DO TERRENO | C11: =SUM(D11:O11) -> 0
C12: ='P. O. TOTAL'!J18 -> 0
A13: 6 | B13: ='P. O. MÓDULO MÍNIMO'!D20 -> MURETA E ALAMBRADO | C13: =SUM(D13:O13) -> 0
C14: ='P. O. TOTAL'!J20 -> 0
A15: 7 | B15: ='P. O. MÓDULO MÍNIMO'!D44 -> PISO | C15: =SUM(D15:O15) -> 0
C16: ='P. O. TOTAL'!J44 -> 0
A17: 8 | B17: ='P. O. MÓDULO MÍNIMO'!D56 -> ARQUIBANCADAS | C17: =SUM(D17:O17) -> 0
C18: ='P. O. TOTAL'!J56 -> 0
A19: 9 | B19: ='P. O. MÓDULO MÍNIMO'!D77 -> INSTALAÇÕES ELÉTRICAS | C19: =SUM(D19:O19) -> 0
C20: ='P. O. TOTAL'!J77 -> 0
A21: 10 | B21: ='P. O. MÓDULO MÍNIMO'!D104 -> COBERTURA | C21: =SUM(D21:O21) -> 0
C22: ='P. O. TOTAL'!J104 -> 0
A23: 11 | B23: ='P. O. MÓDULO MÍNIMO'!D130 -> INSTALAÇÕES PLUVIAIS | C23: =SUM(D23:O23) -> 0
C24: ='P. O. TOTAL'!J130 -> 0
A25: 12 | B25: ='P. O. MÓDULO MÍNIMO'!D135 -> LIMPEZA DA OBRA | C25: =SUM(D25:O25) -> 0
C26: ='P. O. TOTAL'!J135 -> 0
A28: Porcentagem
A29: Custo
A30: Porcentagem Acumulado
A31: Custo Acumulado
D33: Total Geral | N33: R$ | O33: ='P. O. TOTAL'!J137 -> 0

Sheet SINAPI -TO
A1: CODIGO DA COMPOSICAO | B1: DESCRICAO DA COMPOSICAO | C1: UNIDADE | D1: CUSTO TOTAL
A3: 97141 | B3: ASSENTAMENTO DE TUBO DE FERRO FUNDIDO PARA REDE DE ÁGUA, DN 80 MM, JUNTA ELÁSTICA, INSTALADO EM LOCAL COM NÍVEL ALTO DE INTERFERÊNCIAS (NÃO INCLUI FORNECIMENTO). AF_05/2024 | C3: M | D3: 4,36
A4: 97142 | B4: ASSENTAMENTO DE TUBO DE FERRO FUNDIDO PARA REDE DE ÁGUA, DN 100 MM, JUNTA ELÁSTICA, INSTALADO EM LOCAL COM NÍVEL ALTO DE INTERFERÊNCIAS (NÃO INCLUI FORNECIMENTO). AF_05/2024 | C4: M | D4: 5,00
A5: 97143 | B5: ASSENTAMENTO DE TUBO DE FERRO FUNDIDO PARA REDE DE ÁGUA, DN 150 MM, JUNTA ELÁSTICA, INSTALADO EM LOCAL COM NÍVEL ALTO DE INTERFERÊNCIAS (NÃO INCLUI FORNECIMENTO). AF_05/2024 | C5: M | D5: 6,60
A6: 97144 | B6: ASSENTAMENTO DE TUBO DE FERRO FUNDIDO PARA REDE DE ÁGUA, DN 200 MM, JUNTA ELÁSTICA, INSTALADO EM LOCAL COM NÍVEL ALTO DE INTERFERÊNCIAS (NÃO INCLUI FORNECIMENTO). AF_05/2024 | C6: M | D6: 8,19
A7: 97145 | B7: ASSENTAMENTO DE TUBO DE FERRO FUNDIDO PARA REDE DE ÁGUA, DN 250 MM, JUNTA ELÁSTICA, INSTALADO EM LOCAL COM NÍVEL ALTO DE INTERFERÊNCIAS (NÃO INCLUI FORNECIMENTO). AF_05/2024 | C7: M | D7: 9,81
A8: 97146 | B8: ASSENTAMENTO DE TUBO DE FERRO FUNDIDO PARA REDE DE ÁGUA, DN 300 MM, JUNTA ELÁSTICA, INSTALADO EM LOCAL COM NÍVEL ALTO DE INTERFERÊNCIAS (NÃO INCLUI FORNECIMENTO). AF_05/2024 | C8: M | D8: 11,42
A9: 97147 | B9: ASSENTAMENTO DE TUBO DE FERRO FUNDIDO PARA REDE DE ÁGUA, DN 350 MM, JUNTA ELÁSTICA, INSTALADO EM LOCAL COM NÍVEL ALTO DE INTERFERÊNCIAS (NÃO INCLUI FORNECIMENTO). AF_05/2024 | C9: M | D9: 13,04
A10: 97148 | B10: ASSENTAMENTO DE TUBO DE FERRO FUNDIDO PARA REDE DE ÁGUA, DN 400 MM, JUNTA ELÁSTICA, INSTALADO EM LOCAL COM NÍVEL ALTO DE INTERFERÊNCIAS (NÃO INCLUI FORNECIMENTO). AF_05/2024 | C10: M | D10: 14,65
A11: 97149 | B11: ASSENTAMENTO DE TUBO DE FERRO FUNDIDO PARA REDE DE ÁGUA, DN 450 MM, JUNTA ELÁSTICA, INSTALADO EM LOCAL COM NÍVEL ALTO DE INTERFERÊNCIAS (NÃO INCLUI FORNECIMENTO). AF_05/2024 | C11: M | D11: 16,28
A12: 97150 | B12: ASSENTAMENTO DE TUBO DE FERRO FUNDIDO PARA REDE DE ÁGUA, DN 500 MM, JUNTA ELÁSTICA, INSTALADO EM LOCAL COM NÍVEL ALTO DE INTERFERÊNCIAS (NÃO INCLUI FORNECIMENTO). AF_05/2024 | C12: M | D12: 21,22
A13: 97151 | B13: ASSENTAMENTO DE TUBO DE FERRO FUNDIDO PARA REDE DE ÁGUA, DN 600 MM, JUNTA ELÁSTICA, INSTALADO EM LOCAL COM NÍVEL ALTO DE INTERFERÊNCIAS (NÃO INCLUI FORNECIMENTO). AF_05/2024 | C13: M | D13: 24,98
A14: 97152 | B14: ASSENTAMENTO DE TUBO DE FERRO FUNDIDO PARA REDE DE ÁGUA, DN 700 MM, JUNTA ELÁSTICA, INSTALADO EM LOCAL COM NÍVEL ALTO DE INTERFERÊNCIAS (NÃO INCLUI FORNECIMENTO). AF_05/2024 | C14: M | D14: 28,48
A15: 97153 | B15: ASSENTAMENTO DE TUBO DE FERRO FUNDIDO PARA REDE DE ÁGUA, DN 800 MM, JUNTA ELÁSTICA, INSTALADO EM LOCAL COM NÍVEL ALTO DE INTERFERÊNCIAS (NÃO INCLUI FORNECIMENTO). AF_05/2024 | C15: M | D15: 32,15
A16: 97154 | B16: ASSENTAMENTO DE TUBO DE FERRO FUNDIDO PARA REDE DE ÁGUA, DN 900 MM, JUNTA ELÁSTICA, INSTALADO EM LOCAL COM NÍVEL ALTO DE INTERFERÊNCIAS (NÃO INCLUI FORNECIMENTO). AF_05/2024 | C16: M | D16: 35,86
A17: 97155 | B17: ASSENTAMENTO DE TUBO DE FERRO FUNDIDO PARA REDE DE ÁGUA, DN 1000 MM, JUNTA ELÁSTICA, INSTALADO EM LOCAL COM NÍVEL ALTO DE INTERFERÊNCIAS (NÃO INCLUI FORNECIMENTO). AF_05/2024 | C17: M | D17: 39,59
A18: 97156 | B18: ASSENTAMENTO DE TUBO DE FERRO FUNDIDO PARA REDE DE ÁGUA, DN 1200 MM, JUNTA ELÁSTICA, INSTALADO EM LOCAL COM NÍVEL ALTO DE INTERFERÊNCIAS (NÃO INCLUI FORNECIMENTO). AF_05/2024 | C18: M | D18: 47,44
A19: 97157 | B19: ASSENTAMENTO DE TUBO DE FERRO FUNDIDO PARA REDE DE ÁGUA, DN 80 MM, JUNTA ELÁSTICA, INSTALADO EM LOCAL COM NÍVEL BAIXO DE INTERFERÊNCIAS (NÃO INCLUI FORNECIMENTO). AF_05/2024 | C19: M | D19: 3,30
A20: 97158 | B20: ASSENTAMENTO DE TUBO DE FERRO FUNDIDO PARA REDE DE ÁGUA, DN 100 MM, JUNTA ELÁSTICA, INSTALADO EM LOCAL COM NÍVEL BAIXO DE INTERFERÊNCIAS (NÃO INCLUI FORNECIMENTO). AF_05/2024 | C20: M | D20: 3,83
A21: 97159 | B21: ASSENTAMENTO DE TUBO DE FERRO FUNDIDO PARA REDE DE ÁGUA, DN 150 MM, JUNTA ELÁSTICA, INSTALADO EM LOCAL COM NÍVEL BAIXO DE INTERFERÊNCIAS (NÃO INCLUI FORNECIMENTO). AF_05/2024 | C21: M | D21: 5,15
A22: 97160 | B22: ASSENTAMENTO DE TUBO DE FERRO FUNDIDO PARA REDE DE ÁGUA, DN 200 MM, JUNTA ELÁSTICA, INSTALADO EM LOCAL COM NÍVEL BAIXO DE INTERFERÊNCIAS (NÃO INCLUI FORNECIMENTO). AF_05/2024 | C22: M | D22: 6,45
A23: 97161 | B23: ASSENTAMENTO DE TUBO DE FERRO FUNDIDO PARA REDE DE ÁGUA, DN 250 MM, JUNTA ELÁSTICA, INSTALADO EM LOCAL COM NÍVEL BAIXO DE INTERFERÊNCIAS (NÃO INCLUI FORNECIMENTO). AF_05/2024 | C23: M | D23: 7,77
A24: 97162 | B24: ASSENTAMENTO DE TUBO DE FERRO FUNDIDO PARA REDE DE ÁGUA, DN 300 MM, JUNTA ELÁSTICA, INSTALADO EM LOCAL COM NÍVEL BAIXO DE INTERFERÊNCIAS (NÃO INCLUI FORNECIMENTO). AF_05/2024 | C24: M | D24: 9,11
A25: 97163 | B25: ASSENTAMENTO DE TUBO DE FERRO FUNDIDO PARA REDE DE ÁGUA, DN 350 MM, JUNTA ELÁSTICA, INSTALADO EM LOCAL COM NÍVEL BAIXO DE INTERFERÊNCIAS (NÃO INCLUI FORNECIMENTO). AF_05/2024 | C25: M | D25: 10,45
A26: 97164 | B26: ASSENTAMENTO DE TUBO DE FERRO FUNDIDO PARA REDE DE ÁGUA, DN 400 MM, JUNTA ELÁSTICA, INSTALADO EM LOCAL COM NÍVEL BAIXO DE INTERFERÊNCIAS (NÃO INCLUI FORNECIMENTO). AF_05/2024 | C26: M | D26: 11,78
A27: 97165 | B27: ASSENTAMENTO DE TUBO DE FERRO FUNDIDO PARA REDE DE ÁGUA, DN 450 MM, JUNTA ELÁSTICA, INSTALADO EM LOCAL COM NÍVEL BAIXO DE INTERFERÊNCIAS (NÃO INCLUI FORNECIMENTO). AF_05/2024 | C27: M | D27: 13,12
A28: 97166 | B28: ASSENTAMENTO DE TUBO DE FERRO FUNDIDO PARA REDE DE ÁGUA, DN 500 MM, JUNTA ELÁSTICA, INSTALADO EM LOCAL COM NÍVEL BAIXO DE INTERFERÊNCIAS (NÃO INCLUI FORNECIMENTO). AF_05/2024 | C28: M | D28: 16,70
A29: 97167 | B29: ASSENTAMENTO DE TUBO DE FERRO FUNDIDO PARA REDE DE ÁGUA, DN 600 MM, JUNTA ELÁSTICA, INSTALADO EM LOCAL COM NÍVEL BAIXO DE INTERFERÊNCIAS (NÃO INCLUI FORNECIMENTO). AF_05/2024 | C29: M | D29: 19,74
A30: 97168 | B30: ASSENTAMENTO DE TUBO DE FERRO FUNDIDO PARA REDE DE ÁGUA, DN 700 MM, JUNTA ELÁSTICA, INSTALADO EM LOCAL COM NÍVEL BAIXO DE INTERFERÊNCIAS (NÃO INCLUI FORNECIMENTO). AF_05/2024 | C30: M | D30: 22,51
A31: 97169 | B31: ASSENTAMENTO DE TUBO DE FERRO FUNDIDO PARA REDE DE ÁGUA, DN 800 MM, JUNTA ELÁSTICA, INSTALADO EM LOCAL COM NÍVEL BAIXO DE INTERFERÊNCIAS (NÃO INCLUI FORNECIMENTO). AF_05/2024 | C31: M | D31: 25,45
A32: 97170 | B32: ASSENTAMENTO DE TUBO DE FERRO FUNDIDO PARA REDE DE ÁGUA, DN 900 MM, JUNTA ELÁSTICA, INSTALADO EM LOCAL COM NÍVEL BAIXO DE INTERFERÊNCIAS (NÃO INCLUI FORNECIMENTO). AF_05/2024 | C32: M | D32: 28,43
A33: 97171 | B33: ASSENTAMENTO DE TUBO DE FERRO FUNDIDO PARA REDE DE ÁGUA, DN 1000 MM, JUNTA ELÁSTICA, INSTALADO EM LOCAL COM NÍVEL BAIXO DE INTERFERÊNCIAS (NÃO INCLUI FORNECIMENTO). AF_05/2024 | C33: M | D33: 31,42
A34: 97172 | B34: ASSENTAMENTO DE TUBO DE FERRO FUNDIDO PARA REDE DE ÁGUA, DN 1200 MM, JUNTA ELÁSTICA, INSTALADO EM LOCAL COM NÍVEL BAIXO DE INTERFERÊNCIAS (NÃO INCLUI FORNECIMENTO). AF_05/2024 | C34: M | D34: 37,82
A35: 105249 | B35: ASSENTAMENTO DE CONEXÃO 2 ACESSOS ALINHADOS DE FERRO FUNDIDO PARA REDE DE ÁGUA, DN 1200, JUNTA ELÁSTICA, INSTALADO EM LOCAL COM NÍVEL ALTO DE INTERFERÊNCIAS (NÃO INCLUI FORNECIMENTO). AF_05/2024 | C35: UN | D35: 106,43
A36: 105250 | B36: ASSENTAMENTO DE CONEXÃO 2 ACESSOS INCLINADOS DE FERRO FUNDIDO PARA REDE DE ÁGUA, DN 80, JUNTA ELÁSTICA, INSTALADO EM LOCAL COM NÍVEL ALTO DE INTERFERÊNCIAS (NÃO INCLUI FORNECIMENTO). AF_05/2024 | C36: UN | D36: 13,85
A37: 105251 | B37: ASSENTAMENTO DE CONEXÃO 2 ACESSOS INCLINADOS DE FERRO FUNDIDO PARA REDE DE ÁGUA, DN 100, JUNTA ELÁSTICA, INSTALADO EM LOCAL COM NÍVEL ALTO DE INTERFERÊNCIAS (NÃO INCLUI FORNECIMENTO). AF_05/2024 | C37: UN | D37: 15,91
A38: 105252 | B38: ASSENTAMENTO DE CONEXÃO 2 ACESSOS INCLINADOS DE FERRO FUNDIDO PARA REDE DE ÁGUA, DN 150, JUNTA ELÁSTICA, INSTALADO EM LOCAL COM NÍVEL ALTO DE INTERFERÊNCIAS (NÃO INCLUI FORNECIMENTO). AF_05/2024 | C38: UN | D38: 20,94
A39: 105253 | B39: ASSENTAMENTO DE CONEXÃO 2 ACESSOS INCLINADOS DE FERRO FUNDIDO PARA REDE DE ÁGUA, DN 200, JUNTA ELÁSTICA, INSTALADO EM LOCAL COM NÍVEL ALTO DE INTERFERÊNCIAS (NÃO INCLUI FORNECIMENTO). AF_05/2024 | C39: UN | D39: 25,97
A40: 105254 | B40: ASSENTAMENTO DE CONEXÃO 2 ACESSOS INCLINADOS DE FERRO FUNDIDO PARA REDE DE ÁGUA, DN 250, JUNTA ELÁSTICA, INSTALADO EM LOCAL COM NÍVEL ALTO DE INTERFERÊNCIAS (NÃO INCLUI FORNECIMENTO). AF_05/2024 | C40: UN | D40: 31,14
A41: 105255 | B41: ASSENTAMENTO DE CONEXÃO 2 ACESSOS INCLINADOS DE FERRO FUNDIDO PARA REDE DE ÁGUA, DN 300, JUNTA ELÁSTICA, INSTALADO EM LOCAL COM NÍVEL ALTO DE INTERFERÊNCIAS (NÃO INCLUI FORNECIMENTO). AF_05/2024 | C41: UN | D41: 36,32
A42: 105256 | B42: ASSENTAMENTO DE CONEXÃO 2 ACESSOS INCLINADOS DE FERRO FUNDIDO PARA REDE DE ÁGUA, DN 350, JUNTA ELÁSTICA, INSTALADO EM LOCAL COM NÍVEL ALTO DE INTERFERÊNCIAS (NÃO INCLUI FORNECIMENTO). AF_05/2024 | C42: UN | D42: 41,50
A43: 105257 | B43: ASSENTAMENTO DE CONEXÃO 2 ACESSOS INCLINADOS DE FERRO FUNDIDO PARA REDE DE ÁGUA, DN 400, JUNTA ELÁSTICA, INSTALADO EM LOCAL COM NÍVEL ALTO DE INTERFERÊNCIAS (NÃO INCLUI FORNECIMENTO). AF_05/2024 | C43: UN | D43: 46,66
A44: 105258 | B44: ASSENTAMENTO DE CONEXÃO 2 ACESSOS ALINHADOS DE FERRO FUNDIDO PARA REDE DE ÁGUA, DN 400, JUNTA ELÁSTICA, INSTALADO EM LOCAL COM NÍVEL BAIXO DE INTERFERÊNCIAS (NÃO INCLUI FORNECIMENTO). AF_05/2024 | C44: UN | D44: 26,26
A45: 105259 | B45: ASSENTAMENTO DE CONEXÃO 3 ACESSOS DE FERRO FUNDIDO PARA REDE DE ÁGUA, DN 100, JUNTA ELÁSTICA, INSTALADO EM LOCAL COM NÍVEL BAIXO DE INTERFERÊNCIAS (NÃO INCLUI FORNECIMENTO). AF_05/2024 | C45: UN | D45: 17,02
A46: 105261 | B46: ASSENTAMENTO DE CONEXÃO 2 ACESSOS ALINHADOS DE FERRO FUNDIDO PARA REDE DE ÁGUA, DN 450, JUNTA ELÁSTICA, INSTALADO EM LOCAL COM NÍVEL BAIXO DE INTERFERÊNCIAS (NÃO INCLUI FORNECIMENTO). AF_05/2024 | C46: UN | D46: 29,40
A47: 105262 | B47: ASSENTAMENTO DE CONEXÃO 2 ACESSOS ALINHADOS DE FERRO FUNDIDO PARA REDE DE ÁGUA, DN 500, JUNTA ELÁSTICA, INSTALADO EM LOCAL COM NÍVEL BAIXO DE INTERFERÊNCIAS (NÃO INCLUI FORNECIMENTO). AF_05/2024 | C47: UN | D47: 37,05
A48: 105263 | B48: ASSENTAMENTO DE CONEXÃO 2 ACESSOS ALINHADOS DE FERRO FUNDIDO PARA REDE DE ÁGUA, DN 600, JUNTA ELÁSTICA, INSTALADO EM LOCAL COM NÍVEL BAIXO DE INTERFERÊNCIAS (NÃO INCLUI FORNECIMENTO). AF_05/2024 | C48: UN | D48: 44,00
A49: 105264 | B49: ASSENTAMENTO DE CONEXÃO 2 ACESSOS ALINHADOS DE FERRO FUNDIDO PARA REDE DE ÁGUA, DN 700, JUNTA ELÁSTICA, INSTALADO EM LOCAL COM NÍVEL BAIXO DE INTERFERÊNCIAS (NÃO INCLUI FORNECIMENTO). AF_05/2024 | C49: UN | D49: 50,18
A50: 105265 | B50: ASSENTAMENTO DE CONEXÃO 2 ACESSOS ALINHADOS DE FERRO FUNDIDO PARA REDE DE ÁGUA, DN 800, JUNTA ELÁSTICA, INSTALADO EM LOCAL COM NÍVEL BAIXO DE INTERFERÊNCIAS (NÃO INCLUI FORNECIMENTO). AF_05/2024 | C50: UN | D50: 56,65
A51: 105266 | B51: ASSENTAMENTO DE CONEXÃO 2 ACESSOS ALINHADOS DE FERRO FUNDIDO PARA REDE DE ÁGUA, DN 900, JUNTA ELÁSTICA, INSTALADO EM LOCAL COM NÍVEL BAIXO DE INTERFERÊNCIAS (NÃO INCLUI FORNECIMENTO). AF_05/2024 | C51: UN | D51: 63,33
A52: 105267 | B52: ASSENTAMENTO DE CONEXÃO 2 ACESSOS ALINHADOS DE FERRO FUNDIDO PARA REDE DE ÁGUA, DN 1000, JUNTA ELÁSTICA, INSTALADO EM LOCAL COM NÍVEL BAIXO DE INTERFERÊNCIAS (NÃO INCLUI FORNECIMENTO). AF_05/2024 | C52: UN | D52: 70,12
A53: 105268 | B53: ASSENTAMENTO DE CONEXÃO 2 ACESSOS ALINHADOS DE FERRO FUNDIDO PARA REDE DE ÁGUA, DN 1200, JUNTA ELÁSTICA, INSTALADO EM LOCAL COM NÍVEL BAIXO DE INTERFERÊNCIAS (NÃO INCLUI FORNECIMENTO). AF_05/2024 | C53: UN | D53: 86,69
A54: 105269 | B54: ASSENTAMENTO DE CONEXÃO 2 ACESSOS INCLINADOS DE FERRO FUNDIDO PARA REDE DE ÁGUA, DN 80, JUNTA ELÁSTICA, INSTALADO EM LOCAL COM NÍVEL BAIXO DE INTERFERÊNCIAS (NÃO INCLUI FORNECIMENTO). AF_05/2024 | C54: UN | D54: 10,59
A55: 105270 | B55: ASSENTAMENTO DE CONEXÃO 2 ACESSOS INCLINADOS DE FERRO FUNDIDO PARA REDE DE ÁGUA, DN 450, JUNTA ELÁSTICA, INSTALADO EM LOCAL COM NÍVEL ALTO DE INTERFERÊNCIAS (NÃO INCLUI FORNECIMENTO). AF_05/2024 | C55: UN | D55: 51,96
A56: 105271 | B56: ASSENTAMENTO DE CONEXÃO 2 ACESSOS INCLINADOS DE FERRO FUNDIDO PARA REDE DE ÁGUA, DN 500, JUNTA ELÁSTICA, INSTALADO EM LOCAL COM NÍVEL ALTO DE INTERFERÊNCIAS (NÃO INCLUI FORNECIMENTO). AF_05/2024 | C56: UN | D56: 67,38
A57: 105272 | B57: ASSENTAMENTO DE CONEXÃO 2 ACESSOS INCLINADOS DE FERRO FUNDIDO PARA REDE DE ÁGUA, DN 600, JUNTA ELÁSTICA, INSTALADO EM LOCAL COM NÍVEL ALTO DE INTERFERÊNCIAS (NÃO INCLUI FORNECIMENTO). AF_05/2024 | C57: UN | D57: 79,52
A58: 105273 | B58: ASSENTAMENTO DE CONEXÃO 2 ACESSOS INCLINADOS DE FERRO FUNDIDO PARA REDE DE ÁGUA, DN 700, JUNTA ELÁSTICA, INSTALADO EM LOCAL COM NÍVEL ALTO DE INTERFERÊNCIAS (NÃO INCLUI FORNECIMENTO). AF_05/2024 | C58: UN | D58: 90,87
A59: 105274 | B59: ASSENTAMENTO DE CONEXÃO 2 ACESSOS INCLINADOS DE FERRO FUNDIDO PARA REDE DE ÁGUA, DN 800, JUNTA ELÁSTICA, INSTALADO EM LOCAL COM NÍVEL ALTO DE INTERFERÊNCIAS (NÃO INCLUI FORNECIMENTO). AF_05/2024 | C59: UN | D59: 102,50
A60: 105275 | B60: ASSENTAMENTO DE CONEXÃO 2 ACESSOS INCLINADOS DE FERRO FUNDIDO PARA REDE DE ÁGUA, DN 900, JUNTA ELÁSTICA, INSTALADO EM LOCAL COM NÍVEL ALTO DE INTERFERÊNCIAS (NÃO INCLUI FORNECIMENTO). AF_05/2024 | C60: UN | D60: 114,35
A61: 105276 | B61: ASSENTAMENTO DE CONEXÃO 2 ACESSOS INCLINADOS DE FERRO FUNDIDO PARA REDE DE ÁGUA, DN 1000, JUNTA ELÁSTICA, INSTALADO EM LOCAL COM NÍVEL ALTO DE INTERFERÊNCIAS (NÃO INCLUI FORNECIMENTO). AF_05/2024 | C61: UN | D61: 126,33
A62: 105277 | B62: ASSENTAMENTO DE CONEXÃO 2 ACESSOS INCLINADOS DE FERRO FUNDIDO PARA REDE DE ÁGUA, DN 1200, JUNTA ELÁSTICA, INSTALADO EM LOCAL COM NÍVEL ALTO DE INTERFERÊNCIAS (NÃO INCLUI FORNECIMENTO). AF_05/2024 | C62: UN | D62: 153,21
A63: 105278 | B63: ASSENTAMENTO DE CONEXÃO 3 ACESSOS DE FERRO FUNDIDO PARA REDE DE ÁGUA, DN 80, JUNTA ELÁSTICA, INSTALADO EM LOCAL COM NÍVEL ALTO DE INTERFERÊNCIAS (NÃO INCLUI FORNECIMENTO). AF_05/2024 | C63: UN | D63: 19,01
A64: 105279 | B64: ASSENTAMENTO DE CONEXÃO 3 ACESSOS DE FERRO FUNDIDO PARA REDE DE ÁGUA, DN 100, JUNTA ELÁSTICA, INSTALADO EM LOCAL COM NÍVEL ALTO DE INTERFERÊNCIAS (NÃO INCLUI FORNECIMENTO). AF_05/2024 | C64: UN | D64: 21,84
A65: 105280 | B65: ASSENTAMENTO DE CONEXÃO 3 ACESSOS DE FERRO FUNDIDO PARA REDE DE ÁGUA, DN 150, JUNTA ELÁSTICA, INSTALADO EM LOCAL COM NÍVEL ALTO DE INTERFERÊNCIAS (NÃO INCLUI FORNECIMENTO). AF_05/2024 | C65: UN | D65: 28,73
A66: 105281 | B66: ASSENTAMENTO DE CONEXÃO 3 ACESSOS DE FERRO FUNDIDO PARA REDE DE ÁGUA, DN 200, JUNTA ELÁSTICA, INSTALADO EM LOCAL COM NÍVEL ALTO DE INTERFERÊNCIAS (NÃO INCLUI FORNECIMENTO). AF_05/2024 | C66: UN | D66: 35,61
A67: 105282 | B67: ASSENTAMENTO DE CONEXÃO 2 ACESSOS INCLINADOS DE FERRO FUNDIDO PARA REDE DE ÁGUA, DN 100, JUNTA ELÁSTICA, INSTALADO EM LOCAL COM NÍVEL BAIXO DE INTERFERÊNCIAS (NÃO INCLUI FORNECIMENTO). AF_05/2024 | C67: UN | D67: 12,28
A68: 105283 | B68: ASSENTAMENTO DE CONEXÃO 3 ACESSOS DE FERRO FUNDIDO PARA REDE DE ÁGUA, DN 150, JUNTA ELÁSTICA, INSTALADO EM LOCAL COM NÍVEL BAIXO DE INTERFERÊNCIAS (NÃO INCLUI FORNECIMENTO). AF_05/2024 | C68: UN | D68: 22,72
A69: 105284 | B69: ASSENTAMENTO DE CONEXÃO 3 ACESSOS DE FERRO FUNDIDO PARA REDE DE ÁGUA, DN 250, JUNTA ELÁSTICA, INSTALADO EM LOCAL COM NÍVEL ALTO DE INTERFERÊNCIAS (NÃO INCLUI FORNECIMENTO). AF_05/2024 | C69: UN | D69: 42,83
A70: 105297 | B70: ASSENTAMENTO DE CONEXÃO 2 ACESSOS ALINHADOS DE FERRO FUNDIDO PARA REDE DE ÁGUA, DN 80, JUNTA ELÁSTICA, INSTALADO EM LOCAL COM NÍVEL ALTO DE INTERFERÊNCIAS (NÃO INCLUI FORNECIMENTO). AF_05/2024 | C70: UN | D70: 9,49
A71: 105298 | B71: ASSENTAMENTO DE CONEXÃO 2 ACESSOS INCLINADOS DE FERRO FUNDIDO PARA REDE DE ÁGUA, DN 150, JUNTA ELÁSTICA, INSTALADO EM LOCAL COM NÍVEL BAIXO DE INTERFERÊNCIAS (NÃO INCLUI FORNECIMENTO). AF_05/2024 | C71: UN | D71: 16,44
A72: 105299 | B72: ASSENTAMENTO DE CONEXÃO 2 ACESSOS INCLINADOS DE FERRO FUNDIDO PARA REDE DE ÁGUA, DN 200, JUNTA ELÁSTICA, INSTALADO EM LOCAL COM NÍVEL BAIXO DE INTERFERÊNCIAS (NÃO INCLUI FORNECIMENTO). AF_05/2024 | C72: UN | D72: 20,60
A73: 105300 | B73: ASSENTAMENTO DE CONEXÃO 2 ACESSOS INCLINADOS DE FERRO FUNDIDO PARA REDE DE ÁGUA, DN 250, JUNTA ELÁSTICA, INSTALADO EM LOCAL COM NÍVEL BAIXO DE INTERFERÊNCIAS (NÃO INCLUI FORNECIMENTO). AF_05/2024 | C73: UN | D73: 24,92
A74: 105301 | B74: ASSENTAMENTO DE CONEXÃO 2 ACESSOS INCLINADOS DE FERRO FUNDIDO PARA REDE DE ÁGUA, DN 300, JUNTA ELÁSTICA, INSTALADO EM LOCAL COM NÍVEL BAIXO DE INTERFERÊNCIAS (NÃO INCLUI FORNECIMENTO). AF_05/2024 | C74: UN | D74: 29,21
A75: 105302 | B75: ASSENTAMENTO DE CONEXÃO 2 ACESSOS INCLINADOS DE FERRO FUNDIDO PARA REDE DE ÁGUA, DN 350, JUNTA ELÁSTICA, INSTALADO EM LOCAL COM NÍVEL BAIXO DE INTERFERÊNCIAS (NÃO INCLUI FORNECIMENTO). AF_05/2024 | C75: UN | D75: 33,51
A76: 105303 | B76: ASSENTAMENTO DE CONEXÃO 2 ACESSOS INCLINADOS DE FERRO FUNDIDO PARA REDE DE ÁGUA, DN 400, JUNTA ELÁSTICA, INSTALADO EM LOCAL COM NÍVEL BAIXO DE INTERFERÊNCIAS (NÃO INCLUI FORNECIMENTO). AF_05/2024 | C76: UN | D76: 37,81
A77: 105304 | B77: ASSENTAMENTO DE CONEXÃO 2 ACESSOS INCLINADOS DE FERRO FUNDIDO PARA REDE DE ÁGUA, DN 450, JUNTA ELÁSTICA, INSTALADO EM LOCAL COM NÍVEL BAIXO DE INTERFERÊNCIAS (NÃO INCLUI FORNECIMENTO). AF_05/2024 | C77: UN | D77: 42,24
A78: 105305 | B78: ASSENTAMENTO DE CONEXÃO 2 ACESSOS INCLINADOS DE FERRO FUNDIDO PARA REDE DE ÁGUA, DN 500, JUNTA ELÁSTICA, INSTALADO EM LOCAL COM NÍVEL BAIXO DE INTERFERÊNCIAS (NÃO INCLUI FORNECIMENTO). AF_05/2024 | C78: UN | D78: 53,48
A79: 105306 | B79: ASSENTAMENTO DE CONEXÃO 2 ACESSOS INCLINADOS DE FERRO FUNDIDO PARA REDE DE ÁGUA, DN 600, JUNTA ELÁSTICA, INSTALADO EM LOCAL COM NÍVEL BAIXO DE INTERFERÊNCIAS (NÃO INCLUI FORNECIMENTO). AF_05/2024 | C79: UN | D79: 63,35
A80: 105307 | B80: ASSENTAMENTO DE CONEXÃO 2 ACESSOS INCLINADOS DE FERRO FUNDIDO PARA REDE DE ÁGUA, DN 700, JUNTA ELÁSTICA, INSTALADO EM LOCAL COM NÍVEL BAIXO DE INTERFERÊNCIAS (NÃO INCLUI FORNECIMENTO). AF_05/2024 | C80: UN | D80: 72,47
A81: 105317 | B81: ASSENTAMENTO DE CONEXÃO 2 ACESSOS ALINHADOS DE FERRO FUNDIDO PARA REDE DE ÁGUA, DN 300, JUNTA ELÁSTICA, INSTALADO EM LOCAL COM NÍVEL BAIXO DE INTERFERÊNCIAS (NÃO INCLUI FORNECIMENTO). AF_05/2024 | C81: UN | D81: 20,24
A82: 105318 | B82: ASSENTAMENTO DE CONEXÃO 2 ACESSOS ALINHADOS DE FERRO FUNDIDO PARA REDE DE ÁGUA, DN 350, JUNTA ELÁSTICA, INSTALADO EM LOCAL COM NÍVEL BAIXO DE INTERFERÊNCIAS (NÃO INCLUI FORNECIMENTO). AF_05/2024 | C82: UN | D82: 23,26
A83: 105319 | B83: ASSENTAMENTO DE CONEXÃO 3 ACESSOS DE FERRO FUNDIDO PARA REDE DE ÁGUA, DN 200, JUNTA ELÁSTICA, INSTALADO EM LOCAL COM NÍVEL BAIXO DE INTERFERÊNCIAS (NÃO INCLUI FORNECIMENTO). AF_05/2024 | C83: UN | D83: 28,46
A84: 105320 | B84: ASSENTAMENTO DE CONEXÃO 3 ACESSOS DE FERRO FUNDIDO PARA REDE DE ÁGUA, DN 250, JUNTA ELÁSTICA, INSTALADO EM LOCAL COM NÍVEL BAIXO DE INTERFERÊNCIAS (NÃO INCLUI FORNECIMENTO). AF_05/2024 | C84: UN | D84: 34,53
A85: 105321 | B85: ASSENTAMENTO DE CONEXÃO 3 ACESSOS DE FERRO FUNDIDO PARA REDE DE ÁGUA, DN 300, JUNTA ELÁSTICA, INSTALADO EM LOCAL COM NÍVEL BAIXO DE INTERFERÊNCIAS (NÃO INCLUI FORNECIMENTO). AF_05/2024 | C85: UN | D85: 40,54
A86: 105322 | B86: ASSENTAMENTO DE CONEXÃO 3 ACESSOS DE FERRO FUNDIDO PARA REDE DE ÁGUA, DN 350, JUNTA ELÁSTICA, INSTALADO EM LOCAL COM NÍVEL BAIXO DE INTERFERÊNCIAS (NÃO INCLUI FORNECIMENTO). AF_05/2024 | C86: UN | D86: 46,56
A87: 105323 | B87: ASSENTAMENTO DE CONEXÃO 3 ACESSOS DE FERRO FUNDIDO PARA REDE DE ÁGUA, DN 400, JUNTA ELÁSTICA, INSTALADO EM LOCAL COM NÍVEL BAIXO DE INTERFERÊNCIAS (NÃO INCLUI FORNECIMENTO). AF_05/2024 | C87: UN | D87: 52,56
A88: 105324 | B88: ASSENTAMENTO DE CONEXÃO 3 ACESSOS DE FERRO FUNDIDO PARA REDE DE ÁGUA, DN 450, JUNTA ELÁSTICA, INSTALADO EM LOCAL COM NÍVEL BAIXO DE INTERFERÊNCIAS (NÃO INCLUI FORNECIMENTO). AF_05/2024 | C88: UN | D88: 58,84
A89: 105325 | B89: ASSENTAMENTO DE CONEXÃO 3 ACESSOS DE FERRO FUNDIDO PARA REDE DE ÁGUA, DN 500, JUNTA ELÁSTICA, INSTALADO EM LOCAL COM NÍVEL BAIXO DE INTERFERÊNCIAS (NÃO INCLUI FORNECIMENTO). AF_05/2024 | C89: UN | D89: 74,11
A90: 105326 | B90: ASSENTAMENTO DE CONEXÃO 3 ACESSOS DE FERRO FUNDIDO PARA REDE DE ÁGUA, DN 600, JUNTA ELÁSTICA, INSTALADO EM LOCAL COM NÍVEL BAIXO DE INTERFERÊNCIAS (NÃO INCLUI FORNECIMENTO). AF_05/2024 | C90: UN | D90: 88,03
A91: 105340 | B91: ASSENTAMENTO DE CONEXÃO 2 ACESSOS INCLINADOS DE FERRO FUNDIDO PARA REDE DE ÁGUA, DN 800, JUNTA ELÁSTICA, INSTALADO EM LOCAL COM NÍVEL BAIXO DE INTERFERÊNCIAS (NÃO INCLUI FORNECIMENTO). AF_05/2024 | C91: UN | D91: 81,87
A92: 105341 | B92: ASSENTAMENTO DE CONEXÃO 2 ACESSOS INCLINADOS DE FERRO FUNDIDO PARA REDE DE ÁGUA, DN 1000, JUNTA ELÁSTICA, INSTALADO EM LOCAL COM NÍVEL BAIXO DE INTERFERÊNCIAS (NÃO INCLUI FORNECIMENTO). AF_05/2024 | C92: UN | D92: 101,20
A93: 105342 | B93: ASSENTAMENTO DE CONEXÃO 2 ACESSOS INCLINADOS DE FERRO FUNDIDO PARA REDE DE ÁGUA, DN 1200, JUNTA ELÁSTICA, INSTALADO EM LOCAL COM NÍVEL BAIXO DE INTERFERÊNCIAS (NÃO INCLUI FORNECIMENTO). AF_05/2024 | C93: UN | D93: 123,61
A94: 105343 | B94: ASSENTAMENTO DE CONEXÃO 3 ACESSOS DE FERRO FUNDIDO PARA REDE DE ÁGUA, DN 80, JUNTA ELÁSTICA, INSTALADO EM LOCAL COM NÍVEL BAIXO DE INTERFERÊNCIAS (NÃO INCLUI FORNECIMENTO). AF_05/2024 | C94: UN | D94: 14,64
A95: 105344 | B95: ASSENTAMENTO DE CONEXÃO 3 ACESSOS DE FERRO FUNDIDO PARA REDE DE ÁGUA, DN 700, JUNTA ELÁSTICA, INSTALADO EM LOCAL COM NÍVEL BAIXO DE INTERFERÊNCIAS (NÃO INCLUI FORNECIMENTO). AF_05/2024 | C95: UN | D95: 100,38
A96: 105345 | B96: ASSENTAMENTO DE CONEXÃO 3 ACESSOS DE FERRO FUNDIDO PARA REDE DE ÁGUA, DN 900, JUNTA ELÁSTICA, INSTALADO EM LOCAL COM NÍVEL BAIXO DE INTERFERÊNCIAS (NÃO INCLUI FORNECIMENTO). AF_05/2024 | C96: UN | D96: 126,67
A97: 105346 | B97: ASSENTAMENTO DE CONEXÃO 3 ACESSOS DE FERRO FUNDIDO PARA REDE DE ÁGUA, DN 1000, JUNTA ELÁSTICA, INSTALADO EM LOCAL COM NÍVEL BAIXO DE INTERFERÊNCIAS (NÃO INCLUI FORNECIMENTO). AF_05/2024 | C97: UN | D97: 140,27
A98: 105347 | B98: ASSENTAMENTO DE CONEXÃO 3 ACESSOS DE FERRO FUNDIDO PARA REDE DE ÁGUA, DN 1200, JUNTA ELÁSTICA, INSTALADO EM LOCAL COM NÍVEL BAIXO DE INTERFERÊNCIAS (NÃO INCLUI FORNECIMENTO). AF_05/2024 | C98: UN | D98: 173,36
A99: 105348 | B99: ASSENTAMENTO DE CONEXÃO 3 ACESSOS DE FERRO FUNDIDO PARA REDE DE ÁGUA, DN 300, JUNTA ELÁSTICA, INSTALADO EM LOCAL COM NÍVEL ALTO DE INTERFERÊNCIAS (NÃO INCLUI FORNECIMENTO). AF_05/2024 | C99: UN | D99: 50,00
A100: 105349 | B100: ASSENTAMENTO DE CONEXÃO 3 ACESSOS DE FERRO FUNDIDO PARA REDE DE ÁGUA, DN 350, JUNTA ELÁSTICA, INSTALADO EM LOCAL COM NÍVEL ALTO DE INTERFERÊNCIAS (NÃO INCLUI FORNECIMENTO). AF_05/2024 | C100: UN | D100: 57,19
A101: 105350 | B101: ASSENTAMENTO DE CONEXÃO 3 ACESSOS DE FERRO FUNDIDO PARA REDE DE ÁGUA, DN 400, JUNTA ELÁSTICA, INSTALADO EM LOCAL COM NÍVEL ALTO DE INTERFERÊNCIAS (NÃO INCLUI FORNECIMENTO). AF_05/2024 | C101: UN | D101: 64,37
A102: 105351 | B102: ASSENTAMENTO DE CONEXÃO 3 ACESSOS DE FERRO FUNDIDO PARA REDE DE ÁGUA, DN 450, JUNTA ELÁSTICA, INSTALADO EM LOCAL COM NÍVEL ALTO DE INTERFERÊNCIAS (NÃO INCLUI FORNECIMENTO). AF_05/2024 | C102: UN | D102: 71,80
A103: 105352 | B103: ASSENTAMENTO DE CONEXÃO 3 ACESSOS DE FERRO FUNDIDO PARA REDE DE ÁGUA, DN 500, JUNTA ELÁSTICA, INSTALADO EM LOCAL COM NÍVEL ALTO DE INTERFERÊNCIAS (NÃO INCLUI FORNECIMENTO). AF_05/2024 | C103: UN | D103: 92,66
A104: 105353 | B104: ASSENTAMENTO DE CONEXÃO 3 ACESSOS DE FERRO FUNDIDO PARA REDE DE ÁGUA, DN 600, JUNTA ELÁSTICA, INSTALADO EM LOCAL COM NÍVEL ALTO DE INTERFERÊNCIAS (NÃO INCLUI FORNECIMENTO). AF_05/2024 | C104: UN | D104: 109,58
A105: 105354 | B105: ASSENTAMENTO DE CONEXÃO 3 ACESSOS DE FERRO FUNDIDO PARA REDE DE ÁGUA, DN 700, JUNTA ELÁSTICA, INSTALADO EM LOCAL COM NÍVEL ALTO DE INTERFERÊNCIAS (NÃO INCLUI FORNECIMENTO). AF_05/2024 | C105: UN | D105: 124,90
A106: 105355 | B106: ASSENTAMENTO DE CONEXÃO 3 ACESSOS DE FERRO FUNDIDO PARA REDE DE ÁGUA, DN 800, JUNTA ELÁSTICA, INSTALADO EM LOCAL COM NÍVEL ALTO DE INTERFERÊNCIAS (NÃO INCLUI FORNECIMENTO). AF_05/2024 | C106: UN | D106: 140,84
A107: 105356 | B107: ASSENTAMENTO DE CONEXÃO 3 ACESSOS DE FERRO FUNDIDO PARA REDE DE ÁGUA, DN 900, JUNTA ELÁSTICA, INSTALADO EM LOCAL COM NÍVEL ALTO DE INTERFERÊNCIAS (NÃO INCLUI FORNECIMENTO). AF_05/2024 | C107: UN | D107: 157,17
A108: 105357 | B108: ASSENTAMENTO DE CONEXÃO 3 ACESSOS DE FERRO FUNDIDO PARA REDE DE ÁGUA, DN 1000, JUNTA ELÁSTICA, INSTALADO EM LOCAL COM NÍVEL ALTO DE INTERFERÊNCIAS (NÃO INCLUI FORNECIMENTO). AF_05/2024 | C108: UN | D108: 173,77
A109: 105358 | B109: ASSENTAMENTO DE CONEXÃO 3 ACESSOS DE FERRO FUNDIDO PARA REDE DE ÁGUA, DN 1200, JUNTA ELÁSTICA, INSTALADO EM LOCAL COM NÍVEL ALTO DE INTERFERÊNCIAS (NÃO INCLUI FORNECIMENTO). AF_05/2024 | C109: UN | D109: 212,85
A110: 105369 | B110: FORNECIMENTO E ASSENTAMENTO DE TE RANHURADO EM FERRO FUNDIDO, DN 80 (3") PARA REDE DE ÁGUA, INSTALADO EM LOCAL COM NÍVEL ALTO DE INTERFERÊNCIAS (INCLUI FORNECIMENTO). AF_05/2024 | C110: UN | D110: 72,89
A111: 105377 | B111: FORNECIMENTO E ASSENTAMENTO DE CURVA 45 GRAUS RANHURADA EM FERRO FUNDIDO, DN 80 MM (3") PARA REDE DE ÁGUA, INSTALADO EM LOCAL COM NÍVEL ALTO DE INTERFERÊNCIAS (INCLUI FORNECIMENTO). AF_05/2024 | C111: UN | D111: 45,99
A112: 105378 | B112: ASSENTAMENTO DE CONEXÃO 2 ACESSOS ALINHADOS DE FERRO FUNDIDO PARA REDE DE ÁGUA, DN 100, JUNTA ELÁSTICA, INSTALADO EM LOCAL COM NÍVEL ALTO DE INTERFERÊNCIAS (NÃO INCLUI FORNECIMENTO). AF_05/2024 | C112: UN | D112: 10,91
A113: 105379 | B113: ASSENTAMENTO DE CONEXÃO 2 ACESSOS ALINHADOS DE FERRO FUNDIDO PARA REDE DE ÁGUA, DN 150, JUNTA ELÁSTICA, INSTALADO EM LOCAL COM NÍVEL ALTO DE INTERFERÊNCIAS (NÃO INCLUI FORNECIMENTO). AF_05/2024 | C113: UN | D113: 14,35
A114: 105380 | B114: ASSENTAMENTO DE CONEXÃO 2 ACESSOS ALINHADOS DE FERRO FUNDIDO PARA REDE DE ÁGUA, DN 1000, JUNTA ELÁSTICA, INSTALADO EM LOCAL COM NÍVEL ALTO DE INTERFERÊNCIAS (NÃO INCLUI FORNECIMENTO). AF_05/2024 | C114: UN | D114: 86,87
A115: 105388 | B115: ASSENTAMENTO DE CONEXÃO 2 ACESSOS ALINHADOS DE FERRO FUNDIDO PARA REDE DE ÁGUA, DN 150, JUNTA ELÁSTICA, INSTALADO EM LOCAL COM NÍVEL BAIXO DE INTERFERÊNCIAS (NÃO INCLUI FORNECIMENTO). AF_05/2024 | C115: UN | D115: 11,35
A116: 105389 | B116: ASSENTAMENTO DE CONEXÃO 2 ACESSOS ALINHADOS DE FERRO FUNDIDO PARA REDE DE ÁGUA, DN 200, JUNTA ELÁSTICA, INSTALADO EM LOCAL COM NÍVEL BAIXO DE INTERFERÊNCIAS (NÃO INCLUI FORNECIMENTO). AF_05/2024 | C116: UN | D116: 14,22
A117: 105390 | B117: ASSENTAMENTO DE CONEXÃO 2 ACESSOS INCLINADOS DE FERRO FUNDIDO PARA REDE DE ÁGUA, DN 900, JUNTA ELÁSTICA, INSTALADO EM LOCAL COM NÍVEL BAIXO DE INTERFERÊNCIAS (NÃO INCLUI FORNECIMENTO). AF_05/2024 | C117: UN | D117: 91,47
A118: 105391 | B118: ASSENTAMENTO DE CONEXÃO 3 ACESSOS DE FERRO FUNDIDO PARA REDE DE ÁGUA, DN 800, JUNTA ELÁSTICA, INSTALADO EM LOCAL COM NÍVEL BAIXO DE INTERFERÊNCIAS (NÃO INCLUI FORNECIMENTO). AF_05/2024 | C118: UN | D118: 113,31
A119: 105392 | B119: ASSENTAMENTO DE CONEXÃO 2 ACESSOS ALINHADOS DE FERRO FUNDIDO PARA REDE DE ÁGUA, DN 200, JUNTA ELÁSTICA, INSTALADO EM LOCAL COM NÍVEL ALTO DE INTERFERÊNCIAS (NÃO INCLUI FORNECIMENTO). AF_05/2024 | C119: UN | D119: 17,79
A120: 105393 | B120: ASSENTAMENTO DE CONEXÃO 2 ACESSOS ALINHADOS DE FERRO FUNDIDO PARA REDE DE ÁGUA, DN 250, JUNTA ELÁSTICA, INSTALADO EM LOCAL COM NÍVEL ALTO DE INTERFERÊNCIAS (NÃO INCLUI FORNECIMENTO). AF_05/2024 | C120: UN | D120: 21,40
A121: 105394 | B121: ASSENTAMENTO DE CONEXÃO 2 ACESSOS ALINHADOS DE FERRO FUNDIDO PARA REDE DE ÁGUA, DN 300, JUNTA ELÁSTICA, INSTALADO EM LOCAL COM NÍVEL ALTO DE INTERFERÊNCIAS (NÃO INCLUI FORNECIMENTO). AF_05/2024 | C121: UN | D121: 24,98
A122: 105395 | B122: ASSENTAMENTO DE CONEXÃO 2 ACESSOS ALINHADOS DE FERRO FUNDIDO PARA REDE DE ÁGUA, DN 350, JUNTA ELÁSTICA, INSTALADO EM LOCAL COM NÍVEL ALTO DE INTERFERÊNCIAS (NÃO INCLUI FORNECIMENTO). AF_05/2024 | C122: UN | D122: 28,58
A123: 105396 | B123: ASSENTAMENTO DE CONEXÃO 2 ACESSOS ALINHADOS DE FERRO FUNDIDO PARA REDE DE ÁGUA, DN 400, JUNTA ELÁSTICA, INSTALADO EM LOCAL COM NÍVEL ALTO DE INTERFERÊNCIAS (NÃO INCLUI FORNECIMENTO). AF_05/2024 | C123: UN | D123: 32,17
A124: 105397 | B124: ASSENTAMENTO DE CONEXÃO 2 ACESSOS ALINHADOS DE FERRO FUNDIDO PARA REDE DE ÁGUA, DN 450, JUNTA ELÁSTICA, INSTALADO EM LOCAL COM NÍVEL ALTO DE INTERFERÊNCIAS (NÃO INCLUI FORNECIMENTO). AF_05/2024 | C124: UN | D124: 35,88
A125: 105398 | B125: ASSENTAMENTO DE CONEXÃO 2 ACESSOS ALINHADOS DE FERRO FUNDIDO PARA REDE DE ÁGUA, DN 500, JUNTA ELÁSTICA, INSTALADO EM LOCAL COM NÍVEL ALTO DE INTERFERÊNCIAS (NÃO INCLUI FORNECIMENTO). AF_05/2024 | C125: UN | D125: 46,32
A126: 105399 | B126: ASSENTAMENTO DE CONEXÃO 2 ACESSOS ALINHADOS DE FERRO FUNDIDO PARA REDE DE ÁGUA, DN 600, JUNTA ELÁSTICA, INSTALADO EM LOCAL COM NÍVEL ALTO DE INTERFERÊNCIAS (NÃO INCLUI FORNECIMENTO). AF_05/2024 | C126: UN | D126: 54,77
A127: 105400 | B127: ASSENTAMENTO DE CONEXÃO 2 ACESSOS ALINHADOS DE FERRO FUNDIDO PARA REDE DE ÁGUA, DN 700, JUNTA ELÁSTICA, INSTALADO EM LOCAL COM NÍVEL ALTO DE INTERFERÊNCIAS (NÃO INCLUI FORNECIMENTO). AF_05/2024 | C127: UN | D127: 62,45
A128: 105401 | B128: ASSENTAMENTO DE CONEXÃO 2 ACESSOS ALINHADOS DE FERRO FUNDIDO PARA REDE DE ÁGUA, DN 800, JUNTA ELÁSTICA, INSTALADO EM LOCAL COM NÍVEL ALTO DE INTERFERÊNCIAS (NÃO INCLUI FORNECIMENTO). AF_05/2024 | C128: UN | D128: 70,42
A129: 105402 | B129: ASSENTAMENTO DE CONEXÃO 2 ACESSOS ALINHADOS DE FERRO FUNDIDO PARA REDE DE ÁGUA, DN 900, JUNTA ELÁSTICA, INSTALADO EM LOCAL COM NÍVEL ALTO DE INTERFERÊNCIAS (NÃO INCLUI FORNECIMENTO). AF_05/2024 | C129: UN | D129: 78,59
A130: 97173 | B130: ASSENTAMENTO DE TUBO DE AÇO CARBONO PARA REDE DE ÁGUA, DN 600 MM (24"), JUNTA SOLDADA, INSTALADO EM LOCAL COM NÍVEL ALTO DE INTERFERÊNCIAS (NÃO INCLUI FORNECIMENTO). AF_05/2024 | C130: M | D130: 39,39
A131: 97174 | B131: ASSENTAMENTO DE TUBO DE AÇO CARBONO PARA REDE DE ÁGUA, DN 700 MM (28"), JUNTA SOLDADA, INSTALADO EM LOCAL COM NÍVEL ALTO DE INTERFERÊNCIAS (NÃO INCLUI FORNECIMENTO). AF_05/2024 | C131: M | D131: 46,79
A132: 97175 | B132: ASSENTAMENTO DE TUBO DE AÇO CARBONO PARA REDE DE ÁGUA, DN 800 MM (32"), JUNTA SOLDADA, INSTALADO EM LOCAL COM NÍVEL ALTO DE INTERFERÊNCIAS (NÃO INCLUI FORNECIMENTO). AF_05/2024 | C132: M | D132: 54,20
A133: 97176 | B133: ASSENTAMENTO DE TUBO DE AÇO CARBONO PARA REDE DE ÁGUA, DN 900 MM (36"), JUNTA SOLDADA, INSTALADO EM LOCAL COM NÍVEL ALTO DE INTERFERÊNCIAS (NÃO INCLUI FORNECIMENTO). AF_05/2024 | C133: M | D133: 61,59
A134: 97177 | B134: ASSENTAMENTO DE TUBO DE AÇO CARBONO PARA REDE DE ÁGUA, DN 1000 MM (40") OU DN 1100 MM (44"), JUNTA SOLDADA, INSTALADO EM LOCAL COM NÍVEL ALTO DE INTERFERÊNCIAS (NÃO INCLUI FORNECIMENTO). AF_05/2024 | C134: M | D134: 69,00
A135: 97178 | B135: ASSENTAMENTO DE TUBO DE AÇO CARBONO PARA REDE DE ÁGUA, DN 1200 MM (48") OU DN 1300 MM (52"), JUNTA SOLDADA, INSTALADO EM LOCAL COM NÍVEL ALTO DE INTERFERÊNCIAS (NÃO INCLUI FORNECIMENTO). AF_05/2024 | C135: M | D135: 83,80
A136: 97179 | B136: ASSENTAMENTO DE TUBO DE AÇO CARBONO PARA REDE DE ÁGUA, DN 1400 MM (56'') OU DN 1500 MM (60"), JUNTA SOLDADA, INSTALADO EM LOCAL COM NÍVEL ALTO DE INTERFERÊNCIAS (NÃO INCLUI FORNECIMENTO). AF_05/2024 | C136: M | D136: 98,60
A137: 97180 | B137: ASSENTAMENTO DE TUBO DE AÇO CARBONO PARA REDE DE ÁGUA, DN 1600 MM (64") OU DN 1700 MM (68"), JUNTA SOLDADA, INSTALADO EM LOCAL COM NÍVEL ALTO DE INTERFERÊNCIAS (NÃO INCLUI FORNECIMENTO). AF_05/2024 | C137: M | D137: 113,39
A138: 97181 | B138: ASSENTAMENTO DE TUBO DE AÇO CARBONO PARA REDE DE ÁGUA, DN 1800 MM (72") OU DN 1900 MM (76"), JUNTA SOLDADA, INSTALADO EM LOCAL COM NÍVEL ALTO DE INTERFERÊNCIAS (NÃO INCLUI FORNECIMENTO). AF_05/2024 | C138: M | D138: 128,19
A139: 97182 | B139: ASSENTAMENTO DE TUBO DE AÇO CARBONO PARA REDE DE ÁGUA, DN 2000 MM (80") OU DN 2100 MM (84"), JUNTA SOLDADA, INSTALADO EM LOCAL COM NÍVEL ALTO DE INTERFERÊNCIAS (NÃO INCLUI FORNECIMENTO). AF_05/2024 | C139: M | D139: 147,27
A140: 97183 | B140: ASSENTAMENTO DE TUBO DE AÇO CARBONO PARA REDE DE ÁGUA, DN 600 MM (24"), JUNTA SOLDADA, INSTALADO EM LOCAL COM NÍVEL BAIXO DE INTERFERÊNCIAS (NÃO INCLUI FORNECIMENTO). AF_05/2024 | C140: M | D140: 35,09
A141: 97184 | B141: ASSENTAMENTO DE TUBO DE AÇO CARBONO PARA REDE DE ÁGUA, DN 700 MM (28"), JUNTA SOLDADA, INSTALADO EM LOCAL COM NÍVEL BAIXO DE INTERFERÊNCIAS (NÃO INCLUI FORNECIMENTO). AF_05/2024 | C141: M | D141: 41,77
A142: 97185 | B142: ASSENTAMENTO DE TUBO DE AÇO CARBONO PARA REDE DE ÁGUA, DN 800 MM (32"), JUNTA SOLDADA, INSTALADO EM LOCAL COM NÍVEL BAIXO DE INTERFERÊNCIAS (NÃO INCLUI FORNECIMENTO). AF_05/2024 | C142: M | D142: 48,44
A143: 97186 | B143: ASSENTAMENTO DE TUBO DE AÇO CARBONO PARA REDE DE ÁGUA, DN 900 MM (36"), JUNTA SOLDADA, INSTALADO EM LOCAL COM NÍVEL BAIXO DE INTERFERÊNCIAS (NÃO INCLUI FORNECIMENTO). AF_05/2024 | C143: M | D143: 55,11
A144: 97187 | B144: ASSENTAMENTO DE TUBO DE AÇO CARBONO PARA REDE DE ÁGUA, DN 1000 MM (40") OU DN 1100 MM (44"), JUNTA SOLDADA, INSTALADO EM LOCAL COM NÍVEL BAIXO DE INTERFERÊNCIAS (NÃO INCLUI FORNECIMENTO). AF_05/2024 | C144: M | D144: 61,79
A145: 97188 | B145: ASSENTAMENTO DE TUBO DE AÇO CARBONO PARA REDE DE ÁGUA, DN 1200 MM (48") OU DN 1300 MM (52"), JUNTA SOLDADA, INSTALADO EM LOCAL COM NÍVEL BAIXO DE INTERFERÊNCIAS (NÃO INCLUI FORNECIMENTO). AF_05/2024 | C145: M | D145: 75,13
A146: 97189 | B146: ASSENTAMENTO DE TUBO DE AÇO CARBONO PARA REDE DE ÁGUA, DN 1400 MM (56'') OU DN 1500 MM (60"), JUNTA SOLDADA, INSTALADO EM LOCAL COM NÍVEL BAIXO DE INTERFERÊNCIAS (NÃO INCLUI FORNECIMENTO). AF_05/2024 | C146: M | D146: 88,47
A147: 97190 | B147: ASSENTAMENTO DE TUBO DE AÇO CARBONO PARA REDE DE ÁGUA, DN 1600 MM (64") OU DN 1700 MM (68"), JUNTA SOLDADA, INSTALADO EM LOCAL COM NÍVEL BAIXO DE INTERFERÊNCIAS (NÃO INCLUI FORNECIMENTO). AF_05/2024 | C147: M | D147: 101,80
A148: 97191 | B148: ASSENTAMENTO DE TUBO DE AÇO CARBONO PARA REDE DE ÁGUA, DN 1800 MM (72") OU DN 1900 MM (76"), JUNTA SOLDADA, INSTALADO EM LOCAL COM NÍVEL BAIXO DE INTERFERÊNCIAS (NÃO INCLUI FORNECIMENTO). AF_05/2024 | C148: M | D148: 115,14
A149: 97192 | B149: ASSENTAMENTO DE TUBO DE AÇO CARBONO PARA REDE DE ÁGUA, DN 2000 MM (80") OU DN 2100 MM (84"), JUNTA SOLDADA, INSTALADO EM LOCAL COM NÍVEL BAIXO DE INTERFERÊNCIAS (NÃO INCLUI FORNECIMENTO). AF_05/2024 | C149: M | D149: 131,76
A150: 90694 | B150: TUBO DE PVC PARA REDE COLETORA DE ESGOTO DE PAREDE MACIÇA, DN 100 MM, JUNTA ELÁSTICA - FORNECIMENTO E ASSENTAMENTO. AF_01/2021 | C150: M | D150: 43,88
A151: 90695 | B151: TUBO DE PVC PARA REDE COLETORA DE ESGOTO DE PAREDE MACIÇA, DN 150 MM, JUNTA ELÁSTICA - FORNECIMENTO E ASSENTAMENTO. AF_01/2021 | C151: M | D151: 83,68
A152: 90696 | B152: TUBO DE PVC PARA REDE COLETORA DE ESGOTO DE PAREDE MACIÇA, DN 200 MM, JUNTA ELÁSTICA - FORNECIMENTO E ASSENTAMENTO. AF_01/2021 | C152: M | D152: 140,07
A153: 90697 | B153: TUBO DE PVC PARA REDE COLETORA DE ESGOTO DE PAREDE MACIÇA, DN 250 MM, JUNTA ELÁSTICA - FORNECIMENTO E ASSENTAMENTO. AF_01/2021 | C153: M | D153: 217,56
A154: 90698 | B154: TUBO DE PVC PARA REDE COLETORA DE ESGOTO DE PAREDE MACIÇA, DN 300 MM, JUNTA ELÁSTICA, FORNECIMENTO E ASSENTAMENTO. AF_01/2021 | C154: M | D154: 332,82
A155: 90699 | B155: TUBO DE PVC PARA REDE COLETORA DE ESGOTO DE PAREDE MACIÇA, DN 350 MM, JUNTA ELÁSTICA - FORNECIMENTO E ASSENTAMENTO. AF_01/2021 | C155: M | D155: 468,67
A156: 90700 | B156: TUBO DE PVC PARA REDE COLETORA DE ESGOTO DE PAREDE MACIÇA, DN 400 MM, JUNTA ELÁSTICA FORNECIMENTO E ASSENTAMENTO. AF_01/2021 | C156: M | D156: 547,89
A157: 90701 | B157: TUBO DE PVC CORRUGADO DE DUPLA PAREDE PARA REDE COLETORA DE ESGOTO, DN 150 MM, JUNTA ELÁSTICA - FORNECIMENTO E ASSENTAMENTO. AF_01/2021 | C157: M | D157: 65,67
A158: 90702 | B158: TUBO DE PVC CORRUGADO DE DUPLA PAREDE PARA REDE COLETORA DE ESGOTO, DN 200 MM, JUNTA ELÁSTICA - FORNECIMENTO E ASSENTAMENTO. AF_01/2021 | C158: M | D158: 109,00
A159: 90703 | B159: TUBO DE PVC CORRUGADO DE DUPLA PAREDE PARA REDE COLETORA DE ESGOTO, DN 250 MM, JUNTA ELÁSTICA - FORNECIMENTO E ASSENTAMENTO. AF_01/2021 | C159: M | D159: 171,20
A160: 90704 | B160: TUBO DE PVC CORRUGADO DE DUPLA PAREDE PARA REDE COLETORA DE ESGOTO, DN 300 MM, JUNTA ELÁSTICA - FORNECIMENTO E ASSENTAMENTO. AF_01/2021 | C160: M | D160: 255,00
A161: 90705 | B161: TUBO DE PVC CORRUGADO DE DUPLA PAREDE PARA REDE COLETORA DE ESGOTO, DN 350 MM, JUNTA ELÁSTICA - FORNECIMENTO E ASSENTAMENTO. AF_01/2021 | C161: M | D161: 332,92
A162: 90706 | B162: TUBO DE PVC CORRUGADO DE DUPLA PAREDE PARA REDE COLETORA DE ESGOTO, DN 400 MM, JUNTA ELÁSTICA - FORNECIMENTO E ASSENTAMENTO. AF_01/2021 | C162: M | D162: 442,02
A163: 90708 | B163: TUBO DE PEAD CORRUGADO DE DUPLA PAREDE PARA REDE COLETORA DE ESGOTO, DN 600 MM, JUNTA ELÁSTICA INTEGRADA - FORNECIMENTO E ASSENTAMENTO. AF_01/2021 | C163: M | D163: 723,98
A164: 90724 | B164: JUNTA ARGAMASSADA ENTRE TUBO DN 100 MM E O POÇO DE VISITA/ CAIXA DE CONCRETO OU ALVENARIA EM REDES DE ESGOTO. AF_01/2021 | C164: UN | D164: 20,56
A165: 90725 | B165: JUNTA ARGAMASSADA ENTRE TUBO DN 150 MM E O POÇO DE VISITA/ CAIXA DE CONCRETO OU ALVENARIA EM REDES DE ESGOTO. AF_01/2021 | C165: UN | D165: 25,35
A166: 90726 | B166: JUNTA ARGAMASSADA ENTRE TUBO DN 200 MM E O POÇO/ CAIXA DE CONCRETO OU ALVENARIA EM REDES DE ESGOTO. AF_01/2021 | C166: UN | D166: 30,23
A167: 90727 | B167: JUNTA ARGAMASSADA ENTRE TUBO DN 250 MM E O POÇO DE VISITA/ CAIXA DE CONCRETO OU ALVENARIA EM REDES DE ESGOTO. AF_01/2021 | C167: UN | D167: 35,03
A168: 90728 | B168: JUNTA ARGAMASSADA ENTRE TUBO DN 300 MM E O POÇO DE VISITA/ CAIXA DE CONCRETO OU ALVENARIA EM REDES DE ESGOTO. AF_01/2021 | C168: UN | D168: 39,83
A169: 90729 | B169: JUNTA ARGAMASSADA ENTRE TUBO DN 350 MM E O POÇO DE VISITA/ CAIXA DE CONCRETO OU ALVENARIA EM REDES DE ESGOTO. AF_01/2021 | C169: UN | D169: 44,63
A170: 90730 | B170: JUNTA ARGAMASSADA ENTRE TUBO DN 400 MM E O POÇO DE VISITA/ CAIXA DE CONCRETO OU ALVENARIA EM REDES DE ESGOTO. AF_01/2021 | C170: UN | D170: 49,43
A171: 90731 | B171: JUNTA ARGAMASSADA ENTRE TUBO DN 450 MM E O POÇO DE VISITA/ CAIXA DE CONCRETO OU ALVENARIA EM REDES DE ESGOTO. AF_01/2021 | C171: UN | D171: 54,23
A172: 90732 | B172: JUNTA ARGAMASSADA ENTRE TUBO DN 600 MM E O POÇO DE VISITA/ CAIXA DE CONCRETO OU ALVENARIA EM REDES DE ESGOTO. AF_01/2021 | C172: UN | D172: 68,63
A173: 90733 | B173: ASSENTAMENTO DE TUBO DE PVC PARA REDE COLETORA DE ESGOTO DE PAREDE MACIÇA, DN 100 MM, JUNTA ELÁSTICA (NÃO INCLUI FORNECIMENTO). AF_01/2021 | C173: M | D173: 2,84
A174: 90734 | B174: ASSENTAMENTO DE TUBO DE PVC PARA REDE COLETORA DE ESGOTO DE PAREDE MACIÇA, DN 150 MM, JUNTA ELÁSTICA, (NÃO INCLUI FORNECIMENTO). AF_01/2021 | C174: M | D174: 3,36
A175: 90735 | B175: ASSENTAMENTO DE TUBO DE PVC PARA REDE COLETORA DE ESGOTO DE PAREDE MACIÇA, DN 200 MM, JUNTA ELÁSTICA (NÃO INCLUI FORNECIMENTO). AF_01/2021 | C175: M | D175: 3,88
A176: 90736 | B176: ASSENTAMENTO DE TUBO DE PVC PARA REDE COLETORA DE ESGOTO DE PAREDE MACIÇA, DN 250 MM, JUNTA ELÁSTICA (NÃO INCLUI FORNECIMENTO). AF_01/2021 | C176: M | D176: 4,41
A177: 90737 | B177: ASSENTAMENTO DE TUBO DE PVC PARA REDE COLETORA DE ESGOTO DE PAREDE MACIÇA, DN 300 MM, JUNTA ELÁSTICA (NÃO INCLUI FORNECIMENTO). AF_01/2021 | C177: M | D177: 4,93
A178: 90738 | B178: ASSENTAMENTO DE TUBO DE PVC PARA REDE COLETORA DE ESGOTO DE PAREDE MACIÇA, DN 350 MM, JUNTA ELÁSTICA (NÃO INCLUI FORNECIMENTO). AF_01/2021 | C178: M | D178: 5,46
A179: 90739 | B179: ASSENTAMENTO DE TUBO DE PVC PARA REDE COLETORA DE ESGOTO DE PAREDE MACIÇA, DN 400 MM, JUNTA ELÁSTICA (NÃO INCLUI FORNECIMENTO). AF_01/2021 | C179: M | D179: 8,44
A180: 90740 | B180: ASSENTAMENTO DE TUBO DE PVC CORRUGADO DE DUPLA PAREDE PARA REDE COLETORA DE ESGOTO, DN 150 MM, JUNTA ELÁSTICA (NÃO INCLUI FORNECIMENTO). AF_01/2021 | C180: M | D180: 3,74
A181: 90741 | B181: ASSENTAMENTO DE TUBO DE PVC CORRUGADO DE DUPLA PAREDE PARA REDE COLETORA DE ESGOTO, DN 200 MM, JUNTA ELÁSTICA (NÃO INCLUI FORNECIMENTO). AF_01/2021 | C181: M | D181: 4,27
A182: 90742 | B182: ASSENTAMENTO DE TUBO DE PVC CORRUGADO DE DUPLA PAREDE PARA REDE COLETORA DE ESGOTO, DN 250 MM, JUNTA ELÁSTICA (NÃO INCLUI FORNECIMENTO). AF_01/2021 | C182: M | D182: 4,80
A183: 90743 | B183: ASSENTAMENTO DE TUBO DE PVC CORRUGADO DE DUPLA PAREDE PARA REDE COLETORA DE ESGOTO, DN 300 MM, JUNTA ELÁSTICA (NÃO INCLUI FORNECIMENTO). AF_01/2021 | C183: M | D183: 5,32
A184: 90744 | B184: ASSENTAMENTO DE TUBO DE PVC CORRUGADO DE DUPLA PAREDE PARA REDE COLETORA DE ESGOTO, DN 350 MM, JUNTA ELÁSTICA (NÃO INCLUI FORNECIMENTO). AF_01/2021 | C184: M | D184: 5,85
A185: 90745 | B185: ASSENTAMENTO DE TUBO DE PVC CORRUGADO DE DUPLA PAREDE PARA REDE COLETORA DE ESGOTO, DN 400 MM, JUNTA ELÁSTICA (NÃO INCLUI FORNECIMENTO). AF_01/2021 | C185: M | D185: 9,42
A186: 90746 | B186: ASSENTAMENTO DE TUBO DE PEAD CORRUGADO DE DUPLA PAREDE PARA REDE COLETORA DE ESGOTO, DN 450 MM, JUNTA ELÁSTICA INTEGRADA (NÃO INCLUI FORNECIMENTO). AF_01/2021 | C186: M | D186: 3,06
A187: 90747 | B187: ASSENTAMENTO DE TUBO DE PEAD CORRUGADO DE DUPLA PAREDE PARA REDE COLETORA DE ESGOTO, DN 600 MM, JUNTA ELÁSTICA INTEGRADA (NÃO INCLUI FORNECIMENTO). AF_01/2021 | C187: M | D187: 16,05
A188: 94869 | B188: TUBO DE PEAD CORRUGADO DE DUPLA PAREDE PARA REDE COLETORA DE ESGOTO, DN 250 MM, JUNTA ELÁSTICA INTEGRADA - FORNECIMENTO E ASSENTAMENTO. AF_01/2021 | C188: M | D188: 127,60
A189: 94870 | B189: ASSENTAMENTO DE TUBO DE PEAD CORRUGADO DE DUPLA PAREDE PARA REDE COLETORA DE ESGOTO, DN 250 MM, JUNTA ELÁSTICA INTEGRADA (NÃO INCLUI FORNECIMENTO). AF_01/2021 | C189: M | D189: 1,81
A190: 94871 | B190: TUBO DE PEAD CORRUGADO DE DUPLA PAREDE PARA REDE COLETORA DE ESGOTO, DN 300 MM, JUNTA ELÁSTICA INTEGRADA - FORNECIMENTO E ASSENTAMENTO. AF_01/2021 | C190: M | D190: 199,56
A191: 94872 | B191: ASSENTAMENTO DE TUBO DE PEAD CORRUGADO DE DUPLA PAREDE PARA REDE COLETORA DE ESGOTO, DN 300 MM, JUNTA ELÁSTICA INTEGRADA (NÃO INCLUI FORNECIMENTO). AF_01/2021 | C191: M | D191: 2,49
A192: 94875 | B192: TUBO DE PEAD CORRUGADO DE DUPLA PAREDE PARA REDE COLETORA DE ESGOTO, DN 800 MM, JUNTA ELÁSTICA INTEGRADA - FORNECIMENTO E ASSENTAMENTO. AF_01/2021 | C192: M | D192: 1.175,54
A193: 94876 | B193: ASSENTAMENTO DE TUBO DE PEAD CORRUGADO DE DUPLA PAREDE PARA REDE COLETORA DE ESGOTO, DN 800 MM, JUNTA ELÁSTICA INTEGRADA (NÃO INCLUI FORNECIMENTO). AF_01/2021 | C193: M | D193: 27,25
A194: 94878 | B194: ASSENTAMENTO DE TUBO DE PEAD CORRUGADO DE DUPLA PAREDE PARA REDE COLETORA DE ESGOTO, DN 900 MM, JUNTA ELÁSTICA INTEGRADA (NÃO INCLUI FORNECIMENTO). AF_01/2021 | C194: M | D194: 31,49
A195: 94879 | B195: TUBO DE PEAD CORRUGADO DE DUPLA PAREDE PARA REDE COLETORA DE ESGOTO, DN 1000 MM, JUNTA ELÁSTICA INTEGRADA - FORNECIMENTO E ASSENTAMENTO. AF_01/2021 | C195: M | D195: 1.809,75
A196: 94880 | B196: ASSENTAMENTO DE TUBO DE PEAD CORRUGADO DE DUPLA PAREDE PARA REDE COLETORA DE ESGOTO, DN 1000 MM, JUNTA ELÁSTICA INTEGRADA (NÃO INCLUI FORNECIMENTO). AF_01/2021 | C196: M | D196: 40,83
A197: 94881 | B197: TUBO DE PEAD CORRUGADO DE DUPLA PAREDE PARA REDE COLETORA DE ESGOTO, DN 1200 MM, JUNTA ELÁSTICA INTEGRADA - FORNECIMENTO E ASSENTAMENTO. AF_01/2021 | C197: M | D197: 2.492,07
A198: 94882 | B198: ASSENTAMENTO DE TUBO DE PEAD CORRUGADO DE DUPLA PAREDE PARA REDE COLETORA DE ESGOTO, DN 1200 MM, JUNTA ELÁSTICA INTEGRADA (NÃO INCLUI FORNECIMENTO). AF_01/2021 | C198: M | D198: 47,32
A199: 94884 | B199: ASSENTAMENTO DE TUBO DE PEAD CORRUGADO DE DUPLA PAREDE PARA REDE COLETORA DE ESGOTO, DN 1500 MM, JUNTA ELÁSTICA INTEGRADA (NÃO INCLUI FORNECIMENTO). AF_01/2021 | C199: M | D199: 60,51
A200: 97121 | B200: ASSENTAMENTO DE TUBO DE PVC PBA PARA REDE DE ÁGUA, DN 50 MM, JUNTA ELÁSTICA INTEGRADA, INSTALADO EM LOCAL COM NÍVEL ALTO DE INTERFERÊNCIAS (NÃO INCLUI FORNECIMENTO). AF_05/2024 | C200: M | D200: 2,52
A201: 97122 | B201: ASSENTAMENTO DE TUBO DE PVC PBA PARA REDE DE ÁGUA, DN 75 MM, JUNTA ELÁSTICA INTEGRADA, INSTALADO EM LOCAL COM NÍVEL ALTO DE INTERFERÊNCIAS (NÃO INCLUI FORNECIMENTO). AF_05/2024 | C201: M | D201: 3,04
... 7630 more rows

Sheet SINAPI TO - INSUMOS
A1: PRECOS DE INSUMOS - BANCO NACIONAL
A3: MES DE COLETA: 12/2024
A4: LOCALIDADE: 4812 - PALMAS
A5: ENCARGOS SOCIAIS (%) HORISTA 111,11 MENSALISTA 67,32
A7: CODIGO | B7: DESCRICAO DO INSUMO | C7: UNIDADE DE MEDIDA | D7: ORIGEM DO PRECO | E7: PRECO MEDIANO R$
A8: 11270 | B8: ABRACADEIRA DE LATAO PARA FIXACAO DE CABO PARA-RAIO, DIMENSOES 32 X 24 X 24 MM | C8: UN | D8: AS | E8: 2,82
A9: 412 | B9: ABRACADEIRA DE NYLON PARA AMARRACAO DE CABOS, COMPRIMENTO DE *230* X *7,6* MM | C9: UN | D9: CR | E9: 0,97
A10: 414 | B10: ABRACADEIRA DE NYLON PARA AMARRACAO DE CABOS, COMPRIMENTO DE 100 X 2,5 MM | C10: UN | D10: CR | E10: 0,06
A11: 410 | B11: ABRACADEIRA DE NYLON PARA AMARRACAO DE CABOS, COMPRIMENTO DE 150 X *3,6* MM | C11: UN | D11: CR | E11: 0,15
A12: 411 | B12: ABRACADEIRA DE NYLON PARA AMARRACAO DE CABOS, COMPRIMENTO DE 200 X *4,6* MM | C12: UN | D12: C | E12: 0,19
A13: 408 | B13: ABRACADEIRA DE NYLON PARA AMARRACAO DE CABOS, COMPRIMENTO DE 390 X *4,6* MM | C13: UN | D13: CR | E13: 0,94
A14: 39131 | B14: ABRACADEIRA EM ACO PARA AMARRACAO DE ELETRODUTOS, TIPO D, COM 1 1/2" E CUNHA DE FIXACAO | C14: UN | D14: CR | E14: 4,47
A15: 394 | B15: ABRACADEIRA EM ACO PARA AMARRACAO DE ELETRODUTOS, TIPO D, COM 1 1/2" E PARAFUSO DE FIXACAO | C15: UN | D15: CR | E15: 4,53
A16: 39130 | B16: ABRACADEIRA EM ACO PARA AMARRACAO DE ELETRODUTOS, TIPO D, COM 1 1/4" E CUNHA DE FIXACAO | C16: UN | D16: CR | E16: 4,08
A17: 395 | B17: ABRACADEIRA EM ACO PARA AMARRACAO DE ELETRODUTOS, TIPO D, COM 1 1/4" E PARAFUSO DE FIXACAO | C17: UN | D17: CR | E17: 4,36
A18: 39127 | B18: ABRACADEIRA EM ACO PARA AMARRACAO DE ELETRODUTOS, TIPO D, COM 1/2" E CUNHA DE FIXACAO | C18: UN | D18: CR | E18: 2,15
A19: 392 | B19: ABRACADEIRA EM ACO PARA AMARRACAO DE ELETRODUTOS, TIPO D, COM 1/2" E PARAFUSO DE FIXACAO | C19: UN | D19: CR | E19: 2,21
A20: 39129 | B20: ABRACADEIRA EM ACO PARA AMARRACAO DE ELETRODUTOS, TIPO D, COM 1" E CUNHA DE FIXACAO | C20: UN | D20: CR | E20: 2,51
A21: 393 | B21: ABRACADEIRA EM ACO PARA AMARRACAO DE ELETRODUTOS, TIPO D, COM 1" E PARAFUSO DE FIXACAO | C21: UN | D21: C | E21: 2,63
A22: 39133 | B22: ABRACADEIRA EM ACO PARA AMARRACAO DE ELETRODUTOS, TIPO D, COM 2 1/2" E CUNHA DE FIXACAO | C22: UN | D22: CR | E22: 5,87
A23: 397 | B23: ABRACADEIRA EM ACO PARA AMARRACAO DE ELETRODUTOS, TIPO D, COM 2 1/2" E PARAFUSO DE FIXACAO | C23: UN | D23: CR | E23: 6,49
A24: 39132 | B24: ABRACADEIRA EM ACO PARA AMARRACAO DE ELETRODUTOS, TIPO D, COM 2" E CUNHA DE FIXACAO | C24: UN | D24: CR | E24: 4,70
A25: 396 | B25: ABRACADEIRA EM ACO PARA AMARRACAO DE ELETRODUTOS, TIPO D, COM 2" E PARAFUSO DE FIXACAO | C25: UN | D25: CR | E25: 5,03
A26: 39135 | B26: ABRACADEIRA EM ACO PARA AMARRACAO DE ELETRODUTOS, TIPO D, COM 3 1/2" E CUNHA DE FIXACAO | C26: UN | D26: CR | E26: 9,40
A27: 39128 | B27: ABRACADEIRA EM ACO PARA AMARRACAO DE ELETRODUTOS, TIPO D, COM 3/4" E CUNHA DE FIXACAO | C27: UN | D27: CR | E27: 2,35
A28: 400 | B28: ABRACADEIRA EM ACO PARA AMARRACAO DE ELETRODUTOS, TIPO D, COM 3/4" E PARAFUSO DE FIXACAO | C28: UN | D28: CR | E28: 2,29
A29: 39125 | B29: ABRACADEIRA EM ACO PARA AMARRACAO DE ELETRODUTOS, TIPO D, COM 3/8" E PARAFUSO DE FIXACAO | C29: UN | D29: CR | E29: 2,35
A30: 39134 | B30: ABRACADEIRA EM ACO PARA AMARRACAO DE ELETRODUTOS, TIPO D, COM 3" E CUNHA DE FIXACAO | C30: UN | D30: CR | E30: 7,83
A31: 398 | B31: ABRACADEIRA EM ACO PARA AMARRACAO DE ELETRODUTOS, TIPO D, COM 3" E PARAFUSO DE FIXACAO | C31: UN | D31: CR | E31: 7,21
A32: 39126 | B32: ABRACADEIRA EM ACO PARA AMARRACAO DE ELETRODUTOS, TIPO D, COM 4" E CUNHA DE FIXACAO | C32: UN | D32: CR | E32: 10,57
A33: 399 | B33: ABRACADEIRA EM ACO PARA AMARRACAO DE ELETRODUTOS, TIPO D, COM 4" E PARAFUSO DE FIXACAO | C33: UN | D33: CR | E33: 9,31
A34: 39158 | B34: ABRACADEIRA EM ACO PARA AMARRACAO DE ELETRODUTOS, TIPO ECONOMICA (GOTA), COM 8" | C34: UN | D34: CR | E34: 25,01
A35: 39141 | B35: ABRACADEIRA EM ACO PARA AMARRACAO DE ELETRODUTOS, TIPO U SIMPLES, COM 1 1/2" | C35: UN | D35: CR | E35: 1,81
A36: 39140 | B36: ABRACADEIRA EM ACO PARA AMARRACAO DE ELETRODUTOS, TIPO U SIMPLES, COM 1 1/4" | C36: UN | D36: CR | E36: 1,65
A37: 39137 | B37: ABRACADEIRA EM ACO PARA AMARRACAO DE ELETRODUTOS, TIPO U SIMPLES, COM 1/2" | C37: UN | D37: CR | E37: 0,95
A38: 39139 | B38: ABRACADEIRA EM ACO PARA AMARRACAO DE ELETRODUTOS, TIPO U SIMPLES, COM 1" | C38: UN | D38: CR | E38: 1,37
A39: 39143 | B39: ABRACADEIRA EM ACO PARA AMARRACAO DE ELETRODUTOS, TIPO U SIMPLES, COM 2 1/2" | C39: UN | D39: CR | E39: 3,74
A40: 39142 | B40: ABRACADEIRA EM ACO PARA AMARRACAO DE ELETRODUTOS, TIPO U SIMPLES, COM 2" | C40: UN | D40: CR | E40: 2,68
A41: 39138 | B41: ABRACADEIRA EM ACO PARA AMARRACAO DE ELETRODUTOS, TIPO U SIMPLES, COM 3/4" | C41: UN | D41: CR | E41: 1,00
A42: 39136 | B42: ABRACADEIRA EM ACO PARA AMARRACAO DE ELETRODUTOS, TIPO U SIMPLES, COM 3/8" | C42: UN | D42: CR | E42: 0,67
A43: 39144 | B43: ABRACADEIRA EM ACO PARA AMARRACAO DE ELETRODUTOS, TIPO U SIMPLES, COM 3" | C43: UN | D43: CR | E43: 4,36
A44: 39145 | B44: ABRACADEIRA EM ACO PARA AMARRACAO DE ELETRODUTOS, TIPO U SIMPLES, COM 4" | C44: UN | D44: CR | E44: 7,19
A45: 12615 | B45: ABRACADEIRA PVC, PARA CALHA PLUVIAL, DIAMETRO ENTRE *80 E 100* MM, PARA DRENAGEM PLUVIAL PREDIAL | C45: UN | D45: CR | E45: 12,10
A46: 11927 | B46: ABRACADEIRA, GALVANIZADA/ZINCADA, ROSCA SEM FIM, PARAFUSO INOX, LARGURA FITA *12,6 A *14 MM, D = 2" A 2 1/2" | C46: UN | D46: AS | E46: 8,41
A47: 11928 | B47: ABRACADEIRA, GALVANIZADA/ZINCADA, ROSCA SEM FIM, PARAFUSO INOX, LARGURA FITA *12,6 A *14 MM, D = 3" A 3 3/4" | C47: UN | D47: AS | E47: 9,64
A48: 11929 | B48: ABRACADEIRA, GALVANIZADA/ZINCADA, ROSCA SEM FIM, PARAFUSO INOX, LARGURA FITA *12,6 A *14 MM, D = 4" A 4 3/4" | C48: UN | D48: AS | E48: 14,91
A49: 36801 | B49: ACABAMENTO DE METAL CROMADO PARA REGISTRO PEQUENO, DE PAREDE, 1/2" OU 3/4" | C49: UN | D49: CR | E49: 40,46
A50: 36246 | B50: ACABAMENTO SIMPLES/CONVENCIONAL PARA FORRO PVC, TIPO "U" OU "C", COR BRANCA, COMPRIMENTO 6 M | C50: M | D50: CR | E50: 3,97
A51: 37600 | B51: ACESSORIO DE LIGACAO NAO ELETRICO PARA CARGAS EXPLOSIVAS, TUBO DE 6 M | C51: UN | D51: AS | E51: 99,44
A52: 37599 | B52: ACESSORIO INICIADOR NAO ELETRICO, TUBO DE 6 M, TEMPO DE RETARDO DE *160* MS | C52: UN | D52: AS | E52: 92,56
A53: 1 | B53: ACETILENO (RECARGA DE GAS ACETILENO PARA CILINDRO DE CONJUNTO OXICORTE GRANDE) NAO INCLUI TROCA/MANUTENCAO DO CILINDRO | C53: KG | D53: AS | E53: 95,00
A54: 3 | B54: ACIDO CLORIDRICO / ACIDO MURIATICO, DILUICAO 10% A 12% PARA USO EM LIMPEZA | C54: L | D54: CR | E54: 18,72
A55: 43054 | B55: ACO CA-25, 10,0 MM, OU 12,5 MM, OU 16,0 MM, OU 20,0 MM, OU 25,0 MM, VERGALHAO | C55: KG | D55: CR | E55: 9,12
A56: 42402 | B56: ACO CA-25, 16,0 MM, BARRA DE TRANSFERENCIA | C56: KG | D56: CR | E56: 8,71
A57: 42403 | B57: ACO CA-25, 20,0 MM, BARRA DE TRANSFERENCIA | C57: KG | D57: CR | E57: 11,18
A58: 42404 | B58: ACO CA-25, 25,0 MM, BARRA DE TRANSFERENCIA | C58: KG | D58: CR | E58: 11,11
A59: 42405 | B59: ACO CA-25, 32,0 MM, BARRA DE TRANSFERENCIA | C59: KG | D59: CR | E59: 11,84
A60: 34341 | B60: ACO CA-25, 32,0 MM, VERGALHAO | C60: KG | D60: CR | E60: 10,27
A61: 43053 | B61: ACO CA-25, 6,3 MM OU 8,0 MM, VERGALHAO | C61: KG | D61: CR | E61: 8,14
A62: 43058 | B62: ACO CA-50, 10,0 MM, OU 12,5 MM, OU 16,0 MM, OU 20,0 MM, DOBRADO E CORTADO | C62: KG | D62: CR | E62: 8,44
A63: 34 | B63: ACO CA-50, 10,0 MM, VERGALHAO | C63: KG | D63: CR | E63: 8,48
A64: 43055 | B64: ACO CA-50, 12,5 MM OU 16,0 MM, VERGALHAO | C64: KG | D64: C | E64: 7,35
A65: 43056 | B65: ACO CA-50, 20,0 MM OU 25,0 MM, VERGALHAO | C65: KG | D65: CR | E65: 8,47
A66: 43057 | B66: ACO CA-50, 32,0 MM, VERGALHAO | C66: KG | D66: CR | E66: 9,31
A67: 34449 | B67: ACO CA-50, 6,3 MM, DOBRADO E CORTADO | C67: KG | D67: CR | E67: 9,95
A68: 32 | B68: ACO CA-50, 6,3 MM, VERGALHAO | C68: KG | D68: CR | E68: 8,95
A69: 33 | B69: ACO CA-50, 8,0 MM, VERGALHAO | C69: KG | D69: CR | E69: 9,00
A70: 43061 | B70: ACO CA-60, 4,2 MM OU 5,0 MM, DOBRADO E CORTADO | C70: KG | D70: CR | E70: 8,41
A71: 43059 | B71: ACO CA-60, 4,2 MM, OU 5,0 MM, OU 6,0 MM, OU 7,0 MM, VERGALHAO | C71: KG | D71: CR | E71: 8,03
A72: 43062 | B72: ACO CA-60, 6,0 MM OU 7,0 MM, DOBRADO E CORTADO | C72: KG | D72: CR | E72: 8,90
A73: 43060 | B73: ACO CA-60, 8,0 MM OU 9,5 MM, VERGALHAO | C73: KG | D73: CR | E73: 6,99
A74: 40410 | B74: ACOPLAMENTO RIGIDO EM FERRO FUNDIDO PARA SISTEMA DE TUBULACAO RANHURADA, DN 50 MM (2") | C74: UN | D74: AS | E74: 22,27
A75: 40411 | B75: ACOPLAMENTO RIGIDO EM FERRO FUNDIDO PARA SISTEMA DE TUBULACAO RANHURADA, DN 65 MM (2 1/2") | C75: UN | D75: AS | E75: 24,17
A76: 40412 | B76: ACOPLAMENTO RIGIDO EM FERRO FUNDIDO PARA SISTEMA DE TUBULACAO RANHURADA, DN 80 MM (3") | C76: UN | D76: AS | E76: 27,12
A77: 44254 | B77: ADAPTADOR CPVC, ROSCAVEL, COM FLANGES E ANEL DE VEDACAO, 15 MM, CAIXA D'AGUA PARA AGUA QUENTE | C77: UN | D77: AS | E77: 29,89
A78: 44255 | B78: ADAPTADOR CPVC, ROSCAVEL, COM FLANGES E ANEL DE VEDACAO, 22 MM, CAIXA D'AGUA PARA AGUA QUENTE | C78: UN | D78: AS | E78: 33,13
A79: 44256 | B79: ADAPTADOR CPVC, ROSCAVEL, COM FLANGES E ANEL DE VEDACAO, 28 MM, CAIXA D'AGUA PARA AGUA QUENTE | C79: UN | D79: AS | E79: 37,42
A80: 44257 | B80: ADAPTADOR CPVC, ROSCAVEL, COM FLANGES E ANEL DE VEDACAO, 35 MM, CAIXA D'AGUA PARA AGUA QUENTE | C80: UN | D80: AS | E80: 59,21
A81: 44258 | B81: ADAPTADOR CPVC, ROSCAVEL, COM FLANGES E ANEL DE VEDACAO, 42 MM, CAIXA D'AGUA PARA AGUA QUENTE | C81: UN | D81: AS | E81: 67,66
A82: 44259 | B82: ADAPTADOR CPVC, ROSCAVEL, COM FLANGES E ANEL DE VEDACAO, 54 MM, CAIXA D'AGUA PARA AGUA QUENTE | C82: UN | D82: AS | E82: 92,87
A83: 37997 | B83: ADAPTADOR CPVC, SOLDAVEL, 15 MM, PARA AGUA QUENTE | C83: UN | D83: AS | E83: 17,81
A84: 37998 | B84: ADAPTADOR CPVC, SOLDAVEL, 22 MM, PARA AGUA QUENTE | C84: UN | D84: AS | E84: 23,84
A85: 55 | B85: ADAPTADOR DE COMPRESSAO EM POLIPROPILENO (PP), PARA TUBO EM PEAD, 20 MM X 1/2", PARA LIGACAO PREDIAL DE AGUA (NTS 179) | C85: UN | D85: AS | E85: 4,17
A86: 61 | B86: ADAPTADOR DE COMPRESSAO EM POLIPROPILENO (PP), PARA TUBO EM PEAD, 20 MM X 3/4", PARA LIGACAO PREDIAL DE AGUA (NTS 179) | C86: UN | D86: AS | E86: 3,94
A87: 62 | B87: ADAPTADOR DE COMPRESSAO EM POLIPROPILENO (PP), PARA TUBO EM PEAD, 32 MM X 1", PARA LIGACAO PREDIAL DE AGUA (NTS 179) | C87: UN | D87: AS | E87: 8,17
A88: 10899 | B88: ADAPTADOR EM LATAO, ENGATE RAPIDO 2 1/2" X ROSCA INTERNA 5 FIOS 2 1/2", PARA INSTALACAO PREDIAL DE COMBATE A INCENDIO | C88: UN | D88: AS | E88: 144,89
A89: 10900 | B89: ADAPTADOR EM LATAO, ENGATE RAPIDO1 1/2" X ROSCA INTERNA 5 FIOS 2 1/2", PARA INSTALACAO PREDIAL DE COMBATE A INCENDIO | C89: UN | D89: AS | E89: 113,39
A90: 47 | B90: ADAPTADOR PVC PBA, BOLSA/ROSCA, JE, DN 100 / DE 110 MM | C90: UN | D90: AS | E90: 80,25
A91: 48 | B91: ADAPTADOR PVC PBA, BOLSA/ROSCA, JE, DN 50 / DE 60 MM | C91: UN | D91: AS | E91: 20,93
A92: 46 | B92: ADAPTADOR PVC PBA, BOLSA/ROSCA, JE, DN 75 / DE 85 MM | C92: UN | D92: AS | E92: 46,93
A93: 52 | B93: ADAPTADOR PVC PBA, PONTA/ROSCA, JE, DN 50 / DE 60 MM | C93: UN | D93: AS | E93: 15,90
A94: 43 | B94: ADAPTADOR PVC PBA, PONTA/ROSCA, JE, DN 75 / DE 85 MM | C94: UN | D94: AS | E94: 53,67
A95: 103 | B95: ADAPTADOR PVC SOLDAVEL CURTO COM BOLSA E ROSCA, 110 MM X 4", PARA AGUA FRIA | C95: UN | D95: CR | E95: 43,43
A96: 107 | B96: ADAPTADOR PVC SOLDAVEL CURTO COM BOLSA E ROSCA, 20 MM X 1/2", PARA AGUA FRIA | C96: UN | D96: CR | E96: 0,81
A97: 65 | B97: ADAPTADOR PVC SOLDAVEL CURTO COM BOLSA E ROSCA, 25 MM X 3/4", PARA AGUA FRIA | C97: UN | D97: CR | E97: 0,89
A98: 108 | B98: ADAPTADOR PVC SOLDAVEL CURTO COM BOLSA E ROSCA, 32 MM X 1", PARA AGUA FRIA | C98: UN | D98: CR | E98: 1,80
A99: 110 | B99: ADAPTADOR PVC SOLDAVEL CURTO COM BOLSA E ROSCA, 40 MM X 1 1/2", PARA AGUA FRIA | C99: UN | D99: CR | E99: 6,25
A100: 109 | B100: ADAPTADOR PVC SOLDAVEL CURTO COM BOLSA E ROSCA, 40 MM X 1 1/4", PARA AGUA FRIA | C100: UN | D100: CR | E100: 3,72
A101: 111 | B101: ADAPTADOR PVC SOLDAVEL CURTO COM BOLSA E ROSCA, 50 MM X 1 1/4", PARA AGUA FRIA | C101: UN | D101: CR | E101: 8,45
A102: 112 | B102: ADAPTADOR PVC SOLDAVEL CURTO COM BOLSA E ROSCA, 50 MM X1 1/2", PARA AGUA FRIA | C102: UN | D102: CR | E102: 4,48
A103: 113 | B103: ADAPTADOR PVC SOLDAVEL CURTO COM BOLSA E ROSCA, 60 MM X 2", PARA AGUA FRIA | C103: UN | D103: CR | E103: 11,21
A104: 104 | B104: ADAPTADOR PVC SOLDAVEL CURTO COM BOLSA E ROSCA, 75 MM X 2 1/2", PARA AGUA FRIA | C104: UN | D104: CR | E104: 19,52
A105: 102 | B105: ADAPTADOR PVC SOLDAVEL CURTO COM BOLSA E ROSCA, 85 MM X 3", PARA AGUA FRIA | C105: UN | D105: CR | E105: 26,91
A106: 95 | B106: ADAPTADOR PVC SOLDAVEL, COM FLANGE E ANEL DE VEDACAO, 20 MM X 1/2", PARA CAIXA D'AGUA | C106: UN | D106: CR | E106: 11,37
A107: 96 | B107: ADAPTADOR PVC SOLDAVEL, COM FLANGE E ANEL DE VEDACAO, 25 MM X 3/4", PARA CAIXA D'AGUA | C107: UN | D107: CR | E107: 12,37
A108: 97 | B108: ADAPTADOR PVC SOLDAVEL, COM FLANGE E ANEL DE VEDACAO, 32 MM X 1", PARA CAIXA D'AGUA | C108: UN | D108: CR | E108: 18,61
A109: 98 | B109: ADAPTADOR PVC SOLDAVEL, COM FLANGE E ANEL DE VEDACAO, 40 MM X 1 1/4", PARA CAIXA D'AGUA | C109: UN | D109: CR | E109: 27,86
A110: 99 | B110: ADAPTADOR PVC SOLDAVEL, COM FLANGE E ANEL DE VEDACAO, 50 MM X 1 1/2", PARA CAIXA D'AGUA | C110: UN | D110: CR | E110: 26,33
A111: 60 | B111: ADAPTADOR PVC, COM REGISTRO, PARA PEAD, 20 MM X 3/4", PARA LIGACAO PREDIAL DE AGUA | C111: UN | D111: AS | E111: 5,41
A112: 72 | B112: ADAPTADOR PVC, ROSCAVEL, COM FLANGES E ANEL DE VEDACAO, 1 1/2", PARA CAIXA D'AGUA | C112: UN | D112: CR | E112: 50,50
A113: 67 | B113: ADAPTADOR PVC, ROSCAVEL, COM FLANGES E ANEL DE VEDACAO, 1/2", PARA CAIXA D'AGUA | C113: UN | D113: CR | E113: 16,33
A114: 71 | B114: ADAPTADOR PVC, ROSCAVEL, COM FLANGES E ANEL DE VEDACAO, 1", PARA CAIXA D'AGUA | C114: UN | D114: CR | E114: 31,19
A115: 73 | B115: ADAPTADOR PVC, ROSCAVEL, COM FLANGES E ANEL DE VEDACAO, 3/4", PARA CAIXA D'AGUA | C115: UN | D115: CR | E115: 15,62
A116: 100 | B116: ADAPTADOR PVC, SOLDAVEL, COM FLANGES E ANEL DE VEDACAO, 60 MM X 2", PARA CAIXA D'AGUA | C116: UN | D116: CR | E116: 46,00
A117: 75 | B117: ADAPTADOR PVC, SOLDAVEL, COM FLANGES LIVRES, 110 MM X 4", PARA CAIXA D'AGUA | C117: UN | D117: CR | E117: 268,22
A118: 83 | B118: ADAPTADOR PVC, SOLDAVEL, COM FLANGES LIVRES, 75 MM X 2 1/2", PARA CAIXA D'AGUA | C118: UN | D118: CR | E118: 214,43
A119: 74 | B119: ADAPTADOR PVC, SOLDAVEL, COM FLANGES LIVRES, 85 MM X 3", PARA CAIXA D'AGUA | C119: UN | D119: CR | E119: 306,58
A120: 106 | B120: ADAPTADOR PVC, SOLDAVEL, LONGO, COM FLANGE LIVRE, 110 MM X 4", PARA CAIXA D'AGUA | C120: UN | D120: CR | E120: 387,68
A121: 88 | B121: ADAPTADOR PVC, SOLDAVEL, LONGO, COM FLANGE LIVRE, 32 MM X 1", PARA CAIXA D'AGUA | C121: UN | D121: CR | E121: 10,89
A122: 82 | B122: ADAPTADOR PVC, SOLDAVEL, LONGO, COM FLANGE LIVRE, 75 MM X 2 1/2", PARA CAIXA D'AGUA | C122: UN | D122: CR | E122: 204,01
A123: 105 | B123: ADAPTADOR PVC, SOLDAVEL, LONGO, COM FLANGE LIVRE, 85 MM X 3", PARA CAIXA D'AGUA | C123: UN | D123: CR | E123: 289,08
A124: 39719 | B124: ADESIVO / COLA DE CONTATO LIQUIDO, A BASE DE RESINAS, PARA COLAGEM DE ESPUMA PARA ISOLAMENTO TERMICO FLEXIVEL | C124: L | D124: CR | E124: 178,54
A125: 3410 | B125: ADESIVO / COLA PARA EPS (ISOPOR) E OUTROS MATERIAIS | C125: KG | D125: CR | E125: 40,16
A126: 4791 | B126: ADESIVO ACRILICO DE BASE AQUOSA / COLA DE CONTATO | C126: KG | D126: CR | E126: 39,85
A127: 157 | B127: ADESIVO ESTRUTURAL A BASE DE RESINA EPOXI PARA INJECAO EM TRINCAS, BICOMPONENTE, BAIXA VISCOSIDADE | C127: KG | D127: CR | E127: 210,65
A128: 156 | B128: ADESIVO ESTRUTURAL A BASE DE RESINA EPOXI, BICOMPONENTE, FLUIDO | C128: KG | D128: CR | E128: 75,00
A129: 131 | B129: ADESIVO ESTRUTURAL A BASE DE RESINA EPOXI, BICOMPONENTE, PASTOSO (TIXOTROPICO) | C129: KG | D129: CR | E129: 64,14
A130: 21114 | B130: ADESIVO PARA TUBOS CPVC, *75* G | C130: UN | D130: CR | E130: 35,19
A131: 119 | B131: ADESIVO PLASTICO PARA PVC, BISNAGA COM 75 GR | C131: UN | D131: C | E131: 8,92
A132: 122 | B132: ADESIVO PLASTICO PARA PVC, FRASCO COM *850* GR | C132: UN | D132: CR | E132: 68,63
A133: 20080 | B133: ADESIVO PLASTICO PARA PVC, FRASCO COM 175 GR | C133: UN | D133: CR | E133: 22,40
A134: 124 | B134: ADITIVO ACELERADOR DE PEGA E ENDURECIMENTO PARA ARGAMASSAS E CONCRETOS, LIQUIDO E ISENTO DE CLORETOS | C134: L | D134: CR | E134: 24,74
A135: 7334 | B135: ADITIVO ADESIVO LIQUIDO PARA ARGAMASSAS DE REVESTIMENTOS CIMENTICIOS | C135: L | D135: CR | E135: 17,62
A136: 45146 | B136: ADITIVO IMPERMEABILIZANTE CRISTALIZANTE PARA CONCRETO | C136: KG | D136: CR | E136: 47,43
A137: 123 | B137: ADITIVO IMPERMEABILIZANTE DE PEGA NORMAL PARA ARGAMASSAS E CONCRETOS SEM ARMACAO, LIQUIDO E ISENTO DE CLORETOS | C137: L | D137: C | E137: 10,12
A138: 127 | B138: ADITIVO IMPERMEABILIZANTE DE PEGA ULTRARRAPIDA, LIQUIDO E ISENTO DE CLORETOS | C138: L | D138: CR | E138: 24,16
A139: 133 | B139: ADITIVO LIQUIDO INCORPORADOR DE AR PARA CONCRETO E ARGAMASSA, LIQUIDO E ISENTO DE CLORETOS | C139: L | D139: CR | E139: 10,03
A140: 43617 | B140: ADITIVO PLASTIFICANTE E ESTABILIZADOR PARA ARGAMASSAS DE ASSENTAMENTO E REBOCO, LIQUIDO E ISENTO DE CLORETOS | C140: L | D140: CR | E140: 11,21
A141: 132 | B141: ADITIVO PLASTIFICANTE RETARDADOR DE PEGA E REDUTOR DE AGUA PARA CONCRETO, LIQUIDO E ISENTO DE CLORETOS | C141: L | D141: CR | E141: 10,40
A142: 43618 | B142: ADITIVO SUPERPLASTIFICANTE DE PEGA NORMAL PARA CONCRETO, LIQUIDO E ISENTO DE CLORETOS | C142: KG | D142: CR | E142: 26,19
A143: 37476 | B143: ADUELA/ GALERIA PRE-MOLDADA DE CONCRETO ARMADO, SECAO QUADRADA INTERNA DE 1,50 X 1,50 M (L X A), MISULA DE 20 X 20 CM, C = 1,00 M, ESPESSURA MIN = 15 CM, TB-45 E FCK DO CONCRETO = 30 MPA | C143: UN | D143: CR | E143: 3.704,76
A144: 37478 | B144: ADUELA/ GALERIA PRE-MOLDADA DE CONCRETO ARMADO, SECAO RETANGULAR INTERNA DE 2,00 X 2,00 M (L X A), MISULA DE 20 X 20 CM, C = 1,00 M, ESPESSURA MIN = 15 CM, TB-45 E FCK DO CONCRETO = 30 MPA | C144: UN | D144: CR | E144: 4.640,30
A145: 37477 | B145: ADUELA/ GALERIA PRE-MOLDADA DE CONCRETO ARMADO, SECAO RETANGULAR INTERNA DE 2,50 X 2,50 M (L X A), MISULA DE 20 X 20 CM, C = 1,00 M, ESPESSURA MIN = 15 CM, TB-45 E FCK DO CONCRETO = 30 MPA | C145: UN | D145: CR | E145: 6.286,87
A146: 37479 | B146: ADUELA/ GALERIA PRE-MOLDADA DE CONCRETO ARMADO, SECAO RETANGULAR INTERNA DE 3,00 X 3,00 M (L X A), MISULA DE 20 X 20 CM, C = 1.00 M, ESPESSURA MIN = 20 CM, TB-45 E FCK DO CONCRETO = 30 MPA | C146: UN | D146: CR | E146: 7.456,30
A147: 4319 | B147: AFASTADOR PARA TELHA DE FIBROCIMENTO CANALETE 90 OU KALHETAO | C147: UN | D147: CR | E147: 1,56
A148: 42409 | B148: AGENTE DE CURA, PROTETOR DA EVAPORACAO DA AGUA DE HIDRATACAO DO CONCRETO | C148: KG | D148: CR | E148: 16,49
A149: 40553 | B149: AGREGADO RECICLADO, TIPO RACHAO RECICLADO CINZA, CLASSE A | C149: M3 | D149: AS | E149: 60,00
A150: 6114 | B150: AJUDANTE DE ARMADOR (HORISTA) | C150: H | D150: CR | E150: 16,76
A151: 40912 | B151: AJUDANTE DE ARMADOR (MENSALISTA) | C151: MES | D151: CR | E151: 2.923,29
A152: 247 | B152: AJUDANTE DE ELETRICISTA (HORISTA) | C152: H | D152: CR | E152: 16,76
A153: 40919 | B153: AJUDANTE DE ELETRICISTA (MENSALISTA) | C153: MES | D153: CR | E153: 2.923,29
A154: 44499 | B154: AJUDANTE DE ESTRUTURAS METALICAS (HORISTA) | C154: H | D154: CR | E154: 16,76
A155: 40984 | B155: AJUDANTE DE ESTRUTURAS METALICAS (MENSALISTA) | C155: MES | D155: CR | E155: 2.923,29
A156: 248 | B156: AJUDANTE DE OPERACAO EM GERAL (HORISTA) | C156: H | D156: CR | E156: 22,88
A157: 41086 | B157: AJUDANTE DE OPERACAO EM GERAL (MENSALISTA) | C157: MES | D157: CR | E157: 3.991,05
A158: 34466 | B158: AJUDANTE DE PINTOR (HORISTA) | C158: H | D158: CR | E158: 16,76
A159: 41083 | B159: AJUDANTE DE PINTOR (MENSALISTA) | C159: MES | D159: CR | E159: 2.923,29
A160: 252 | B160: AJUDANTE DE SERRALHEIRO (HORISTA) | C160: H | D160: CR | E160: 16,76
A161: 40909 | B161: AJUDANTE DE SERRALHEIRO (MENSALISTA) | C161: MES | D161: CR | E161: 2.923,29
A162: 242 | B162: AJUDANTE ESPECIALIZADO (HORISTA) | C162: H | D162: CR | E162: 14,50
A163: 41085 | B163: AJUDANTE ESPECIALIZADO (MENSALISTA) | C163: MES | D163: CR | E163: 2.530,29
A164: 427 | B164: ALCA PREFORMADA DE CONTRA POSTE, EM ACO GALVANIZADO, PARA CABO 3/16", COMPRIMENTO *860* MM | C164: UN | D164: CR | E164: 15,32
A165: 417 | B165: ALCA PREFORMADA DE DISTRIBUICAO, EM ACO GALVANIZADO, PARA CABO DE ALUMINIO DIAMETRO 16 A 25 MM | C165: UN | D165: CR | E165: 7,22
A166: 11273 | B166: ALCA PREFORMADA DE DISTRIBUICAO, EM ACO GALVANIZADO, PARA CONDUTORES DE ALUMINIO AWG 1/0 (CAA 6/1 OU CA 7 FIOS) | C166: UN | D166: CR | E166: 22,41
A167: 11272 | B167: ALCA PREFORMADA DE DISTRIBUICAO, EM ACO GALVANIZADO, PARA CONDUTORES DE ALUMINIO AWG 2 (CAA 6/1 OU CA 7 FIOS) | C167: UN | D167: CR | E167: 13,53
A168: 11275 | B168: ALCA PREFORMADA DE SERVICO, EM ACO GALVANIZADO, PARA CONDUTORES DE ALUMINIO AWG 4 (CAA 6/1) | C168: UN | D168: CR | E168: 5,43
A169: 11274 | B169: ALCA PREFORMADA DE SERVICO, EM ACO GALVANIZADO, PARA CONDUTORES DE ALUMINIO AWG 6 (CAA 6/1) | C169: UN | D169: CR | E169: 4,14
A170: 38470 | B170: ALICATE DE CORTE DIAGONAL 6" COM ISOLAMENTO | C170: UN | D170: C | E170: 42,05
A171: 38547 | B171: ALICATE DE CRIMPAR RJ11, RJ12 E RJ45, COM CATRACA | C171: UN | D171: CR | E171: 114,74
A172: 38469 | B172: ALICATE DE PRESSAO PARA SOLDA DE CHAPA 18" | C172: UN | D172: CR | E172: 123,38
A173: 38467 | B173: ALICATE DE PRESSAO 11" PARA SOLDA, TIPO C | C173: UN | D173: CR | E173: 69,42
A174: 38468 | B174: ALICATE DE PRESSAO 11" PARA SOLDA, TIPO U | C174: UN | D174: CR | E174: 76,39
A175: 38471 | B175: ALICATE PARA ANEIS DE PISTAO, CAPACIDADE *50* A 100 MM | C175: UN | D175: CR | E175: 99,21
A176: 37370 | B176: ALIMENTACAO - HORISTA (COLETADO CAIXA - ENCARGOS COMPLEMENTARES) | C176: H | D176: C | E176: 2,73
A177: 40862 | B177: ALIMENTACAO - MENSALISTA (COLETADO CAIXA - ENCARGOS COMPLEMENTARES) | C177: MES | D177: C | E177: 501,90
A178: 10658 | B178: ALISADORA DE CONCRETO COM MOTOR A GASOLINA DE 5,5 HP, PESO COM MOTOR DE 78 KG, 4 PAS | C178: UN | D178: AS | E178: 8.337,56
A179: 253 | B179: ALMOXARIFE (HORISTA) | C179: H | D179: C | E179: 20,28
A180: 40809 | B180: ALMOXARIFE (MENSALISTA) | C180: MES | D180: CR | E180: 3.537,47
A181: 42428 | B181: ALONGADOR COM TRES ALTURAS, EM TUBO DE ACO CARBONO, PINTURA NO PROCESSO ELETROSTATICO - EQUIPAMENTO DE GINASTICA PARA ACADEMIA AO AR LIVRE / ACADEMIA DA TERCEIRA IDADE - ATI | C181: UN | D181: AS | E181: 2.271,00
A182: 301 | B182: ANEL BORRACHA PARA TUBO ESGOTO PREDIAL, DN 100 MM (NBR 5688) | C182: UN | D182: C | E182: 3,00
A183: 296 | B183: ANEL BORRACHA PARA TUBO ESGOTO PREDIAL, DN 50 MM (NBR 5688) | C183: UN | D183: CR | E183: 1,69
A184: 297 | B184: ANEL BORRACHA PARA TUBO ESGOTO PREDIAL, DN 75 MM (NBR 5688) | C184: UN | D184: CR | E184: 2,49
A185: 299 | B185: ANEL BORRACHA, DN 100 MM, PARA TUBO SERIE REFORCADA ESGOTO PREDIAL | C185: UN | D185: CR | E185: 3,52
A186: 300 | B186: ANEL BORRACHA, DN 150 MM, PARA TUBO SERIE REFORCADA ESGOTO PREDIAL | C186: UN | D186: CR | E186: 12,18
A187: 20085 | B187: ANEL BORRACHA, DN 50 MM, PARA TUBO SERIE REFORCADA ESGOTO PREDIAL | C187: UN | D187: CR | E187: 2,22
A188: 298 | B188: ANEL BORRACHA, DN 75 MM, PARA TUBO SERIE REFORCADA ESGOTO PREDIAL | C188: UN | D188: CR | E188: 2,70
A189: 311 | B189: ANEL BORRACHA, PARA TUBO PVC DEFOFO, DN 100 MM (NBR 7665) | C189: UN | D189: CR | E189: 10,04
A190: 318 | B190: ANEL BORRACHA, PARA TUBO PVC DEFOFO, DN 150 MM (NBR 7665) | C190: UN | D190: CR | E190: 20,22
A191: 319 | B191: ANEL BORRACHA, PARA TUBO PVC DEFOFO, DN 200 MM (NBR 7665) | C191: UN | D191: CR | E191: 31,71
A192: 303 | B192: ANEL BORRACHA, PARA TUBO PVC, REDE COLETOR ESGOTO, DN 100 MM (NBR 7362) | C192: UN | D192: CR | E192: 3,32
A193: 305 | B193: ANEL BORRACHA, PARA TUBO PVC, REDE COLETOR ESGOTO, DN 150 MM (NBR 7362) | C193: UN | D193: CR | E193: 10,45
A194: 306 | B194: ANEL BORRACHA, PARA TUBO PVC, REDE COLETOR ESGOTO, DN 200 MM (NBR 7362) | C194: UN | D194: CR | E194: 15,85
A195: 307 | B195: ANEL BORRACHA, PARA TUBO PVC, REDE COLETOR ESGOTO, DN 250 MM (NBR 7362) | C195: UN | D195: CR | E195: 40,06
A196: 309 | B196: ANEL BORRACHA, PARA TUBO PVC, REDE COLETOR ESGOTO, DN 350 MM (NBR 7362) | C196: UN | D196: CR | E196: 65,62
A197: 310 | B197: ANEL BORRACHA, PARA TUBO PVC, REDE COLETOR ESGOTO, DN 400 MM (NBR 7362) | C197: UN | D197: CR | E197: 90,95
A198: 328 | B198: ANEL BORRACHA, PARA TUBO/CONEXAO PVC PBA, DN 100 MM, PARA REDE AGUA | C198: UN | D198: CR | E198: 7,95
A199: 325 | B199: ANEL BORRACHA, PARA TUBO/CONEXAO PVC PBA, DN 50 MM, PARA REDE AGUA | C199: UN | D199: CR | E199: 2,34
A200: 20326 | B200: ANEL BORRACHA, PARA TUBO/CONEXAO PVC PBA, DN 60 MM, PARA REDE AGUA | C200: UN | D200: CR | E200: 4,29
A201: 329 | B201: ANEL BORRACHA, PARA TUBO/CONEXAO PVC PBA, DN 75 MM, PARA REDE AGUA | C201: UN | D201: CR | E201: 6,65
A202: 308 | B202: ANEL BORRACHA, PARA TUBO, PVC REDE COLETOR ESGOTO, DN 300 MM (NBR 7362) | C202: UN | D202: CR | E202: 89,40
... 4645 more rows
